Workbook

Sheet Index
A1: Number | B1: Essay's Title | C1: Magazine Reference | D1: Folder | E1: File Name | F1: Magazine Article [Adobe Acrobat] | G1: Reference
A2: 1 | B2: U–Th–Pb Isotope Data | C2: Earth and Planetary Science Letters, Volume 319-320, 2012, Pages 197-206 | D2: C:\Essays\Geo_Dating\Dating\Th-232_Pb-208\ | E2: 232_Th_02 | F2: C:\Essays\Geo_Dating\Dating\Th-232_Pb-208\232_Th_02.pdf | G2: =(B2 & ", " & C2) -> U–Th–Pb Isotope Data, Earth and Planetary Science Letters, Volume 319-320, 2012, Pages 197-206
A3: 2 | B3: U–Th–Pb Geochronology | C3: Gondwana Research, 2012, Volume 21, Pages 728–744 | D3: C:\Essays\Geo_Dating\Dating\Th-232_Pb-208\ | E3: 232_Th_03 | F3: C:\Essays\Geo_Dating\Dating\Th-232_Pb-208\232_Th_03.pdf | G3: =(B3 & ", " & C3) -> U–Th–Pb Geochronology , Gondwana Research, 2012, Volume 21, Pages 728–744
A4: 3 | B4: The U, Th and Pb Compositions | C4: Geochimica et Cosmochimica Acta, 2009, Volume 73, Pages 469-488 | D4: C:\Essays\Geo_Dating\Dating\Th-232_Pb-208\ | E4: 232_Th_04 | F4: C:\Essays\Geo_Dating\Dating\Th-232_Pb-208\232_Th_04.pdf | G4: =(B4 & ", " & C4) -> The U, Th and Pb Compositions, Geochimica et Cosmochimica Acta, 2009, Volume 73, Pages 469-488
A5: 4 | B5: Rb–Sr and U–Pb Systematics | C5: Lithology and Mineral Resources, 2011, Volume 46, Number 2, Pages 151-164 | D5: C:\Essays\Geo_Dating\Dating\Th-232_Pb-208\ | E5: 232_Th_05 | F5: C:\Essays\Geo_Dating\Dating\Th-232_Pb-208\232_Th_05.pdf | G5: Rb–Sr and U–Pb Systematics, Lithology and Mineral Resources, 2011, Volume 46, Number 2, Pages 151-164
A6: 5 | B6: Cu–Pb–Zn–Ag Mineralisation | C6: Mineral Deposita, 2010, Volume 45, Pages 393-410 | D6: C:\Essays\Geo_Dating\Dating\Th-232_Pb-208\ | E6: 232_Th_06 | F6: C:\Essays\Geo_Dating\Dating\Th-232_Pb-208\232_Th_06.pdf | G6: Cu–Pb–Zn–Ag Mineralisation, Mineral Deposita, 2010, Volume 45, Pages 393-410
A7: 6 | B7: Mesozoic volcanic rocks | C7: Int Journal Earth Science, 2010, Volume 99, Pages 357-378 | D7: C:\Essays\Geo_Dating\Dating\Th-232_Pb-208\ | E7: 232_Th_07 | F7: C:\Essays\Geo_Dating\Dating\Th-232_Pb-208\232_Th_07.pdf | G7: Mesozoic volcanic rocks , Int Journal Earth Science, 2010, Volume 99, Pages 357-378
A8: 7 | B8: Uranium-Lead Age Of Baddeleyite | C8: Journal Of Geophysical Research, 2011, Volume 116, Page 1-12 | D8: C:\Essays\Geo_Dating\Dating\Th-232_Pb-208\ | E8: 232_Th_08 | F8: C:\Essays\Geo_Dating\Dating\Th-232_Pb-208\232_Th_08.pdf | G8: Uranium-Lead Age Of Baddeleyite, Journal Of Geophysical Research, 2011, Volume 116, Page 1-12
A9: 8 | B9: Mesozoic Lithosphere Destruction | C9: Contrib Mineral Petrol, 2002, Volume 144, Pages 241–253 | D9: C:\Essays\Geo_Dating\Dating\Th-232_Pb-208\ | E9: 232_Th_09 | F9: C:\Essays\Geo_Dating\Dating\Th-232_Pb-208\232_Th_09.pdf | G9: Mesozoic Lithosphere Destruction, Contrib Mineral Petrol, 2002, Volume 144, Pages 241–253
A10: 9 | B10: SHRIMP U–Pb Geochronology | C10: International Earth Science, 2002, Volume 91, Pages 406-432 | D10: C:\Essays\Geo_Dating\Dating\Th-232_Pb-208\ | E10: 232_Th_10 | F10: C:\Essays\Geo_Dating\Dating\Th-232_Pb-208\232_Th_10.pdf | G10: SHRIMP U–Pb Geochronology, International Earth Science, 2002, Volume 91, Pages 406-432
A11: 10 | B11: The Beverley Uranium Deposit | C11: Economic Geology, 2011, Volume 106, Pages 835-867 | D11: C:\Essays\Geo_Dating\Dating\Th-232_Pb-208\ | E11: =("232_Th_") & (A11+1) -> 232_Th_11 | F11: C:\Essays\Geo_Dating\Dating\Th-232_Pb-208\232_Th_11.pdf | G11: The Beverley Uranium Deposit, Economic Geology, 2011, Volume 106, Pages 835-867
A12: 11 | B12: Isotopic Systematics of the Goalpara Ureilite | C12: Gcochimica et Cosmochimtca Acta, 1995, Volume 59, Number 2, Pages 381-390 | D12: C:\Essays\Geo_Dating\Dating\Th-232_Pb-208\ | E12: Thorium_A | F12: C:\Essays\Geo_Dating\Dating\Th-232_Pb-208\Thorium_A.pdf | G12: Isotopic Systematics of the Goalpara Ureilite, Gcochimica et Cosmochimtca Acta, 1995, Volume 59, Number 2, Pages 381-390
A13: 12 | B13: Middle Atlas Peridotite Xenoliths | C13: Geochimica et Cosmochimica Acta, 2010, Volume 74, Pages 1417–1435 | D13: C:\Essays\Geo_Dating\Dating\Th-232_Pb-208\ | E13: Thorium_B | F13: C:\Essays\Geo_Dating\Dating\Th-232_Pb-208\Thorium_B.pdf | G13: Middle Atlas Peridotite Xenoliths, Geochimica et Cosmochimica Acta, 2010, Volume 74, Pages 1417–1435
A14: 13 | B14: U, Th and Pb Isotope Compositions | C14: Geochimica et Cosmochimica Acta, 2009, Volume 73, Pages 469–488 | D14: C:\Essays\Geo_Dating\Dating\Th-232_Pb-208\ | E14: Thorium_C | F14: C:\Essays\Geo_Dating\Dating\Th-232_Pb-208\Thorium_C.pdf | G14: U, Th and Pb Isotope Compositions, Geochimica et Cosmochimica Acta, 2009, Volume 73, Pages 469–488
A15: 14 | B15: A Precise 232Th-208Pb Chronology | C15: Geochimica et Cosmochimica Acta, 1994, Volume 58, Number 15, Pages 3155-3169 | D15: C:\Essays\Geo_Dating\Dating\Th-232_Pb-208\ | E15: Thorium_D | F15: C:\Essays\Geo_Dating\Dating\Th-232_Pb-208\Thorium_D.pdf | G15: A Precise 232Th-208Pb Chronology , Geochimica et Cosmochimica Acta, 1994, Volume 58, Number 15, Pages 3155-3169
A16: 15 | B16: Age of the MET 78008 Ureilite | C16: Geochimica et Cosmochimica Acta, 1995, Volume 59, Number 11, Pages 2319-2329 | D16: C:\Essays\Geo_Dating\Dating\Th-232_Pb-208\ | E16: Thorium_E | F16: C:\Essays\Geo_Dating\Dating\Th-232_Pb-208\Thorium_E.pdf | G16: Age of the MET 78008 Ureilite, Geochimica et Cosmochimica Acta, 1995, Volume 59, Number 11, Pages 2319-2329

Sheet 232_Th_02
C1: Age | E1: Age | G1: Age | N1: Age | Q1: 100601
A2: Sample | B2: 207/206 Pb | C2: 207/206 Pb | D2: 208Pb/232Th | E2: 208Pb/232Th | F2: 207Pb/235U | G2: 207Pb/235U | H2: 206/204 Pb | I2: 207/204 Pb | J2: Pb-208/204 | K2: 238U/204Pb | L2: 206Pb/238U | M2: 235U/204Pb | N2: 206Pb/238U | O2: 232Th/Pb204 | Q2: 84457
A3: ABDP-42.60b | B3: =(I3/H3) -> 0.9893595253 | C3: =[1]!AgePb76(B3) -> 5222.336113 | D3: =(J3/O3) -> 2.684838027 | E3: =[2]!AgePb8Th2(D3) -> 26361.32531 | F3: =(I3/M3) -> 500.1724138 | G3: =[2]!AgePb7U5(F3) -> 6312.585857 | H3: 14.661 | I3: 14.505 | J3: 34.229 | K3: 4.002 | L3: =(H3/K3) -> 3.663418291 | M3: 0.029 | N3: =[2]!AgePb6U8(L3) -> 9925.857973 | O3: 12.749 | Q3: 73968
A4: ABDP-190.26 | B4: 1.042898762 | C4: =[2]!AgePb76(B4) -> 5296.324867 | D4: 37.84502262 | E4: =[2]!AgePb8Th2(D4) -> 73968.26581 | F4: 1884.078947 | G4: =[2]!AgePb7U5(F4) -> 7657.739738 | H4: 13.73 | I4: 14.319 | J4: 33.455 | K4: 1.043 | L4: 13.16395014 | M4: 0.0076 | N4: =[2]!AgePb6U8(L4) -> 17087.51016 | O4: 0.884 | Q4: 67423
A5: ABDP-193.28 | B5: 1.067053417 | C5: =[2]!AgePb76(B5) -> 5328.402219 | D5: 14.43283582 | E5: =[2]!AgePb8Th2(D5) -> 55310.71118 | F5: 963.4693878 | G5: =[2]!AgePb7U5(F5) -> 6977.283945 | H5: 13.273 | I5: 14.163 | J5: 32.878 | K5: 2.03 | L5: 6.538423645 | M5: 0.0147 | N5: =[2]!AgePb6U8(L5) -> 13021.84106 | O5: 2.278 | Q5: 58353
A6: ABDP-194.17 | B6: 1.044283414 | C6: =[2]!AgePb76(B6) -> 5298.184776 | D6: 15.87440533 | E6: =[2]!AgePb8Th2(D6) -> 57115.67451 | F6: 1011.843972 | G6: =[2]!AgePb7U5(F6) -> 7026.976155 | H6: 13.662 | I6: 14.267 | J6: 33.368 | K6: 1.95 | L6: 7.006153846 | M6: 0.0141 | N6: =[2]!AgePb6U8(L6) -> 13409.89832 | O6: 2.102 | Q6: 57116
A7: ABDP-194.44 | B7: 1.069909043 | C7: =[2]!AgePb76(B7) -> 5332.143746 | D7: 144.073913 | E7: =[2]!AgePb8Th2(D7) -> 100601.1795 | F7: 3310 | G7: =[2]!AgePb7U5(F7) -> 8229.685269 | H7: 13.303 | I7: 14.233 | J7: 33.137 | K7: 0.592 | L7: 22.47128378 | M7: 0.0043 | N7: =[2]!AgePb6U8(L7) -> 20343.45017 | O7: 0.23 | Q7: 55311
A8: ABDP-211.40 | B8: 1.05698324 | C8: =[2]!AgePb76(B8) -> 5315.123135 | D8: 5.917053157 | E8: =[2]!AgePb8Th2(D8) -> 39090.24426 | F8: 614.2857143 | G8: =[2]!AgePb7U5(F8) -> 6520.878038 | H8: 13.425 | I8: 14.19 | J8: 33.171 | K8: 3.182 | L8: 4.219044626 | M8: 0.0231 | N8: =[2]!AgePb6U8(L8) -> 10651.50274 | O8: 5.606 | Q8: 51607
A9: ABDP-214.13 | B9: 1.084236415 | C9: =[2]!AgePb76(B9) -> 5350.758247 | D9: 8.012439024 | E9: =[2]!AgePb8Th2(D9) -> 44438.72131 | F9: 719.744898 | G9: =[2]!AgePb7U5(F9) -> 6681.510136 | H9: 13.011 | I9: 14.107 | J9: 32.851 | K9: 2.7 | L9: 4.818888889 | M9: 0.0196 | N9: =[2]!AgePb6U8(L9) -> 11352.84017 | O9: 4.1 | Q9: 44439
A10: ABDP-214.18 | B10: 1.07521018 | C10: =[2]!AgePb76(B10) -> 5339.061602 | D10: 11.84876654 | E10: =[2]!AgePb8Th2(D10) -> 51606.82804 | F10: 300.1268499 | G10: =[2]!AgePb7U5(F10) -> 5795.330867 | H10: 13.203 | I10: 14.196 | J10: 33.141 | K10: 6.517 | L10: 2.025932177 | M10: 0.0473 | N10: =[2]!AgePb6U8(L10) -> 7137.593565 | O10: 2.797 | Q10: 39090
A11: ABDP-217.80 | B11: 1.022789164 | C11: =[2]!AgePb76(B11) -> 5269.015186 | E11: . | G11: . | H11: 13.954 | I11: 14.272 | J11: 33.962 | Q11: 31005
A12: ABDP-223.25 | B12: 1.125674696 | C12: =[2]!AgePb76(B12) -> 5403.170217 | D12: =(J12/O12) -> 64.2689243 | E12: =[2]!AgePb8Th2(D12) -> 84457.1204 | F12: =(I12/M12) -> 19961.42857 | G12: =[2]!AgePb7U5(F12) -> 10053.92417 | H12: 12.413 | I12: 13.973 | J12: 32.263 | K12: 0.102 | L12: =(H12/K12) -> 121.6960784 | M12: 0.0007 | N12: =[2]!AgePb6U8(L12) -> 31005.38527 | O12: 0.502 | Q12: 26361
A13: ABDP-229.45 | B13: 1.115047771 | C13: =[2]!AgePb76(B13) -> 5389.925389 | D13: =(J13/O13) -> 16.939885 | E13: =[2]!AgePb8Th2(D13) -> 58353.23792 | F13: =(I13/M13) -> 2090.298507 | G13: =[2]!AgePb7U5(F13) -> 7763.152203 | H13: 12.56 | I13: 14.005 | J13: 32.406 | K13: 0.92 | L13: =(H13/K13) -> 13.65217391 | M13: 0.0067 | N13: =[2]!AgePb6U8(L13) -> 17305.97076 | O13: 1.913 | Q13: 24980
A14: ABDP-229.60 | B14: 1.11894661 | C14: =[2]!AgePb76(B14) -> 5394.800081 | D14: =(J14/O14) -> 27.09991604 | E14: =[2]!AgePb8Th2(D14) -> 67423.27617 | F14: =(I14/M14) -> 3038.913043 | G14: =[2]!AgePb7U5(F14) -> 8142.949881 | H14: 12.493 | I14: 13.979 | J14: 32.276 | K14: 0.629 | L14: =(H14/K14) -> 19.86168521 | M14: 0.0046 | N14: =[2]!AgePb6U8(L14) -> 19583.6534 | O14: 1.191 | Q14: 20343
A15: ABDP-261.45 | B15: 1.037258041 | C15: =[2]!AgePb76(B15) -> 5288.721027 | D15: =(J15/O15) -> 2.441351603 | E15: =[2]!AgePb8Th2(D15) -> 24979.57154 | F15: =(I15/M15) -> 705.6435644 | G15: =[2]!AgePb7U5(F15) -> 6661.447313 | H15: 13.742 | I15: 14.254 | J15: 34.03 | K15: 2.785 | L15: =(H15/K15) -> 4.934290844 | M15: 0.0202 | N15: =[2]!AgePb6U8(L15) -> 11479.43616 | O15: 13.939 | Q15: 19584
B16: Average | C16: =[2]!AgePb76(B16) ->  | D16: Average | E16: =AVERAGE(E3:E15) -> 56975.513 | F16: Average | G16: =AVERAGE(G3:G15) -> 7318.621964 | M16: Average | N16: =AVERAGE(N3:N15) -> 15192.07831 | Q16: 17306
B17: Maximim | C17: =MAX(C3:C16) ->  | D17: Maximim | E17: =MAX(E3:E16) -> 100601.1795 | F17: Maximim | G17: =MAX(G3:G16) -> 10053.92417 | M17: Maximim | N17: =MAX(N3:N16) -> 31005.38527 | Q17: 17088
B18: Minimum | C18: =MIN(C3:C17) ->  | D18: Minimum | E18: =MIN(E3:E17) -> 24979.57154 | F18: Minimum | G18: =MIN(G3:G17) -> 5795.330867 | M18: Minimum | N18: =MIN(N3:N17) -> 7137.593565 | Q18: 13410
C19: 13 | E19: 12 | G19: 12 | N19: 12 | Q19: 13022
Q20: 11479
C21: Age | D21: Age | E21: Age | F21: Age | Q21: 11353
B22: Statistics | C22: 207/206 Pb | D22: 208Pb/232Th | E22: 207Pb/235U | F22: 206Pb/238U | Q22: 10652
B23: Average | C23: 5325.2282 | D23: 56975.513 | E23: 7318.621964 | F23: 15192.07831 | Q23: 10054
B24: Maximim | C24: 5403.170217 | D24: 100601.1795 | E24: 10053.92417 | F24: 31005.38527 | H24: 208Pb/232Th | I24: 207Pb/235U | J24: 206Pb/238U | Q24: 9926
B25: Minimum | C25: 5222.336113 | D25: 24979.57154 | E25: 5795.330867 | F25: 7137.593565 | H25: 100601.1795 | I25: 10053.92417 | J25: 31005.38527 | Q25: 8230
B26: Difference | C26: =(C24-C25) -> 180.8341036 | D26: =(D24-D25) -> 75621.60799 | E26: =(E24-E25) -> 4258.593299 | F26: =(F24-F25) -> 23867.79171 | H26: 84457.1204 | I26: 8229.685269 | J26: 20343.45017 | Q26: 8143
H27: 73968.26581 | I27: 8142.949881 | J27: 19583.6534 | Q27: 7763
H28: 67423.27617 | I28: 7763.152203 | J28: 17305.97076 | Q28: 7658
H29: 58353.23792 | I29: 7657.739738 | J29: 17087.51016 | Q29: 7138
H30: 57115.67451 | I30: 7026.976155 | J30: 13409.89832 | Q30: 7027
H31: 55310.71118 | I31: 6977.283945 | J31: 13021.84106 | Q31: 6977
H32: 51606.82804 | I32: 6681.510136 | J32: 11479.43616 | Q32: 6682
H33: 44438.72131 | I33: 6661.447313 | J33: 11352.84017 | Q33: 6661
H34: 39090.24426 | I34: 6520.878038 | J34: 10651.50274 | Q34: 6521
H35: 26361.32531 | I35: 6312.585857 | J35: 9925.857973 | Q35: 6313
H36: 24979.57154 | I36: 5795.330867 | J36: 7137.593565 | Q36: 5795
Q37: 5403
Q38: 5395
Q39: 5390
Q40: 5351
Q41: 5339
Q42: 5332
Q43: 5328
Q44: 5315
Q45: 5298
Q46: 5296
Q47: 5289
Q48: 5269
Q49: 5222

Sheet 232_Th_03
E1: 207Pb Age/232Th Age | F1: 238U Age/232Th Age | G1: 208Pb/232Th Age | H1: 238U/206Pb | I1: Age | J1: 207Pb/206Pb | K1: Age
A2: 1 | B2: K-3fr_1.1 | C2: 0.37 | D2: 7 | E2: =(K2/G2) -> 5.60986507 | F2: =(I2/G2) -> 1.047517215 | G2: 355 | H2: 16.84 | I2: =[2]!AgePb6U8(1/H2) -> 371.8686114 | J2: 0.1224 | K2: =[2]!AgePb76($J$2) -> 1991.5021
A3: 2 | B3: K-3fr_1.2 | C3: 0.09 | D3: 2 | E3: =(K3/G3) -> 9.993399946 | F3: =(I3/G3) -> 1.251161195 | G3: 316 | H3: 15.81 | I3: =[2]!AgePb6U8(1/H3) -> 395.3669376 | J3: 0.2458 | K3: =[2]!AgePb76($J$3) -> 3157.914383
A4: 3 | B4: K-3fr_1.3 | C4: 0.04 | D4: 0.4 | E4: 12.74766001 | F4: 2.269869752 | G4: 306 | H4: 8.79 | I4: =[2]!AgePb6U8(1/H4) -> 694.580144 | J4: 0.3978 | K4: =[2]!AgePb76($J$4) -> 3900.783962
A5: 4 | B5: K-3fr_1.4 | C5: 0.27 | D5: 5 | E5: 5.297109404 | F5: 1.054125824 | G5: 354 | H5: 16.78 | I5: =[2]!AgePb6U8(1/H5) -> 373.1605418 | J5: 0.1147 | K5: =[2]!AgePb76($J$5) -> 1875.176729
A6: 5 | B6: K-3fr_1.5 | C6: 0.3 | D6: 5 | E6: 5.745422367 | F6: 1.121640942 | G6: 380 | H6: 14.63 | I6: =[2]!AgePb6U8(1/H6) -> 426.2235578 | J6: 0.1365 | K6: =[2]!AgePb76($J$6) -> 2183.260499
A7: 6 | B7: K-3fr_1.6 | C7: 0.41 | D7: 7 | E7: 6.337335911 | F7: 1.120637588 | G7: 361 | H7: 15.44 | I7: =[2]!AgePb6U8(1/H7) -> 404.5501694 | J7: 0.145 | K7: =[2]!AgePb76($J$7) -> 2287.778264
A8: 7 | B8: K-3fr_1.7 | C8: 0.37 | D8: 8 | E8: 4.089818829 | F8: 0.8370994716 | G8: 423 | H8: 17.71 | I8: =[2]!AgePb6U8(1/H8) -> 354.0930765 | J8: 0.1059 | K8: =[2]!AgePb76($J$8) -> 1729.993365
A9: 8 | B9: K-3fr_1.8 | C9: 0.53 | D9: 10 | E9: 7.856887984 | F9: 1.018807993 | G9: 379 | H9: 16.2 | I9: =[2]!AgePb6U8(1/H9) -> 386.1282294 | J9: 0.2196 | K9: =[2]!AgePb76($J$9) -> 2977.760546
A10: 9 | B10: K-3fr_1.9 | C10: 0.39 | D10: 7 | E10: 5.212510063 | F10: 1.033338919 | G10: 373 | H10: 16.23 | I10: =[2]!AgePb6U8(1/H10) -> 385.4354167 | J10: 0.1192 | K10: =[2]!AgePb76($J$10) -> 1944.266254
A11: 10 | B11: K-3fr_1.10 | C11: 0.37 | D11: 4 | E11: 9.013567347 | F11: 1.597390889 | G11: 385 | H11: 9.99 | I11: =[2]!AgePb6U8(1/H11) -> 614.9954924 | J11: 0.3 | K11: =[2]!AgePb76($J$11) -> 3470.223428
A12: 11 | B12: K-3fr_1.11 | C12: 0.41 | D12: 11 | E12: 3.610460998 | F12: 0.7363054063 | G12: 365 | H12: 23.49 | I12: =[2]!AgePb6U8(1/H12) -> 268.7514733 | J12: 0.0851 | K12: =[2]!AgePb76($J$12) -> 1317.818264
A13: 12 | B13: K-3fr_1.12 | C13: 0.39 | D13: 10 | E13: 5.985933171 | F13: 0.782881322 | G13: 379 | H13: 21.23 | I13: =[2]!AgePb6U8(1/H13) -> 296.712021 | J13: 0.1434 | K13: =[2]!AgePb76($J$13) -> 2268.668672
A14: 13 | B14: K-3fr_1.13 | C14: 0.1 | D14: 2 | E14: 5.778116039 | F14: 1.003827556 | G14: 399 | H14: 15.6 | I14: =[2]!AgePb6U8(1/H14) -> 400.5271949 | J14: 0.1465 | K14: =[2]!AgePb76($J$14) -> 2305.4683
A15: 14 | B15: K-3fr_2.1 | C15: 0.02 | D15: 0.07 | E15: 8.804684342 | F15: 3.063610745 | G15: 512 | H15: 3.63 | I15: =[2]!AgePb6U8(1/H15) -> 1568.568702 | J15: 0.6 | K15: =[2]!AgePb76($J$15) -> 4507.998383
A16: 15 | B16: K-3fr_2.2 | C16: 0.05 | D16: 0.14 | E16: 10.65680567 | F16: 5.126322406 | G16: 438 | H16: 2.4 | I16: =[2]!AgePb6U8(1/H16) -> 2245.329214 | J16: 0.67 | K16: =[2]!AgePb76($J$16) -> 4667.680885
A17: 16 | B17: K-3fr_2.3 | C17: 0.03 | D17: 0.14 | E17: 11.94450813 | F17: 3.487062115 | G17: 358 | H17: 4.68 | I17: =[2]!AgePb6U8(1/H17) -> 1248.368237 | J17: 0.512 | K17: =[2]!AgePb76($J$17) -> 4276.13391
A18: 17 | B18: K-3fr_3.1 | C18: 0.07 | D18: 0.39 | E18: 7.772464292 | F18: 2.616361902 | G18: 479 | H18: 4.66 | I18: =[2]!AgePb6U8(1/H18) -> 1253.237351 | J18: 0.3537 | K18: =[2]!AgePb76($J$18) -> 3723.010396
A19: 18 | B19: K-3fr_3.2 | C19: 0.05 | D19: 0.17 | E19: 8.622669195 | F19: 3.518766849 | G19: 521 | H19: 3.04 | I19: =[2]!AgePb6U8(1/H19) -> 1833.277528 | J19: 0.5936 | K19: =[2]!AgePb76($J$19) -> 4492.41065
A20: 19 | B20: K-3fr_4.1 | C20: 0.08 | D20: 0.37 | E20: 7.695869668 | F20: 3.032893375 | G20: 468 | H20: 4.06 | I20: =[2]!AgePb6U8(1/H20) -> 1419.3941 | J20: 0.3267 | K20: =[2]!AgePb76($J$20) -> 3601.667005
A21: 20 | B21: K-3fr_4.2 | C21: 0.1 | D21: 0.73 | E21: 7.545851152 | F21: 1.84075611 | G21: 499 | H21: 6.53 | I21: =[2]!AgePb6U8(1/H21) -> 918.5372991 | J21: 0.3637 | K21: =[2]!AgePb76($J$21) -> 3765.379725
A22: 21 | B22: K-3fr_5.1 | C22: 0.01 | D22: 0.26 | E22: 10.62056129 | F22: 1.149148249 | G22: 343 | H22: 15.86 | I22: =[2]!AgePb6U8(1/H22) -> 394.1578493 | J22: 0.3356 | K22: =[2]!AgePb76($J$22) -> 3642.852523
A23: 22 | B23: K-3fr_5.2 | C23: 0.02 | D23: 0.25 | E23: 10.65691309 | F23: 1.528757325 | G23: 365 | H23: 11.06 | I23: =[2]!AgePb6U8(1/H23) -> 557.9964236 | J23: 0.3949 | K23: =[2]!AgePb76($J$23) -> 3889.773276
A24: 23 | B24: K-3fr_5.3 | C24: 0.07 | D24: 0.44 | E24: 8.254934591 | F24: 2.668475192 | G24: 419 | H24: 5.28 | I24: =[2]!AgePb6U8(1/H24) -> 1118.091106 | J24: 0.2978 | K24: =[2]!AgePb76($J$24) -> 3458.817594
A25: 24 | B25: K-3fr_5.4 | C25: 0.06 | D25: 0.39 | E25: 8.904537613 | F25: 2.455907524 | G25: 404 | H25: 6.01 | I25: =[2]!AgePb6U8(1/H25) -> 992.1866398 | J25: 0.3258 | K25: =[2]!AgePb76($J$25) -> 3597.433196
A26: 25 | B26: K-3fr_6.1 | C26: 0.07 | D26: 0.54 | E26: 9.548797836 | F26: 2.342617251 | G26: 376 | H26: 6.83 | I26: =[2]!AgePb6U8(1/H26) -> 880.8240865 | J26: 0.3243 | K26: =[2]!AgePb76($J$26) -> 3590.347986
A27: 26 | B27: K-3fr_7.1 | C27: 0.03 | D27: 0.24 | E27: 10.00195541 | F27: 3.076538212 | G27: 324 | H27: 5.98 | I27: =[2]!AgePb6U8(1/H27) -> 996.7983807 | J27: 0.259 | K27: =[2]!AgePb76($J$27) -> 3240.633554
A28: 27 | B28: K-3gr_1.1 | C28: 0.05 | D28: 0.33 | E28: 12.07386491 | F28: 3.163431541 | G28: 331 | H28: 5.67 | I28: =[2]!AgePb6U8(1/H28) -> 1047.09584 | J28: 0.424 | K28: =[2]!AgePb76($J$28) -> 3996.449285
A29: 28 | B29: K-3gr_1.2 | C29: 0.05 | D29: 0.09 | E29: 10.20066581 | F29: 6.689781439 | G29: 461 | H29: 1.63 | I29: =[2]!AgePb6U8(1/H29) -> 3083.989243 | J29: 0.6864 | K29: =[2]!AgePb76($J$29) -> 4702.506938
A30: 29 | B30: K-3gr_1.3 | C30: 0.04 | D30: 0.28 | E30: 10.19443256 | F30: 2.67732734 | G30: 407 | H30: 5.43 | I30: =[2]!AgePb6U8(1/H30) -> 1089.672228 | J30: 0.4698 | K30: =[2]!AgePb76($J$30) -> 4149.134052
A31: 30 | B31: K-3gr_1.4 | C31: 0.05 | D31: 0.2 | E31: 9.591968016 | F31: 4.136016566 | G31: 425 | H31: 3.19 | I31: =[2]!AgePb6U8(1/H31) -> 1757.80704 | J31: 0.4474 | K31: =[2]!AgePb76($J$31) -> 4076.586407
A32: 31 | B32: K-3gr_1.5 | C32: 0.08 | D32: 0.51 | E32: 10.88002857 | F32: 2.852062601 | G32: 363 | H32: 5.74 | I32: =[2]!AgePb6U8(1/H32) -> 1035.298724 | J32: 0.4109 | K32: =[2]!AgePb76($J$32) -> 3949.450372
A33: 32 | B33: K-3gr_1.6 | C33: 0.04 | D33: 0.32 | E33: 11.44223225 | F33: 2.312257023 | G33: 357 | H33: 7.32 | I33: =[2]!AgePb6U8(1/H33) -> 825.4757574 | J33: 0.4499 | K33: =[2]!AgePb76($J$33) -> 4084.876914
A34: 33 | B34: K-3gr_1.7 | C34: 0.09 | D34: 0.09 | E34: 10.75043872 | F34: 11.65452394 | G34: 441 | H34: 0.82 | I34: =[2]!AgePb6U8(1/H34) -> 5139.645059 | J34: 0.705 | K34: =[2]!AgePb76($J$34) -> 4740.943475
D35: Average | E35: =AVERAGE(E2:E34) -> 8.589159705 | F35: =AVERAGE(F2:F34) -> 2.553552175 | H35: Average | I35: =AVERAGE(I2:I34) -> 1053.883142 | K35: =AVERAGE(K2:K34) -> 3380.748524
D36: Maximim | E36: =MAX(E2:E35) -> 12.74766001 | F36: =MAX(F2:F35) -> 11.65452394 | H36: Maximim | I36: =MAX(I2:I35) -> 5139.645059 | K36: =MAX(K2:K35) -> 4740.943475
D37: Minimum | E37: =MIN(E2:E36) -> 3.610460998 | F37: =MIN(F2:F36) -> 0.7363054063 | H37: Minimum | I37: =MIN(I2:I36) -> 268.7514733 | K37: =MIN(K2:K36) -> 1317.818264
D38: Difference | E38: =(E36-E37) -> 9.137199008 | F38: =(F36-F37) -> 10.91821854 | H38: Difference | I38: =(I36-I37) -> 4870.893586 | K38: =(K36-K37) -> 3423.125211
D42: Statistics | E42: 207Pb Age/232Th Age | F42: 238U Age/232Th Age | G42: 238U/206Pb Age | H42: 207Pb/206Pb Age
D43: Average | E43: 8.589159705 | F43: 2.553552175 | G43: 1053.883142 | H43: 3380.748524
D44: Maximim | E44: 12.74766001 | F44: 11.65452394 | G44: 5139.645059 | H44: 4740.943475
D45: Minimum | E45: 3.610460998 | F45: 0.7363054063 | G45: 268.7514733 | H45: 1317.818264
D46: Difference | E46: 9.137199008 | F46: 10.91821854 | G46: 4870.893586 | H46: 3423.125211

Sheet 232_Th_04
E1: Age | H1: Age | L1: Age | O1: 92495
A2: Sample | B2: 206Pb/204Pb | C2: 207Pb/206Pb | D2: 207Pb/204Pb | E2: 207Pb/206Pb | F2: 208Pb/204Pb | G2: 208Pb/232Th | H2: 208Pb/232Th | I2: 206Pb/238U | J2: 238U/204Pb | K2: 232Th/204Pb | L2: 206Pb/238U | O2: 73503
A3: Atl-3A | B3: 20.089 | C3: =(D3/B3) -> 0.7782866245 | D3: 15.635 | E3: =[1]!AgePb76(C3) -> 4882.510971 | F3: 39.966 | G3: =(F3/K3) -> 0.2936517267 | H3: =[1]!AgePb8Th2(G3) -> 5204.022538 | I3: =(B3/J3) -> 0.6809830508 | J3: 29.5 | K3: 136.1 | L3: =[1]!AgePb6U8(I3) -> 3348.130679 | O3: 42038
A4: Atl-3A | B4: 20.093 | C4: =(D4/B4) -> 0.7782809934 | D4: 15.638 | E4: =[1]!AgePb76(C4) -> 4882.500648 | F4: 39.977 | G4: 0 | H4: . | I4: 0 | O4: 29253
A5: Atl-3A | B5: 18.516 | C5: 0.8428926334 | D5: 15.607 | E5: =[1]!AgePb76(C5) -> 4995.998755 | F5: 38.369 | G5: =(F5/K5) -> 3.251610169 | H5: =[1]!AgePb8Th2(G5) -> 29253.11318 | I5: =(B5/J5) -> 9.745263158 | J5: 1.9 | K5: 11.8 | L5: =[1]!AgePb6U8(I5) -> 15306.78499 | O5: 23557
A6: Atl-3C | B6: 20.1763 | C6: 0.7751669037 | D6: 15.64 | E6: =[1]!AgePb76(C6) -> 4876.779553 | F6: 40.075 | G6: 0.1068097015 | H6: =[1]!AgePb8Th2(G6) -> 2051.171991 | I6: 0.2497066832 | J6: 80.8 | K6: 375.2 | L6: =[1]!AgePb6U8(I6) -> 1436.962903 | O6: 18639
A7: Atl-3C | B7: 20.1763 | C7: 0.7751669037 | D7: 15.64 | E7: =[1]!AgePb76(C7) -> 4876.779553 | F7: 40.075 | G7: 0.1099753019 | H7: =[1]!AgePb8Th2(G7) -> 2108.898727 | I7: 0.2603393548 | J7: 77.5 | K7: 364.4 | L7: =[1]!AgePb6U8(I7) -> 1491.57785 | O7: 15307
A8: Atl-3E | B8: 20.106 | C8: 0.7776285686 | D8: 15.635 | E8: =[1]!AgePb76(C8) -> 4881.304058 | F8: 40.003 | G8: 0.1071891747 | H8: =[1]!AgePb8Th2(G8) -> 2058.10063 | I8: 0.2673670213 | J8: 75.2 | K8: 373.2 | L8: =[1]!AgePb6U8(I8) -> 1527.423283 | O8: 13018
A9: Atl-3E | B9: 18.965 | C9: 0.8243079357 | D9: 15.633 | E9: =[1]!AgePb76(C9) -> 4964.327121 | F9: 38.769 | G9: 0.6418708609 | H9: =[1]!AgePb8Th2(G9) -> 10021.95777 | I9: 3.951041667 | J9: 4.8 | K9: 60.4 | L9: =[1]!AgePb6U8(I9) -> 10311.67118 | O9: 10956
A10: Atl-3E | B10: 20.1114 | C10: 0.7774694949 | D10: 15.636 | E10: =[1]!AgePb76(C10) -> 4881.012144 | F10: 40.011 | G10: 0.1049881921 | H10: =[1]!AgePb8Th2(G10) -> 2017.880728 | I10: 0.266729443 | J10: 75.4 | K10: 381.1 | L10: =[1]!AgePb6U8(I10) -> 1524.179449 | O10: 10772
A11: Atl-3E | B11: 19.176 | C11: 0.8151856487 | D11: 15.632 | E11: =[1]!AgePb76(C11) -> 4948.502248 | F11: 38.769 | G11: 0 | H11: . | I11: 0 | O11: 10621
A12: Atl-3F | B12: 19.9774 | C12: 0.7823340375 | D12: 15.629 | E12: =[1]!AgePb76(C12) -> 4889.910349 | F12: 39.828 | G12: 0.1371487603 | H12: =[1]!AgePb8Th2(G12) -> 2597.757292 | I12: 0.2770790569 | J12: 72.1 | K12: 290.4 | L12: =[1]!AgePb6U8(I12) -> 1576.634865 | O12: 10312
A13: Atl-3F | B13: 19.9793 | C13: 0.7822596387 | D13: 15.629 | E13: =[1]!AgePb76(C13) -> 4889.774704 | F13: 39.831 | G13: 0 | H13: . | I13: 0 | O13: 10022
A14: Atl-3F | B14: 18.71 | C14: 0.8357562801 | D14: 15.637 | E14: =[1]!AgePb76(C14) -> 4983.925729 | F14: 38.611 | G14: 0.9042388759 | H14: =[1]!AgePb8Th2(G14) -> 13018.34034 | I14: 3.225862069 | J14: 5.8 | K14: 42.7 | L14: =[1]!AgePb6U8(I14) -> 9290.722192 | O14: 9291
A15: Atl-3I | B15: 19.933 | C15: 0.784227161 | D15: 15.632 | E15: =[1]!AgePb76(C15) -> 4893.357329 | F15: 39.718 | G15: 0.1676572393 | H15: =[1]!AgePb8Th2(G15) -> 3132.882908 | I15: 0.4196421053 | J15: 47.5 | K15: 236.9 | L15: =[1]!AgePb6U8(I15) -> 2258.854481 | O15: 5625
A16: Atl-3K | B16: 20.2499 | C16: 0.7731890034 | D16: 15.657 | E16: =[1]!AgePb76(C16) -> 4873.133098 | F16: 40.173 | G16: 0.1485138632 | H16: =[1]!AgePb8Th2(G16) -> 2798.76329 | I16: 0.3916808511 | J16: 51.7 | K16: 270.5 | L16: =[1]!AgePb6U8(I16) -> 2130.618933 | O16: 5204
A17: Atl-3L | B17: 20.1831 | C17: 0.7751039236 | D17: 15.644 | E17: =[1]!AgePb76(C17) -> 4876.663596 | F17: 40.083 | G17: 0.1257308657 | H17: =[1]!AgePb8Th2(G17) -> 2393.784399 | I17: 0.3565918728 | J17: 56.6 | K17: 318.8 | L17: =[1]!AgePb6U8(I17) -> 1965.998895 | O17: 5090
A18: Atl-3L | B18: 18.998 | C18: 0.8209811559 | D18: 15.597 | E18: =[1]!AgePb76(C18) -> 4958.577663 | F18: 38.855 | G18: 0.719537037 | H18: =[1]!AgePb8Th2(G18) -> 10956.14129 | I18: 4.317727273 | J18: 4.4 | K18: 54 | L18: =[1]!AgePb6U8(I18) -> 10772.25468 | O18: 5090
A19: Atl-3U | B19: 20.213 | C19: 0.773858408 | D19: 15.642 | E19: =[1]!AgePb76(C19) -> 4874.368323 | F19: 40.126 | G19: 0.1006673357 | H19: =[1]!AgePb8Th2(G19) -> 1938.689533 | I19: 0.2536135508 | J19: 79.7 | K19: 398.6 | L19: =[1]!AgePb6U8(I19) -> 1457.084426 | O19: 5086
A20: Atl-3U | B20: 20.2166 | C20: 0.7737700701 | D20: 15.643 | E20: =[1]!AgePb76(C20) -> 4874.205382 | F20: 40.134 | G20: 0 | H20: . | I20: 0 | O20: 5085
A21: Atl-3U | B21: 19.29 | C21: 0.8118195956 | D21: 15.66 | E21: =[1]!AgePb76(C21) -> 4942.615377 | F21: 39.15 | G21: 0.2778566359 | H21: =[1]!AgePb8Th2(G21) -> 4955.718468 | I21: 0.7938271605 | J21: 24.3 | K21: 140.9 | L21: =[1]!AgePb6U8(I21) -> 3766.971255 | O21: 5085
A22: Atl-3V | B22: 20.104 | C22: 0.7779048945 | D22: 15.639 | E22: =[1]!AgePb76(C22) -> 4881.810988 | F22: 39.937 | G22: 0.2450122699 | H22: =[1]!AgePb8Th2(G22) -> 4429.416579 | I22: 0.7732307692 | J22: 26 | K22: 163 | L22: =[1]!AgePb6U8(I22) -> 3692.526518 | O22: 5068
A23: Atl-3T | B23: 20.2456 | C23: 0.7731062552 | D23: 15.652 | E23: =[1]!AgePb76(C23) -> 4872.980327 | F23: 40.226 | G23: 0.1171062591 | H23: =[1]!AgePb8Th2(G23) -> 2238.335413 | I23: 0.3596021314 | J23: 56.3 | K23: 343.5 | L23: =[1]!AgePb6U8(I23) -> 1980.287552 | O23: 5025
A24: Mb47 | B24: 20.285 | C24: 0.7722947991 | D24: 15.666 | E24: =[1]!AgePb76(C24) -> 4871.481281 | F24: 39.917 | G24: 7.002982456 | H24: =[1]!AgePb8Th2(G24) -> 42037.68124 | I24: 0.2974340176 | J24: 68.2 | K24: 5.7 | L24: =[1]!AgePb6U8(I24) -> 1678.571999 | O24: 5021
A25: Mb47 | B25: 18.399 | C25: 0.8500461982 | D25: 15.64 | E25: =[1]!AgePb76(C25) -> 5007.992406 | F25: 38.299 | G25: 0 | H25: . | I25: 0 | O25: 5021
A26: Br12 | B26: 18.387 | C26: 0.8453255017 | D26: 15.543 | E26: =[1]!AgePb76(C26) -> 5000.08979 | F26: 38.02 | G26: 0.6912727273 | H26: =[1]!AgePb8Th2(G26) -> 10621.14883 | I26: 1.392954545 | J26: 13.2 | K26: 55 | L26: =[1]!AgePb6U8(I26) -> 5624.682121 | O26: 5016
A27: Br12 | B27: 18.397 | C27: 0.8460075012 | D27: 15.564 | E27: =[1]!AgePb76(C27) -> 5001.234374 | F27: 38.12 | G27: 0 | H27: . | I27: 0 | O27: 5008
A28: Br12 | B28: 17.55 | C28: 0.8866096866 | D28: 15.56 | E28: =[1]!AgePb76(C28) -> 5067.666839 | F28: 37.44 | G28: 0 | H28: . | I28: 0 | O28: 5001
A29: 70-379 | B29: 17.01 | C29: 0.9007642563 | D29: 15.322 | E29: =[1]!AgePb76(C29) -> 5090.070196 | F29: 37.085 | G29: 2.207440476 | H29: =[1]!AgePb8Th2(G29) -> 23556.81172 | I29: 1.0125 | J29: 16.8 | K29: 16.8 | L29: =[1]!AgePb6U8(I29) -> 4508.478519 | O29: 5000
A30: 70-379 | B30: 17.021 | C30: 0.9006521356 | D30: 15.33 | E30: =[1]!AgePb76(C30) -> 5089.894206 | F30: 37.11 | G30: 0 | H30: . | I30: 0 | O30: 4996
A31: 70-379 | B31: 18.226 | C31: 0.8576758477 | D31: 15.632 | E31: =[1]!AgePb76(C31) -> 5020.666694 | F31: 38.324 | G31: 0 | H31: . | I31: 0 | O31: 4984
A32: 71-321 | B32: 17.019 | C32: 0.8973500206 | D32: 15.272 | E32: =[1]!AgePb76(C32) -> 5084.700601 | F32: 36.962 | G32: 36.962 | H32: =[1]!AgePb8Th2(G32) -> 73503.49994 | I32: 17.019 | J32: 1 | K32: 1 | L32: =[1]!AgePb6U8(I32) -> 18639.33445 | O32: 4964
A33: 71-321 | B33: 16.999 | C33: 0.8979351727 | D33: 15.264 | E33: =[1]!AgePb76(C33) -> 5085.622411 | F33: 36.939 | G33: 0 | H33: . | I33: 0 | O33: 4959
A34: 71-321 | B34: 18.219 | C34: 0.858005379 | D34: 15.632 | E34: =[1]!AgePb76(C34) -> 5021.211407 | F34: 38.362 | G34: 0 | H34: . | I34: 0 | O34: 4956
A35: 71-107 | B35: 17.09 | C35: 0.897425395 | D35: 15.337 | E35: =[1]!AgePb76(C35) -> 5084.819376 | F35: 36.892 | G35: 0 | H35: . | I35: 0 | O35: 4949
A36: 71-107 | B36: 18.164 | C36: 0.8604382295 | D36: 15.629 | E36: =[1]!AgePb76(C36) -> 5025.226036 | F36: 38.299 | G36: 0 | H36: . | I36: 0 | O36: 4943
A37: 72-228 | B37: 19.543 | C37: 0.8005423937 | D37: 15.645 | E37: =[1]!AgePb76(C37) -> 4922.701836 | F37: 38.457 | G37: 96.1425 | H37: =[1]!AgePb8Th2(G37) -> 92494.77459 | I37: 0.5731085044 | J37: 34.1 | K37: 0.4 | L37: =[1]!AgePb6U8(I37) -> 2920.571159 | O37: 4923
A38: 72-228 | B38: 18.297 | C38: 0.8546756299 | D38: 15.638 | E38: =[1]!AgePb76(C38) -> 5015.697104 | F38: 38.371 | G38: 0 | H38: . | I38: 0 | O38: 4893
D39: Average | E39: =AVERAGE(E3:E38) -> 4955.280902 | G39: Average | H39: =AVERAGE(H3:H38) -> 15608.58597 | K39: Average | L39: =AVERAGE(L3:L38) -> 4873.196472 | O39: 4890
D40: Maximim | E40: =MAX(E3:E39) -> 5090.070196 | G40: Maximim | H40: =MAX(H3:H39) -> 92494.77459 | K40: Maximim | L40: =MAX(L3:L39) -> 18639.33445 | O40: 4890
D41: Minimum | E41: =MIN(E3:E40) -> 4871.481281 | G41: Minimum | H41: =MIN(H3:H40) -> 1938.689533 | K41: Minimum | L41: =MIN(L3:L40) -> 1436.962903 | O41: 4883
E42: 37 | H42: 11 | L42: 6 | O42: 4883
O43: 4882
E44: Age | F44: Age | G44: Age | O44: 4881
D45: Statistics | E45: 207Pb/206Pb | F45: 208Pb/232Th | G45: 206Pb/238U | O45: 4881
D46: Average | E46: 4955.280902 | F46: 15608.52383 | G46: 4873.196472 | O46: 4877
D47: Maximim | E47: =MAX(E10:E46) -> 5090.070196 | F47: 92494.40068 | G47: 18639.33445 | O47: 4877
D48: Minimum | E48: =MIN(E10:E47) -> 37 | F48: 1938.681696 | G48: 1436.962903 | O48: 4877
D49: Difference | E49: =(E47-E48) -> 5053.070196 | F49: =(F47-F48) -> 90555.71899 | G49: =(G47-G48) -> 17202.37155 | O49: 4874
O50: 4874
O51: 4873
O52: 4873
O53: 4871

Sheet 232_Th_05
A1: Rubidium | B1: Table 2
A2: Strontium | B2: Initial | C2: Today | D2: Today | E2: The Ratio | F2: Half | G2: Decay | H2: 2.303/Delta | I2: Age | J2: Age | K2: Age
A3: Dating | B3: 87Sr/86Sr | C3: 87Sr/86Sr | D3: 87Rb/86Sr | E3: Plus One | F3: Life | G3: Constant | H3: Constant | I3: Years | J3: Million Years | K3: Billion Years
B4: 0.70431 | C4: 0.70435 | D4: 0.0013 | E4: =1+((C4-B4)/D4) -> 1.030769231 | F4: 48800000000 | G4: =(0.693/F4) -> 1.420081967e-11 | H4: =(2.303/G4) -> 1.621737374e+11 | I4: =(LOG(E4))*(H4) -> 2134440896 | J4: =(I4/1000000) -> 2134.440896 | K4: =(J4/1000) -> 2.134440896
B5: 0.70407 | C5: 0.70408 | D5: 0.0002 | E5: =1+((C5-B5)/D5) -> 1.05 | F5: 48800000000 | G5: =(0.693/F5) -> 1.420081967e-11 | H5: =(2.303/G5) -> 1.621737374e+11 | I5: =(LOG(E5))*(H5) -> 3436347822 | J5: =(I5/1000000) -> 3436.347822 | K5: =(J5/1000) -> 3.436347822
B6: 0.70406 | C6: 0.70407 | D6: 0.0004 | E6: 1.025 | F6: 48800000000 | G6: 1.420081967e-11 | H6: 1.621737374e+11 | I6: 1739129330 | J6: 1739.12933 | K6: 1.73912933
B7: 0.7041 | C7: 0.70417 | D7: 0.0024 | E7: 1.029166667 | F7: 48800000000 | G7: 1.420081967e-11 | H7: 1.621737374e+11 | I7: 2024854506 | J7: 2024.854506 | K7: 2.024854506
B8: 0.70486 | C8: 0.7049 | D8: 0.0014 | E8: 1.028571429 | F8: 48800000000 | G8: 1.420081967e-11 | H8: 1.621737374e+11 | I8: 1984107522 | J8: 1984.107522 | K8: 1.984107522
B9: 0.7062 | C9: 0.70653 | D9: 0.0107 | E9: 1.030841121 | F9: 48800000000 | G9: 1.420081967e-11 | H9: 1.621737374e+11 | I9: 2139352928 | J9: 2139.352928 | K9: 2.139352928
B10: 0.70623 | C10: 0.70645 | D10: 0.0075 | E10: 1.029333333 | F10: 48800000000 | G10: 1.420081967e-11 | H10: 1.621737374e+11 | I10: 2036259438 | J10: 2036.259438 | K10: 2.036259438
B11: 0.70575 | C11: 0.70585 | D11: 0.0032 | E11: 1.03125 | F11: 48800000000 | G11: 1.420081967e-11 | H11: 1.621737374e+11 | I11: 2167283592 | J11: 2167.283592 | K11: 2.167283592
B12: 0.70579 | C12: 0.70592 | D12: 0.004 | E12: 1.0325 | F12: 48800000000 | G12: 1.420081967e-11 | H12: 1.621737374e+11 | I12: 2252602996 | J12: 2252.602996 | K12: 2.252602996
B13: 0.70578 | C13: 0.70595 | D13: 0.0056 | E13: 1.030357143 | F13: 48800000000 | G13: 1.420081967e-11 | H13: 1.621737374e+11 | I13: 2106277820 | J13: 2106.27782 | K13: 2.10627782
B14: 0.7056 | C14: 0.70592 | D14: 0.0108 | E14: 1.02962963 | F14: 48800000000 | G14: 1.420081967e-11 | H14: 1.621737374e+11 | I14: 2056530314 | J14: 2056.530314 | K14: 2.056530314
B15: 0.70622 | C15: 0.70655 | D15: 0.0107 | E15: 1.030841121 | F15: 48800000000 | G15: 1.420081967e-11 | H15: 1.621737374e+11 | I15: 2139352928 | J15: 2139.352928 | K15: 2.139352928
J16: =AVERAGE(J4:J15) -> 2184.711674 | K16: 2.184711674
J17: =MAX(J4:J16) -> 3436.347822 | K17: 3.436347822
J18: =MIN(J4:J17) -> 1739.12933
E21: Age | F21: Age | I21: Age
A22: Sample | B22: 206Pb/204Pb | C22: 207Pb/204Pb | D22: 208Pb/204Pb | E22: 207Pb/206Pb | F22: 206Pb/238U | G22: 238U/204Pb | H22: 238U/204Pb | I22: 206Pb/238U
A23: CX-307.3 | B23: 17.73 | C23: 15.597 | D23: 35.837 | E23: =[2]!AgePb76(C23/B23) -> 5056.584889 | F23: =[2]!AgePb6U8(B23/G23) -> 4829.005103 | G23: 15.9 | H23: 6.33 | I23: =[2]!AgePb6U8(B23/H23) -> 8607.577595
A24: ECF | B24: 17.733 | C24: 15.596 | D24: 35.963 | E24: =[2]!AgePb76(C24/B24) -> 5056.254566 | F24: =[2]!AgePb6U8(B24/G24) -> 2813.995495 | G24: 32.4 | H24: – | I24: .
A25: CX-314.5 | B25: 17.051 | C25: 15.485 | D25: 36.02 | E25: =[2]!AgePb76(C25/B25) -> 5101.624621 | F25: =[2]!AgePb6U8(B25/G25) -> 10538.7729 | G25: 4.13 | H25: 4.34 | I25: =[2]!AgePb6U8(B25/H25) -> 10282.64899 | K25: 2813.995495
B26: 17.043 | C26: 15.475 | D26: 36.018 | E26: =[2]!AgePb76(C26/B26) -> 5101.37492 | F26: . | G26: . | H26: . | I26: . | K26: 4829.005103
A27: CX-322.5 | B27: 17.652 | C27: 15.584 | D27: 35.883 | E27: =[2]!AgePb76(C27/B27) -> 5061.646156 | F27: =[2]!AgePb6U8(B27/G27) -> 9392.759671 | G27: 5.36 | H27: 6.09 | I27: =[2]!AgePb6U8(B27/H27) -> 8770.975342 | K27: 4834.389295
A28: ECF | B28: 17.658 | C28: 15.609 | D28: 35.792 | E28: =[2]!AgePb76(C28/B28) -> 5063.433987 | F28: =[2]!AgePb6U8(B28/G28) -> 5647.470094 | G28: 12.6 | H28: . | I28: . | K28: 4864.724391
A29: CX-322.6 | B29: 17.548 | C29: 15.57 | D29: 35.859 | E29: =[2]!AgePb76(C29/B29) -> 5068.737277 | F29: =[2]!AgePb6U8(B29/G29) -> 9600.732224 | G29: 5.11 | H29: 5.79 | I29: =[2]!AgePb6U8(B29/H29) -> 8985.983186 | K29: 4986.630379
A30: CX-339.4 | B30: 18.758 | C30: 15.707 | D30: 36.566 | E30: =[2]!AgePb76(C30/B30) -> 4986.630379 | F30: =[2]!AgePb6U8(B30/G30) -> 6133.937055 | G30: 11.8 | H30: 9.32 | I30: =[2]!AgePb6U8(B30/H30) -> 7109.258487 | K30: 5056.254566
A31: CX-340.3 | B31: 21.277 | C31: 16.011 | D31: 40.146 | E31: =[2]!AgePb76(C31/B31) -> 4834.389295 | F31: =[2]!AgePb6U8(B31/G31) -> 7825.593306 | G31: 8.99 | H31: 16.67 | I31: =[2]!AgePb6U8(B31/H31) -> 5302.689783 | K31: 5056.584889
A32: ECF | B32: 20.739 | C32: 15.941 | D32: 39.532 | E32: =[2]!AgePb76(C32/B32) -> 4864.724391 | F32: =[2]!AgePb6U8(B32/G32) -> 8490.278315 | G32: 7.59 | H32: . | I32: . | K32: 5061.646156
D33: Average | E33: =AVERAGE(E23:E32) -> 5019.540048 | F33: =AVERAGE(F23:F32) -> 7252.504907 | I33: =AVERAGE(I23:I32) -> 8176.522231 | K33: 5063.433987
D34: Maximim | E34: =MAX(E23:E33) -> 5101.624621 | F34: =MAX(F23:F33) -> 10538.7729 | I34: =MAX(I23:I33) -> 10282.64899 | K34: 5068.737277
D35: Minimum | E35: =MIN(E23:E34) -> 4834.389295 | F35: =MIN(F23:F34) -> 2813.995495 | I35: =MIN(I23:I34) -> 5302.689783 | K35: 5101.37492
K36: 5101.624621
K37: 5302.689783
K38: 5647.470094
E39: Age | F39: Age | G39: Age | H39: Age | K39: 6133.937055
D40: Statistics | E40: 207Pb/206Pb | F40: 206Pb/238U | G40: 206Pb/238U | H40: 87Sr/86Sr | K40: 7109.258487
D41: Average | E41: 5019.540048 | F41: 7252.504907 | G41: 8176.522231 | H41: 2184.711674 | K41: 7825.593306
D42: Maximim | E42: 5101.624621 | F42: 10538.7729 | G42: 10282.64899 | H42: 3436.347822 | K42: 8490.278315
D43: Minimum | E43: 4834.389295 | F43: 2813.995495 | G43: 5302.689783 | H43: 1739.12933 | K43: 8607.577595
D44: Difference | E44: =(E42-E43) -> 267.2353265 | F44: =(F42-F43) -> 7724.777408 | G44: =(G42-G43) -> 4979.959208 | H44: =(H42-H43) -> 1697.218493 | K44: 8770.975342
K45: 8985.983186
K46: 9392.759671
K47: 9600.732224
K48: 10282.64899
K49: 10538.7729
K50: =COUNT(K25:K49) -> 25
K51: .
K52: .
K53: .
K54: .

Sheet 232_Th_06
G1: Age | H1: Age | I1: Age | J1: Age | L1: 208Pb/232Th | M1: 207Pb/206Pb | N1: 206Pb/238U | O1: 207Pb/235U | Q1: 199319
A2: 206Pb/204Pb | B2: 207Pb/204Pb | C2: 208Pb/204Pb | D2: 232Th/204Pb | E2: 235U/204Pb | F2: 238U/204Pb | G2: 208Pb/232Th | H2: 207Pb/206Pb | I2: 206Pb/238U | J2: 207Pb/235U | L2: 199318.7809 | M2: 6275.135486 | N2: 48495.64456 | O2: 12149.85967 | Q2: 171568
A3: 18.264 | B3: 15.722 | C3: 38.782 | H3: =[1]!AgePb76(B3/A3) -> 5025.853444 | L3: 171567.9043 | M3: 5042.676439 | N3: 37795.42598 | O3: 10750.61719 | Q3: 169191
A4: 18.314 | B4: 15.734 | C4: 38.862 | D4: 0.009 | E4: 0.0007 | F4: 0.092 | G4: =[1]!AgePb8Th2(C4/D4) -> 169192.1005 | H4: =[1]!AgePb76(B4/A4) -> 5023.059103 | I4: =[1]!AgePb6U8(A4/F4) -> 34157.24996 | J4: =[1]!AgePb7U5(B4/E4) -> 10174.44148 | L4: 169191.4166 | M4: 5040.262957 | N4: 37134.2478 | O4: 10739.47947 | Q4: 109612
A5: 19.987 | B5: 15.86 | C5: 39.566 | H5: =[1]!AgePb76(B5/A5) -> 4910.142577 | L5: 109611.6144 | M5: 5040.003769 | N5: 34881.09141 | O5: 10327.91947 | Q5: 109326
A6: 21.047 | B6: 15.858 | C6: 38.347 | D6: 0.002 | E6: 0.0004 | F6: 0.06 | G6: =[1]!AgePb8Th2(C6/D6) -> 199319.5867 | H6: =[1]!AgePb76(B6/A6) -> 4836.200614 | I6: =[1]!AgePb6U8(A6/F6) -> 37795.42598 | J6: =[1]!AgePb7U5(B6/E6) -> 10750.61719 | L6: 109326.2689 | M6: 5039.79178 | N6: 34722.78727 | O6: 10327.91947 | Q6: 100493
A7: 21.917 | B7: 15.901 | C7: 38.33 | H7: =[1]!AgePb76(B7/A7) -> 4782.090076 | L7: 100492.6603 | M7: 5039.50138 | N7: 34157.24996 | O7: 10174.44148 | Q7: 97525
A8: 26.901 | B8: 16.261 | C8: 45.207 | H8: =[1]!AgePb76(B8/A8) -> 4518.79341 | L8: 97525.27967 | M8: 5039.399244 | N8: 30516.99024 | O8: 9809.261682 | Q8: 95641
A9: 18.269 | B9: 15.711 | C9: 38.633 | H9: =[1]!AgePb76(B9/A9) -> 5024.47309 | L9: 95640.91063 | M9: 5039.085289 | N9: 26502.50881 | O9: 9008.62366 | Q9: 94641
A10: 18.07 | B10: 15.685 | C10: 38.33 | H10: =[1]!AgePb76(B10/A10) -> 5037.649454 | L10: 94641.15016 | M10: 5037.649454 | N10: 25365.10873 | O10: 8839.155106 | Q10: 90058
A11: 18.268 | B11: 15.702 | C11: 38.602 | H11: =[1]!AgePb76(B11/A11) -> 5023.738278 | L11: 90058.018 | M11: 5033.302807 | N11: 20439.94517 | O11: 7847.302411 | Q11: 80165
A12: 18.215 | B12: 15.698 | C12: 38.551 | H12: =[1]!AgePb76(B12/A12) -> 5027.496204 | L12: 80165.49743 | M12: 5033.301029 | N12: 16364.38018 | O12: 7289.876625 | Q12: 80073
A13: 18.36 | B13: 15.712 | C13: 38.764 | H13: =[1]!AgePb76(B13/A13) -> 5017.517641 | L13: 80072.74055 | M13: 5033.012719 | N13: 15122.34708 | O13: 7130.513319 | Q13: 75876
A14: 18.356 | B14: 15.712 | C14: 38.779 | H14: =[1]!AgePb76(B14/A14) -> 5017.826652 | L14: 75875.83794 | M14: 5027.496204 | N14: 14581.94727 | O14: 6943.664768 | Q14: 69663
A15: 18.352 | B15: 15.711 | C15: 38.777 | H15: =[1]!AgePb76(B15/A15) -> 5018.045463 | L15: 69662.78838 | M15: 5025.853444 | N15: 11865.23595 | O15: 6504.986152 | Q15: 69494
A16: 18.144 | B16: 15.701 | C16: 38.424 | H16: =[1]!AgePb76(B16/A16) -> 5033.302807 | L16: 69493.64809 | M16: 5024.47309 | N16: 10145.03015 | O16: 6176.554456 | Q16: 65937
A17: 18.489 | B17: 15.728 | C17: 38.855 | D17: 0.008 | E17: 0.0001 | F17: 0.01 | G17: =[1]!AgePb8Th2(C17/D17) -> 171568.5978 | H17: =[1]!AgePb76(B17/A17) -> 5009.02979 | I17: =[1]!AgePb6U8(A17/F17) -> 48495.64456 | J17: =[1]!AgePb7U5(B17/E17) -> 12149.85967 | L17: 65937.49004 | M17: 5023.738278 | N17: 9578.415518 | O17: 6068.478699 | Q17: 60456
A18: 18.391 | B18: 15.72 | C18: 38.855 | H18: =[1]!AgePb76(B18/A18) -> 5015.846928 | L18: 60455.80113 | M18: 5023.059103 | N18: 6846.908207 | O18: 5363.902679 | Q18: 51708
A19: 18.98 | B19: 15.729 | C19: 38.795 | H19: =[1]!AgePb76(B19/A19) -> 4971.904729 | L19: 51707.7098 | M19: 5018.045463 | N19: 6459.885473 | O19: 5248.181616 | Q19: 49691
A20: 21.334 | B20: 15.872 | C20: 39.094 | D20: 8.19 | E20: 0.32 | F20: 44 | G20: =[1]!AgePb8Th2(C20/D20) -> 35437.25263 | H20: =[1]!AgePb76(B20/A20) -> 4818.089251 | I20: =[1]!AgePb6U8(A20/F20) -> 2548.415411 | J20: =[1]!AgePb7U5(B20/E20) -> 3984.313932 | L20: 49690.83944 | M20: 5017.826652 | N20: 4660.868429 | O20: 4880.543056 | Q20: 48496
A21: 21.684 | B21: 15.897 | C21: 39.377 | D21: 0.35 | E21: 0.007 | F21: 0.95 | G21: =[1]!AgePb8Th2(C21/D21) -> 95641.29726 | H21: =[1]!AgePb76(B21/A21) -> 4797.044665 | I21: =[1]!AgePb6U8(A21/F21) -> 20439.94517 | J21: =[1]!AgePb7U5(B21/E21) -> 7847.302411 | L21: 45444.6462 | M21: 5017.517641 | N21: 3981.957262 | O21: 4671.942087 | Q21: 45445
A22: 22.832 | B22: 15.994 | C22: 40.012 | H22: =[1]!AgePb76(B22/A22) -> 4731.76111 | L22: 35437.10938 | M22: 5015.846928 | N22: 3933.601496 | O22: 4613.502183 | Q22: 37795
A23: 18.821 | B23: 15.726 | C23: 38.792 | H23: =[1]!AgePb76(B23/A23) -> 4983.585371 | L23: 26639.78646 | M23: 5009.02979 | N23: 3897.578084 | O23: 4555.337448 | Q23: 37134
A24: 18.657 | B24: 15.723 | C24: 38.759 | D24: 2.05 | E24: 0.026 | F24: 3.52 | G24: =[1]!AgePb8Th2(C24/D24) -> 60456.04552 | H24: =[1]!AgePb76(B24/A24) -> 4995.741657 | I24: =[1]!AgePb6U8(A24/F24) -> 11865.23595 | J24: =[1]!AgePb7U5(B24/E24) -> 6504.986152 | L24: 20649.54368 | M24: 4995.741657 | N24: 3896.933881 | O24: 4510.867046 | Q24: 35437
A25: 19.124 | B25: 15.734 | C25: 38.837 | D25: 3.26 | E25: 0.012 | F25: 1.64 | G25: =[1]!AgePb8Th2(C25/D25) -> 51707.91882 | H25: =[1]!AgePb76(B25/A25) -> 4961.613232 | I25: =[1]!AgePb6U8(A25/F25) -> 16364.38018 | J25: =[1]!AgePb7U5(B25/E25) -> 7289.876625 | L25: 17815.96671 | M25: 4992.481511 | N25: 3726.336096 | O25: 4508.348733 | Q25: 34881
A26: 18.894 | B26: 15.744 | C26: 38.772 | D26: 0.93 | E26: 0.036 | F26: 4.94 | G26: =[1]!AgePb8Th2(C26/D26) -> 75876.14466 | H26: =[1]!AgePb76(B26/A26) -> 4979.711522 | I26: =[1]!AgePb6U8(A26/F26) -> 10145.03015 | J26: =[1]!AgePb7U5(B26/E26) -> 6176.554456 | L26: 15280.40368 | M26: 4986.365454 | N26: 3473.448327 | O26: 4401.923616 | Q26: 34723
A27: 23.652 | B27: 16.024 | C27: 40.174 | D27: 1.6 | E27: 0.72 | F27: 99.2 | G27: =[1]!AgePb8Th2(C27/D27) -> 65937.75659 | H27: =[1]!AgePb76(B27/A27) -> 4683.698672 | I27: =[1]!AgePb6U8(A27/F27) -> 1378.516452 | J27: =[1]!AgePb7U5(B27/E27) -> 3194.947507 | L27: 13961.13308 | M27: 4984.67339 | N27: 3452.705313 | O27: 4398.497765 | Q27: 34157
A28: 22.418 | B28: 15.945 | C28: 39.936 | H28: =[1]!AgePb76(B28/A28) -> 4753.633939 | L28: 11153.77017 | M28: 4983.585371 | N28: 3350.415482 | O28: 4321.452677 | Q28: 30517
A29: 21.722 | B29: 15.896 | C29: 39.172 | D29: 0.76 | E29: 0.091 | F29: 12.6 | G29: =[1]!AgePb8Th2(C29/D29) -> 80073.06424 | H29: =[1]!AgePb76(B29/A29) -> 4794.446339 | I29: =[1]!AgePb6U8(A29/F29) -> 6459.885473 | J29: =[1]!AgePb7U5(B29/E29) -> 5248.181616 | L29: 10362.71146 | M29: 4979.711522 | N29: 3062.552028 | O29: 4266.528089 | Q29: 26640
A30: 18.783 | B30: 15.725 | C30: 38.568 | D30: 1.28 | E30: 0.34 | F30: 46.9 | G30: =[1]!AgePb8Th2(C30/D30) -> 69493.92901 | H30: =[1]!AgePb76(B30/A30) -> 4986.365454 | I30: =[1]!AgePb6U8(A30/F30) -> 2171.297113 | J30: =[1]!AgePb7U5(B30/E30) -> 3914.761287 | L30: 8591.840512 | M30: 4971.904729 | N30: 2563.735812 | O30: 4049.21797 | Q30: 26503
A31: 19.947 | B31: 15.795 | C31: 39.007 | D31: 3.65 | E31: 0.24 | F31: 32.8 | G31: =[1]!AgePb8Th2(C31/D31) -> 49691.04031 | H31: =[1]!AgePb76(B31/A31) -> 4907.144936 | I31: =[1]!AgePb6U8(A31/F31) -> 3062.552028 | J31: =[1]!AgePb7U5(B31/E31) -> 4266.528089 | L31: 8385.297029 | M31: 4968.974946 | N31: 2548.415411 | O31: 3984.313932 | Q31: 25365
A32: 18.803 | B32: 15.723 | C32: 38.691 | D32: 0.27 | E32: 0.04 | F32: 5.5 | G32: =[1]!AgePb8Th2(C32/D32) -> 100493.0665 | H32: =[1]!AgePb76(B32/A32) -> 4984.67339 | I32: =[1]!AgePb6U8(A32/F32) -> 9578.415518 | J32: =[1]!AgePb7U5(B32/E32) -> 6068.478699 | L32: 6695.912324 | M32: 4968.874378 | N32: 2482.92717 | O32: 3981.991047 | Q32: 20650
A33: 19.217 | B33: 15.767 | C33: 38.947 | H33: =[1]!AgePb76(B33/A33) -> 4957.694597 | L33: 5535.774165 | M33: 4961.613232 | N33: 2171.297113 | O33: 3914.761287 | Q33: 20440
A34: 19.297 | B34: 15.749 | C34: 39.976 | D34: 896.3 | E34: 1.87 | F34: 257.8 | G34: =[1]!AgePb8Th2(C34/D34) -> 881.9631418 | H34: =[1]!AgePb76(B34/A34) -> 4950.161765 | I34: =[1]!AgePb6U8(A34/F34) -> 465.324963 | J34: =[1]!AgePb7U5(B34/E34) -> 2277.544229 | L34: 5239.135181 | M34: 4960.276726 | N34: 1834.97268 | O34: 3576.117175 | Q34: 17816
A35: 18.129 | B35: 15.688 | C35: 38.38 | D35: 4.53 | E35: 0.014 | F35: 1.92 | G35: =[1]!AgePb8Th2(C35/D35) -> 45444.8299 | H35: =[1]!AgePb76(B35/A35) -> 5033.301029 | I35: =[1]!AgePb6U8(A35/F35) -> 15122.34708 | J35: =[1]!AgePb7U5(B35/E35) -> 7130.513319 | L35: 5140.718302 | M35: 4957.694597 | N35: 1378.516452 | O35: 3194.947507 | Q35: 16364
A36: 18.135 | B36: 15.69 | C36: 38.402 | D36: – | E36: – | F36: – | H36: =[1]!AgePb76(B36/A36) -> 5033.012719 | L36: 4879.085463 | M36: 4950.161765 | N36: 1344.057288 | O36: 2963.348009 | Q36: 15280
A37: 18.006 | B37: 15.685 | C37: 38.295 | D37: 1.26 | E37: 0.0022 | F37: 0.3 | G37: =[1]!AgePb8Th2(C37/D37) -> 69663.06999 | H37: =[1]!AgePb76(B37/A37) -> 5042.676439 | I37: =[1]!AgePb6U8(A37/F37) -> 26502.50881 | J37: =[1]!AgePb7U5(B37/E37) -> 9008.62366 | L37: 3873.396572 | M37: 4931.475782 | N37: 990.8973436 | O37: 2568.691677 | Q37: 15122
A38: 18.04 | B38: 15.685 | C38: 38.347 | D38: 0.17 | E38: 0.0004 | F38: 0.057 | G38: =[1]!AgePb8Th2(C38/D38) -> 109612.0575 | H38: =[1]!AgePb76(B38/A38) -> 5040.003769 | I38: =[1]!AgePb6U8(A38/F38) -> 37134.2478 | J38: =[1]!AgePb7U5(B38/E38) -> 10739.47947 | L38: 2850.74848 | M38: 4910.142577 | N38: 661.3690808 | O38: 2277.544229 | Q38: 14582
A39: 18.054 | B39: 15.687 | C39: 38.32 | D39: 0.74 | E39: 0.0026 | F39: 0.36 | G39: =[1]!AgePb8Th2(C39/D39) -> 80165.82149 | H39: =[1]!AgePb76(B39/A39) -> 5039.085289 | I39: =[1]!AgePb6U8(A39/F39) -> 25365.10873 | J39: =[1]!AgePb7U5(B39/E39) -> 8839.155106 | L39: 2245.427622 | M39: 4907.144936 | N39: 465.324963 | O39: 2274.957043 | Q39: 13961
A40: 18.048 | B40: 38.309 | C40: 0.64 | D40: 0.0009 | E40: 0.125 | H40: =[1]!AgePb76(B40/A40) -> 6275.135486 | L40: 1351.729016 | M40: 4904.992355 | N40: 321.494896 | O40: 1523.138373 | Q40: 12150
A41: 18.039 | B41: 15.687 | C41: 38.3 | D41: 0.45 | E41: 0.001 | F41: 0.16 | G41: =[1]!AgePb8Th2(C41/D41) -> 90058.38205 | H41: =[1]!AgePb76(B41/A41) -> 5040.262957 | I41: =[1]!AgePb6U8(A41/F41) -> 30516.99024 | J41: =[1]!AgePb7U5(B41/E41) -> 9809.261682 | L41: 881.9595766 | M41: 4901.243215 | N41: 173.5003268 | O41: 848.0530418 | Q41: 11865
A42: 18.045 | B42: 15.687 | C42: 38.315 | D42: 0.31 | E42: 0.0006 | F42: 0.083 | G42: =[1]!AgePb8Th2(C42/D42) -> 97525.67391 | H42: =[1]!AgePb76(B42/A42) -> 5039.79178 | I42: =[1]!AgePb6U8(A42/F42) -> 34722.78727 | J42: =[1]!AgePb7U5(B42/E42) -> 10327.91947 | M42: 4890.809308 | Q42: 11154
A43: 18.051 | B43: 15.689 | C43: 38.322 | H43: =[1]!AgePb76(B43/A43) -> 5039.50138 | M43: 4873.071444 | Q43: 10751
A44: 18.05 | B44: 15.687 | C44: 38.316 | D44: 0.358 | E44: 0.0006 | F44: 0.081 | G44: =[1]!AgePb8Th2(C44/D44) -> 94641.53274 | H44: =[1]!AgePb76(B44/A44) -> 5039.399244 | I44: =[1]!AgePb6U8(A44/F44) -> 34881.09141 | J44: =[1]!AgePb7U5(B44/E44) -> 10327.91947 | M44: 4868.476887 | Q44: 10739
A45: 19.634 | B45: 15.815 | C45: 40.532 | D45: 103.2 | E45: 0.17 | F45: 23.64 | G45: =[1]!AgePb8Th2(C45/D45) -> 6695.939392 | H45: =[1]!AgePb76(B45/A45) -> 4931.475782 | I45: =[1]!AgePb6U8(A45/F45) -> 3897.578084 | J45: =[1]!AgePb7U5(B45/E45) -> 4613.502183 | M45: 4844.297886 | Q45: 10363
A46: 24.678 | B46: 16.069 | C46: 42.368 | H46: =[1]!AgePb76(B46/A46) -> 4626.499614 | M46: 4841.025091 | Q46: 10328
A47: 30.485 | B47: 16.637 | C47: 49.279 | D47: 419.4 | E47: 0.95 | F47: 131.5 | G47: =[1]!AgePb8Th2(C47/D47) -> 2245.436699 | H47: =[1]!AgePb76(B47/A47) -> 4369.787652 | I47: =[1]!AgePb6U8(A47/F47) -> 1344.057288 | J47: =[1]!AgePb7U5(B47/E47) -> 2963.348009 | M47: 4836.200614 | Q47: 10328
A48: 50.522 | B48: 17.53 | C48: 45.918 | D48: 663.9 | E48: 13.43 | F48: 1852 | G48: =[1]!AgePb8Th2(C48/D48) -> 1351.73448 | H48: =[1]!AgePb76(B48/A48) -> 3693.77908 | I48: =[1]!AgePb6U8(A48/F48) -> 173.5003268 | J48: =[1]!AgePb7U5(B48/E48) -> 848.0530418 | M48: 4824.042026 | Q48: 10174
A49: 84.473 | B49: 19.48 | C49: 66.707 | H49: =[1]!AgePb76(B49/A49) -> 3056.259564 | M49: 4818.089251 | Q49: 10145
A50: 29.031 | B50: 16.376 | C50: 40.876 | D50: 28.9 | E50: 1.95 | F50: 268.7 | G50: =[1]!AgePb8Th2(C50/D50) -> 17816.03873 | H50: =[1]!AgePb76(B50/A50) -> 4418.109033 | I50: =[1]!AgePb6U8(A50/F50) -> 661.3690808 | J50: =[1]!AgePb7U5(B50/E50) -> 2274.957043 | M50: 4797.044665 | Q50: 9809
A51: 33.658 | B51: 16.609 | C51: 42.732 | D51: 202.3 | E51: 4.77 | F51: 658.2 | G51: =[1]!AgePb8Th2(C51/D51) -> 3873.41223 | H51: =[1]!AgePb76(B51/A51) -> 4221.801917 | I51: =[1]!AgePb6U8(A51/F51) -> 321.494896 | J51: =[1]!AgePb7U5(B51/E51) -> 1523.138373 | M51: 4794.446339 | Q51: 9578
A52: 19.076 | B52: 15.776 | C52: 38.604 | D52: 52.42 | E52: 0.16 | F52: 22.32 | G52: =[1]!AgePb8Th2(C52/D52) -> 11153.81526 | H52: =[1]!AgePb76(B52/A52) -> 4968.974946 | I52: =[1]!AgePb6U8(A52/F52) -> 3981.957262 | J52: =[1]!AgePb7U5(B52/E52) -> 4671.942087 | M52: 4782.090076 | Q52: 9009
A53: 24.914 | B53: 16.17 | C53: 41.854 | H53: =[1]!AgePb76(B53/A53) -> 4621.802293 | M53: 4769.981149 | Q53: 8839
A54: 20.481 | B54: 15.835 | C54: 40.653 | D54: 148.9 | E54: 0.32 | F54: 43.59 | G54: =[1]!AgePb8Th2(C54/D54) -> 4879.105187 | H54: =[1]!AgePb76(B54/A54) -> 4873.071444 | I54: =[1]!AgePb6U8(A54/F54) -> 2482.92717 | J54: =[1]!AgePb7U5(B54/E54) -> 3981.991047 | M54: 4762.505805 | Q54: 8592
A55: 22.419 | B55: 15.991 | C55: 42.594 | D55: 281.2 | E55: 0.23 | F55: 31.4 | G55: =[1]!AgePb8Th2(C55/D55) -> 2850.760004 | H55: =[1]!AgePb76(B55/A55) -> 4757.704484 | I55: =[1]!AgePb6U8(A55/F55) -> 3473.448327 | J55: =[1]!AgePb7U5(B55/E55) -> 4321.452677 | M55: 4757.704484 | Q55: 8385
A56: 20.56 | B56: 15.845 | C56: 40.031 | D56: 0.18 | E56: 0.017 | F56: 2.39 | G56: =[1]!AgePb8Th2(C56/D56) -> 109326.7108 | H56: =[1]!AgePb76(B56/A56) -> 4868.476887 | I56: =[1]!AgePb6U8(A56/F56) -> 14581.94727 | J56: =[1]!AgePb7U5(B56/E56) -> 6943.664768 | M56: 4753.633939 | Q56: 7847
A57: 21.307 | B57: 15.918 | C57: 40.616 | D57: 60.64 | E57: 0.19 | F57: 25.66 | G57: =[1]!AgePb8Th2(C57/D57) -> 10362.75335 | H57: =[1]!AgePb76(B57/A57) -> 4824.042026 | I57: =[1]!AgePb6U8(A57/F57) -> 3896.933881 | J57: =[1]!AgePb7U5(B57/E57) -> 4508.348733 | M57: 4731.76111 | Q57: 7290
A58: 19.943 | B58: 15.768 | C58: 39.554 | D58: 74.67 | E58: 0.21 | F58: 29.26 | G58: =[1]!AgePb8Th2(C58/D58) -> 8591.875244 | H58: =[1]!AgePb76(B58/A58) -> 4904.992355 | I58: =[1]!AgePb6U8(A58/F58) -> 3350.415482 | J58: =[1]!AgePb7U5(B58/E58) -> 4398.497765 | M58: 4683.698672 | Q58: 7131
A59: 20.988 | B59: 15.867 | C59: 40.218 | D59: 78.22 | E59: 0.081 | F59: 11.09 | G59: =[1]!AgePb8Th2(C59/D59) -> 8385.330926 | H59: =[1]!AgePb76(B59/A59) -> 4841.025091 | I59: =[1]!AgePb6U8(A59/F59) -> 6846.908207 | J59: =[1]!AgePb7U5(B59/E59) -> 5363.902679 | M59: 4626.499614 | Q59: 6944
A60: 19.11 | B60: 15.803 | C60: 38.951 | D60: 39.14 | E60: 0.18 | F60: 24.42 | G60: =[1]!AgePb8Th2(C60/D60) -> 13961.18952 | H60: =[1]!AgePb76(B60/A60) -> 4968.874378 | I60: =[1]!AgePb6U8(A60/F60) -> 3726.336096 | J60: =[1]!AgePb7U5(B60/E60) -> 4555.337448 | M60: 4621.802293 | Q60: 6847
A61: 22.298 | B61: 15.958 | C61: 40.895 | D61: 129.8 | E61: 0.19 | F61: 26.52 | G61: =[1]!AgePb8Th2(C61/D61) -> 5535.796543 | H61: =[1]!AgePb76(B61/A61) -> 4762.505805 | I61: =[1]!AgePb6U8(A61/F61) -> 3933.601496 | J61: =[1]!AgePb7U5(B61/E61) -> 4510.867046 | M61: 4518.79341 | Q61: 6696
A62: 21.918 | B62: 15.768 | C62: 40.603 | D62: 140.2 | E62: 0.48 | F62: 66.56 | G62: =[1]!AgePb8Th2(C62/D62) -> 5140.739083 | H62: =[1]!AgePb76(B62/A62) -> 4769.981149 | I62: =[1]!AgePb6U8(A62/F62) -> 1834.97268 | J62: =[1]!AgePb7U5(B62/E62) -> 3576.117175 | M62: 4418.109033 | Q62: 6505
A63: 20.94 | B63: 15.867 | C63: 40.873 | H63: =[1]!AgePb76(B63/A63) -> 4844.297886 | M63: 4369.787652 | Q63: 6460
A64: 20.288 | B64: 15.882 | C64: 40.006 | D64: 135.2 | E64: 0.3 | F64: 41.54 | G64: =[1]!AgePb8Th2(C64/D64) -> 5239.156359 | H64: =[1]!AgePb76(B64/A64) -> 4890.809308 | I64: =[1]!AgePb6U8(A64/F64) -> 2563.735812 | J64: =[1]!AgePb7U5(B64/E64) -> 4049.21797 | M64: 4254.066255 | Q64: 6275
A65: 20.064 | B65: 15.822 | C65: 39.015 | D65: 14.26 | E65: 0.21 | F65: 28.32 | G65: =[1]!AgePb8Th2(C65/D65) -> 26639.89415 | H65: =[1]!AgePb76(B65/A65) -> 4901.243215 | I65: =[1]!AgePb6U8(A65/F65) -> 3452.705313 | J65: =[1]!AgePb7U5(B65/E65) -> 4401.923616 | M65: 4221.801917 | Q65: 6177
A66: 18.688 | B66: 15.713 | C66: 38.632 | H66: =[1]!AgePb76(B66/A66) -> 4992.481511 | M66: 3693.77908 | Q66: 6068
A67: 19.187 | B67: 15.771 | C67: 38.986 | D67: 21.93 | E67: 0.13 | F67: 18.09 | G67: =[1]!AgePb8Th2(C67/D67) -> 20649.62716 | H67: =[1]!AgePb76(B67/A67) -> 4960.276726 | I67: =[1]!AgePb6U8(A67/F67) -> 4660.868429 | J67: =[1]!AgePb7U5(B67/E67) -> 4880.543056 | M67: 3056.259564 | Q67: 5536
A68: 32.977 | B68: 16.633 | C68: 38.592 | D68: 34.16 | E68: 1.44 | F68: 198.47 | G68: =[1]!AgePb8Th2(C68/D68) -> 15280.46545 | H68: =[1]!AgePb76(B68/A68) -> 4254.066255 | I68: =[1]!AgePb6U8(A68/F68) -> 990.8973436 | J68: =[1]!AgePb7U5(B68/E68) -> 2568.691677 | Q68: 5364
F69: Average | G69: =AVERAGE(G3:G68) -> 52321.5228 | H69: =AVERAGE(H3:H68) -> 4856.406737 | I69: =AVERAGE(I3:I68) -> 11883.70137 | J69: =AVERAGE(J3:J68) -> 5774.669048 | Q69: 5248
F70: Maximim | G70: =MAX(G3:G69) -> 199319.5867 | H70: =MAX(H3:H69) -> 6275.135486 | I70: =MAX(I3:I69) -> 48495.64456 | J70: =MAX(J3:J69) -> 12149.85967 | Q70: 5239
F71: Minimum | G71: =MIN(G3:G70) -> 881.9631418 | H71: =MIN(H3:H70) -> 3056.259564 | I71: =MIN(I3:I70) -> 173.5003268 | J71: =MIN(J3:J70) -> 848.0530418 | Q71: 5141
Q72: 5043
Q73: 5040
G74: Age | H74: Age | I74: Age | J74: Age | Q74: 5040
F75: Statistics | G75: 208Pb/232Th | H75: 207Pb/206Pb | I75: 206Pb/238U | J75: 207Pb/235U | Q75: 5040
F76: Average | G76: 52321.31129 | H76: 4856.406737 | I76: 11883.70137 | J76: 5774.669048 | Q76: 5040
F77: Maximim | G77: 199318.7809 | H77: 6275.135486 | I77: 48495.64456 | J77: 12149.85967 | Q77: 5039
F78: Minimum | G78: 881.9595766 | H78: 3056.259564 | I78: 173.5003268 | J78: 848.0530418 | Q78: 5039
F79: Difference | G79: =(G77-G78) -> 198436.8214 | H79: =(H77-H78) -> 3218.875922 | I79: =(I77-I78) -> 48322.14423 | J79: =(J77-J78) -> 11301.80663 | Q79: 5038
Q80: 5033
Q81: 5033
Q82: 5033
Q83: 5027
Q84: 5026
Q85: 5024
Q86: 5024
Q87: 5023
Q88: 5018
Q89: 5018
Q90: 5018
Q91: 5016
Q92: 5009
Q93: 4996
Q94: 4992
Q95: 4986
Q96: 4985
Q97: 4984
Q98: 4980
Q99: 4972
Q100: 4969
Q101: 4969
Q102: 4962
Q103: 4960
Q104: 4958
Q105: 4950
Q106: 4931
Q107: 4910
Q108: 4907
Q109: 4905
Q110: 4901
Q111: 4891
Q112: 4881
Q113: 4879
Q114: 4873
Q115: 4868
Q116: 4844
Q117: 4841
Q118: 4836
Q119: 4824
Q120: 4818

Sheet 232_Th_07
B1: Table 4 | H1: Age | K1: Age | L1: Age Ratio
A2: Sample | B2: 87Rb/86Sr | C2: 87Sr/86Sr | D2: (87Sr/86Sr)i | E2: 147Sm/144Nd | F2: 143Nd/144Nd | G2: (143Nd/144Nd)i | H2: 207Pb/206Pb | I2: 206Pb/204Pb | J2: 207Pb/204Pb | K2: 87Rb/86Sr | L2: 207Pb/87Rb
A3: 05MZL01 | B3: 0.4057 | C3: 0.70600814 | D3: 0.705085 | E3: 0.0961 | F3: 0.51260112 | G3: 0.512501 | H3: =[2]!AgePb76(J3/I3) -> 4999.709872 | I3: 18.5125 | J3: 15.6449 | K3: 160.0787793 | L3: =(H3/K3) -> 31.23280857
A4: 05MZL02 | B4: 0.4163 | C4: 0.70602515 | D4: 0.705078 | E4: 0.0953 | F4: 0.51258815 | G4: 0.512488 | H4: =[2]!AgePb76(J4/I4) -> 5000.504532 | I4: 18.5265 | J4: 15.6655 | K4: 160.0602946 | L4: =(H4/K4) -> 31.24138029
A5: 05MZL06 | B5: 0.2567 | C5: 0.70604912 | D5: 0.705465 | E5: 0.1015 | F5: 0.51256513 | G5: 0.512459 | H5: =[2]!AgePb76(J5/I5) -> 4994.925314 | I5: 18.5661 | J5: 15.6374 | K5: 160.0838036 | L5: 31.2019405
A6: 05MZL08 | B6: 0.3112 | C6: 0.70618623 | D6: 0.705478 | E6: 0.1122 | F6: 0.51253512 | G6: 0.512417 | H6: =[2]!AgePb76(J6/I6) -> 4987.882209 | I6: 18.5718 | J6: 15.5648 | K6: 160.1053525 | L6: 31.15375053
A7: 05MZL09 | B7: 0.2965 | C7: 0.70619114 | D7: 0.705516 | E7: 0.1131 | F7: 0.51252313 | G7: 0.512405 | H7: =[2]!AgePb76(J7/I7) -> 4988.351398 | I7: 18.5764 | J7: 15.5738 | K7: 160.1916946 | L7: 31.13988781
A8: 05MZL11 | B8: 0.2967 | C8: 0.70623415 | D8: 0.705559 | E8: 0.1126 | F8: 0.51254412 | G8: 0.512427 | H8: =[2]!AgePb76(J8/I8) -> 4989.605426 | I8: 18.5805 | J8: 15.591 | K8: 160.0862034 | L8: 31.16824137
A9: 05MZL13 | B9: 9.575 | C9: 0.73567012 | D9: 0.714572 | E9: 0.1192 | F9: 0.51251115 | G9: 0.51239 | H9: =[2]!AgePb76(J9/I9) -> 4986.9125 | I9: 18.7969 | J9: 15.7427 | K9: 155.0214432 | L9: 32.16917864
A10: 05MZL14 | B10: 18.197 | C10: 0.75143512 | D10: 0.711339 | E10: 0.1161 | F10: 0.51251514 | G10: 0.512398 | H10: =[2]!AgePb76(J10/I10) -> 4990.18614 | I10: 18.6632 | J10: 15.6668 | K10: 155.0205798 | L10: 32.19047526
A11: 05MZL19 | B11: 0.233 | C11: 0.70597914 | D11: 0.705485 | E11: 0.1043 | F11: 0.51255914 | G11: 0.512458 | H11: =[2]!AgePb76(J11/I11) -> 4990.867621 | I11: 18.5628 | J11: 15.59 | K11: 149.2103033 | L11: 33.44854552
A12: 05MZL20 | B12: 0.2373 | C12: 0.70596414 | D12: 0.705461 | E12: 0.1021 | F12: 0.51255613 | G12: 0.512456 | H12: =[2]!AgePb76(J12/I12) -> 4989.42073 | I12: 18.6325 | J12: 15.6326 | K12: 149.1749632 | L12: 33.44677031
A13: 05MZL22 | B13: 0.2144 | C13: 0.70626814 | D13: 0.705814 | E13: 0.103 | F13: 0.51254113 | G13: 0.512441 | H13: =[2]!AgePb76(J13/I13) -> 4993.712062 | I13: 18.5102 | J13: 15.577 | K13: 149.0288182 | L13: 33.50836518
A14: 05TH03 | B14: 1.2962 | C14: 0.70789512 | D14: 0.7055 | E14: 0.105 | F14: 0.51250512 | G14: 0.512416 | H14: =[2]!AgePb76(J14/I14) -> 4988.629519 | I14: 18.6597 | J14: 15.6467 | K14: 130.0226941 | L14: 38.36737543
A15: 05TH05 | B15: 0.2384 | C15: 0.70594714 | D15: 0.705506 | E15: 0.1184 | F15: 0.51250312 | G15: 0.512402 | H15: =[2]!AgePb76(J15/I15) -> 4994.735967 | I15: 18.4623 | J15: 15.5479 | K15: 130.2067564 | L15: 38.36003679
A16: 05TH12 | B16: 0.3458 | C16: 0.70674712 | D16: 0.706108 | E16: 0.1074 | F16: 0.51256718 | G16: 0.512476 | H16: =[2]!AgePb76(J16/I16) -> 4988.734187 | I16: 18.5386 | J16: 15.5463 | K16: 130.0532547 | L16: 38.35916447
A17: 05TH14 | B17: 0.2629 | C17: 0.7061911 | D17: 0.705705 | E17: 0.1081 | F17: 0.51249415 | G17: 0.512402 | H17: =[2]!AgePb76(J17/I17) -> 4987.53631 | I17: 18.5478 | J17: 15.5409 | K17: 130.106405 | L17: 38.3342873
A18: 05TH16 | B18: 0.2175 | C18: 0.7063681 | D18: 0.705966 | E18: 0.1099 | F18: 0.51252012 | G18: 0.512427 | H18: =[2]!AgePb76(J18/I18) -> 4986.03517 | I18: 18.5802 | J18: 15.5516 | K18: 130.0883812 | L18: 38.32805915
A19: 05TH17 | B19: 0.166 | C19: 0.70629714 | D19: 0.70599 | E19: 0.1107 | F19: 0.51249312 | G19: 0.512399 | H19: =[2]!AgePb76(J19/I19) -> 4988.506468 | I19: 18.5795 | J19: 15.5781 | K19: 130.1942078 | L19: 38.31588635
A20: 05TH21 | B20: 0.0969 | C20: 0.70700213 | D20: 0.706823 | E20: 0.0673 | F20: 0.51254913 | G20: 0.512492 | H20: =[2]!AgePb76(J20/I20) -> 5247.867513 | I20: 15.4697 | J20: 15.5857 | K20: 130.079325 | L20: 40.3435943
A21: 05TH23 | B21: 0.1123 | C21: 0.7059521 | D21: 0.705744 | E21: 0.1241 | F21: 0.51252614 | G21: 0.512421 | H21: =[2]!AgePb76(J21/I21) -> 4998.785534 | I21: 18.4354 | J21: 15.5696 | K21: 130.3932414 | L21: 38.33623185
A22: 05TH25 | B22: 0.0662 | C22: 0.7058361 | D22: 0.705714 | E22: 0.1102 | F22: 0.51253711 | G22: 0.512443 | H22: =[2]!AgePb76(J22/I22) -> 4992.459586 | I22: 18.515 | J22: 15.5673 | K22: 129.7843451 | L22: 38.46734815
A23: 05GH11 | B23: 3.9616 | C23: 0.71433212 | D23: 0.707407 | E23: 0.1074 | F23: 0.51263612 | G23: 0.51255 | H23: =[2]!AgePb76(J23/I23) -> 4984.624699 | I23: 18.6874 | J23: 15.6258 | K23: 123.0105064 | L23: 40.52194275
A24: 05GH13 | B24: 61.802 | C24: 0.84732012 | D24: 0.739281 | E24: 0.1045 | F24: 0.51263413 | G24: 0.51255 | H24: =[2]!AgePb76(J24/I24) -> 4979.989293 | I24: 18.6321 | J24: 15.5288 | K24: 123.0166838 | L24: 40.48222679
A25: 05GH14 | B25: 75.836 | C25: 0.86386213 | D25: 0.73129 | E25: 0.1044 | F25: 0.51261513 | G25: 0.512531 | H25: =[2]!AgePb76(J25/I25) -> 4976.741107 | I25: 18.6798 | J25: 15.533 | K25: 123.0162049 | L25: 40.45597986
A26: GH04-1 | B26: 0.1192 | C26: 0.70477539 | D26: 0.704566 | E26: 0.1203 | F26: 0.51276213 | G26: 0.512665 | H26: =[2]!AgePb76(J26/I26) -> 4998.767497 | I26: 18.3415 | J26: 15.4901 | K26: 123.6127733 | L26: 40.4389236
A27: GH04-2 | B27: 0.08 | C27: 0.70537414 | D27: 0.705234 | E27: 0.0999 | F27: 0.51263812 | G27: 0.512558 | H27: =[2]!AgePb76(J27/I27) -> 4997.038393 | I27: 18.3603 | J27: 15.4871 | K27: 123.2698457 | L27: 40.53739471
A28: GH04-3 | B28: 0.956 | C28: 0.70687911 | D28: 0.705207 | E28: 0.1579 | F28: 0.51266312 | G28: 0.512536 | H28: =[2]!AgePb76(J28/I28) -> 4993.184036 | I28: 18.4353 | J28: 15.5082 | K28: 123.0813524 | L28: 40.56816032
A29: GH04-4 | B29: 0.2013 | C29: 0.70548112 | D29: 0.705129 | E29: 0.1191 | F29: 0.51267711 | G29: 0.512581 | H29: =[2]!AgePb76(J29/I29) -> 4995.273355 | I29: 18.3816 | J29: 15.4858 | K29: 123.0926697 | L29: 40.58140397
A30: ERBY04-1 | B30: 0.2388 | C30: 0.70539012 | D30: 0.704915 | E30: 0.1075 | F30: 0.51265613 | G30: 0.512558 | H30: =[2]!AgePb76(J30/I30) -> 4996.830205 | I30: 18.3707 | J30: 15.4936 | K30: 139.991654 | L30: 35.69377217
A31: ERBY04-2 | B31: 0.2568 | C31: 0.70544312 | D31: 0.704932 | E31: 0.0896 | F31: 0.51264713 | G31: 0.512565 | H31: =[2]!AgePb76(J31/I31) -> 4995.486987 | I31: 18.3945 | J31: 15.499 | K31: 140.0428218 | L31: 35.67113918
A32: ERBY04-3 | B32: 0.3241 | C32: 0.7055211 | D32: 0.704876 | H32: =[2]!AgePb76(J32/I32) -> 4997.555921 | I32: 18.351 | J32: 15.4849 | K32: 140.0493147 | L32: 35.6842583
A33: ERBY04-4 | B33: 0.3635 | C33: 0.7057328 | D33: 0.705008 | E33: 0.0866 | F33: 0.51264712 | G33: 0.512568 | H33: =[2]!AgePb76(J33/I33) -> 4997.542424 | I33: 18.3571 | J33: 15.4899 | K33: 140.2962249 | L33: 35.62136064
G34: Average | H34: =AVERAGE(H3:H33) -> 4999.948451 | K34: =AVERAGE(K3:K33) -> 139.0797064
G35: Maximim | H35: =MAX(H3:H34) -> 5247.867513 | K35: =MAX(K3:K34) -> 160.1916946
D36: Age | E36: Age | G36: Minimum | H36: =MIN(H3:H35) -> 4976.741107 | K36: =MIN(K3:K35) -> 123.0105064
C37: Statistics | D37: 207Pb/206Pb | E37: 87Rb/86Sr
C38: Average | D38: 4999.948451 | E38: 139.0797064
C39: Maximim | D39: 5247.867513 | E39: 160.1916946
C40: Minimum | D40: 4976.741107 | E40: 123.0105064
C41: Difference | D41: =(D39-D40) -> 271.1264053 | E41: =(E39-E40) -> 37.18118816
A44: Rubidium | B44: Table 4 | K44: Iso_Plot_018.pdf
A45: Strontium | B45: Initial | C45: Today | D45: Today | E45: The Ratio | F45: Half | G45: Decay | H45: 2.303/Delta | I45: Age | J45: Age | K45: Age
A46: Dating | B46: 87Sr/86Sr | C46: 87Sr/86Sr | D46: 87Rb/86Sr | E46: Plus One | F46: Life | G46: Constant | H46: Constant | I46: Years | J46: Million Years | K46: Billion Years
B47: 0.705085 | C47: 0.70600814 | D47: 0.4057 | E47: =1+((C47-B47)/D47) -> 1.002275425 | F47: 48800000000 | G47: =(0.693/F47) -> 1.420081967e-11 | H47: =(2.303/G47) -> 1.621737374e+11 | I47: =(LOG(E47))*(H47) -> 160078779.3 | J47: =(I47/1000000) -> 160.0787793
B48: 0.705078 | C48: 0.70602515 | D48: 0.4163 | E48: 1.002275162 | F48: 48800000000 | G48: 1.420081967e-11 | H48: 1.621737374e+11 | I48: 160060294.6 | J48: 160.0602946
B49: 0.705465 | C49: 0.70604912 | D49: 0.2567 | E49: 1.002275497 | F49: 48800000000 | G49: 1.420081967e-11 | H49: 1.621737374e+11 | I49: 160083803.6 | J49: 160.0838036
B50: 0.705478 | C50: 0.70618623 | D50: 0.3112 | E50: =1+((C50-B50)/D50) -> 1.002275803 | F50: 48800000000 | G50: =(0.693/F50) -> 1.420081967e-11 | H50: =(2.303/G50) -> 1.621737374e+11 | I50: =(LOG(E50))*(H50) -> 160105352.5 | J50: =(I50/1000000) -> 160.1053525
B51: 0.705516 | C51: 0.70619114 | D51: 0.2965 | E51: 1.002277032 | F51: 48800000000 | G51: 1.420081967e-11 | H51: 1.621737374e+11 | I51: 160191694.6 | J51: 160.1916946
B52: 0.705559 | C52: 0.70623415 | D52: 0.2967 | E52: 1.002275531 | F52: 48800000000 | G52: 1.420081967e-11 | H52: 1.621737374e+11 | I52: 160086203.4 | J52: 160.0862034
B53: 0.714572 | C53: 0.73567012 | D53: 9.575 | E53: 1.002203459 | F53: 48800000000 | G53: 1.420081967e-11 | H53: 1.621737374e+11 | I53: 155021443.2 | J53: 155.0214432
B54: 0.711339 | C54: 0.75143512 | D54: 18.197 | E54: 1.002203447 | F54: 48800000000 | G54: 1.420081967e-11 | H54: 1.621737374e+11 | I54: 155020579.8 | J54: 155.0205798
B55: 0.705485 | C55: 0.70597914 | D55: 0.233 | E55: 1.002120773 | F55: 48800000000 | G55: 1.420081967e-11 | H55: 1.621737374e+11 | I55: 149210303.3 | J55: 149.2103033
B56: 0.705461 | C56: 0.70596414 | D56: 0.2373 | E56: 1.00212027 | F56: 48800000000 | G56: 1.420081967e-11 | H56: 1.621737374e+11 | I56: 149174963.2 | J56: 149.1749632
B57: 0.705814 | C57: 0.70626814 | D57: 0.2144 | E57: 1.00211819 | F57: 48800000000 | G57: 1.420081967e-11 | H57: 1.621737374e+11 | I57: 149028818.2 | J57: 149.0288182
B58: 0.7055 | C58: 0.70789512 | D58: 1.2962 | E58: 1.001847801 | F58: 48800000000 | G58: 1.420081967e-11 | H58: 1.621737374e+11 | I58: 130022694.1 | J58: 130.0226941
B59: 0.705506 | C59: 0.70594714 | D59: 0.2384 | E59: 1.001850419 | F59: 48800000000 | G59: 1.420081967e-11 | H59: 1.621737374e+11 | I59: 130206756.4 | J59: 130.2067564
B60: 0.706108 | C60: 0.70674712 | D60: 0.3458 | E60: 1.001848236 | F60: 48800000000 | G60: 1.420081967e-11 | H60: 1.621737374e+11 | I60: 130053254.7 | J60: 130.0532547
B61: 0.705705 | C61: 0.7061911 | D61: 0.2629 | E61: 1.001848992 | F61: 48800000000 | G61: 1.420081967e-11 | H61: 1.621737374e+11 | I61: 130106405 | J61: 130.106405
B62: 0.705966 | C62: 0.7063681 | D62: 0.2175 | E62: 1.001848736 | F62: 48800000000 | G62: 1.420081967e-11 | H62: 1.621737374e+11 | I62: 130088381.2 | J62: 130.0883812
B63: 0.70599 | C63: 0.70629714 | D63: 0.166 | E63: 1.001850241 | F63: 48800000000 | G63: 1.420081967e-11 | H63: 1.621737374e+11 | I63: 130194207.8 | J63: 130.1942078
B64: 0.706823 | C64: 0.70700213 | D64: 0.0969 | E64: 1.001848607 | F64: 48800000000 | G64: 1.420081967e-11 | H64: 1.621737374e+11 | I64: 130079325 | J64: 130.079325
B65: 0.705744 | C65: 0.7059521 | D65: 0.1123 | E65: 1.001853072 | F65: 48800000000 | G65: 1.420081967e-11 | H65: 1.621737374e+11 | I65: 130393241.4 | J65: 130.3932414
B66: 0.705714 | C66: 0.7058361 | D66: 0.0662 | E66: 1.001844411 | F66: 48800000000 | G66: 1.420081967e-11 | H66: 1.621737374e+11 | I66: 129784345.1 | J66: 129.7843451
B67: 0.707407 | C67: 0.71433212 | D67: 3.9616 | E67: 1.001748061 | F67: 48800000000 | G67: 1.420081967e-11 | H67: 1.621737374e+11 | I67: 123010506.4 | J67: 123.0105064
B68: 0.739281 | C68: 0.84732012 | D68: 61.802 | E68: 1.001748149 | F68: 48800000000 | G68: 1.420081967e-11 | H68: 1.621737374e+11 | I68: 123016683.8 | J68: 123.0166838
B69: 0.73129 | C69: 0.86386213 | D69: 75.836 | E69: 1.001748142 | F69: 48800000000 | G69: 1.420081967e-11 | H69: 1.621737374e+11 | I69: 123016204.9 | J69: 123.0162049
B70: 0.704566 | C70: 0.70477539 | D70: 0.1192 | E70: 1.001756628 | F70: 48800000000 | G70: 1.420081967e-11 | H70: 1.621737374e+11 | I70: 123612773.3 | J70: 123.6127733
B71: 0.705234 | C71: 0.70537414 | D71: 0.08 | E71: 1.00175175 | F71: 48800000000 | G71: 1.420081967e-11 | H71: 1.621737374e+11 | I71: 123269845.7 | J71: 123.2698457
B72: 0.705207 | C72: 0.70687911 | D72: 0.956 | E72: 1.001749069 | F72: 48800000000 | G72: 1.420081967e-11 | H72: 1.621737374e+11 | I72: 123081352.4 | J72: 123.0813524
B73: 0.705129 | C73: 0.70548112 | D73: 0.2013 | E73: 1.00174923 | F73: 48800000000 | G73: 1.420081967e-11 | H73: 1.621737374e+11 | I73: 123092669.7 | J73: 123.0926697
B74: 0.704915 | C74: 0.70539012 | D74: 0.2388 | E74: 1.001989615 | F74: 48800000000 | G74: 1.420081967e-11 | H74: 1.621737374e+11 | I74: 139991654 | J74: 139.991654
B75: 0.704932 | C75: 0.70544312 | D75: 0.2568 | E75: 1.001990343 | F75: 48800000000 | G75: 1.420081967e-11 | H75: 1.621737374e+11 | I75: 140042821.8 | J75: 140.0428218
B76: 0.704876 | C76: 0.7055211 | D76: 0.3241 | E76: 1.001990435 | F76: 48800000000 | G76: 1.420081967e-11 | H76: 1.621737374e+11 | I76: 140049314.7 | J76: 140.0493147
B77: 0.705008 | C77: 0.7057328 | D77: 0.3635 | E77: 1.001993948 | F77: 48800000000 | G77: 1.420081967e-11 | H77: 1.621737374e+11 | I77: 140296224.9 | J77: 140.2962249
A81: Neodymium | B81: Table 4 | K81: Rubidium_010.pdf
A82: Samarium | B82: Initial | C82: Today | D82: Today | E82: The Ratio | F82: Half | G82: Decay | H82: 2.303/Delta | I82: Age | J82: Age | K82: Age
A83: Dating | B83: 143Nd/144Nd | C83: 143Nd/144Nd | D83: 147Sm/144Nd | E83: Plus One | F83: Life | G83: Constant | H83: Constant | I83: Years | J83: Million Years | K83: Billion Years
B84: 0.512501 | C84: 0.51260112 | D84: 0.0961 | E84: =1+((C84-B84)/D84) -> 1.001041831 | F84: 106000000000 | G84: =(0.693/F84) -> 6.537735849e-12 | H84: =(2.303/G84) -> 3.522626263e+11 | I84: =(LOG(E84))*(H84) -> 159302356.6 | J84: =(I84/1000000) -> 159.3023566 | K84: =(J84/1000) -> 0.1593023566
B85: 0.512488 | C85: 0.51258815 | D85: 0.0953 | E85: =1+((C85-B85)/D85) -> 1.001050892 | F85: 106000000000 | G85: 6.537735849e-12 | H85: =(2.303/G85) -> 3.522626263e+11 | I85: =(LOG(E85))*(H85) -> 160687034 | J85: =(I85/1000000) -> 160.687034 | K85: =(J85/1000) -> 0.160687034
B86: 0.512459 | C86: 0.51256513 | D86: 0.1015 | E86: 1.001045616 | F86: 106000000000 | G86: 6.537735849e-12 | H86: 3.522626263e+11 | I86: 159880702.6 | J86: 159.8807026 | K86: 0.1598807026
B87: 0.512417 | C87: 0.51253512 | D87: 0.1122 | E87: 1.001052763 | F87: 106000000000 | G87: 6.537735849e-12 | H87: 3.522626263e+11 | I87: 160972970 | J87: 160.97297 | K87: 0.16097297
B88: 0.512405 | C88: 0.51252313 | D88: 0.1131 | E88: =1+((C88-B88)/D88) -> 1.001044474 | F88: 106000000000 | G88: =(0.693/F88) -> 6.537735849e-12 | H88: =(2.303/G88) -> 3.522626263e+11 | I88: =(LOG(E88))*(H88) -> 159706198.8 | J88: =(I88/1000000) -> 159.7061988 | K88: =(J88/1000) -> 0.1597061988
B89: 0.512427 | C89: 0.51254412 | D89: 0.1126 | E89: 1.001040142 | F89: 106000000000 | G89: 6.537735849e-12 | H89: 3.522626263e+11 | I89: 159044182.1 | J89: 159.0441821 | K89: 0.1590441821
B90: 0.51239 | C90: 0.51251115 | D90: 0.1192 | E90: 1.001016359 | F90: 106000000000 | G90: 6.537735849e-12 | H90: 3.522626263e+11 | I90: 155409454.8 | J90: 155.4094548 | K90: 0.1554094548
B91: 0.512398 | C91: 0.51251514 | D91: 0.1161 | E91: 1.001008958 | F91: 106000000000 | G91: 6.537735849e-12 | H91: 3.522626263e+11 | I91: 154278312.4 | J91: 154.2783124 | K91: 0.1542783124
B92: 0.512458 | C92: 0.51255914 | D92: 0.1043 | E92: 1.000969703 | F92: 106000000000 | G92: 6.537735849e-12 | H92: 3.522626263e+11 | I92: 148278791.4 | J92: 148.2787914 | K92: 0.1482787914
B93: 0.512456 | C93: 0.51255613 | D93: 0.1021 | E93: 1.000980705 | F93: 106000000000 | G93: 6.537735849e-12 | H93: 3.522626263e+11 | I93: 149960363.2 | J93: 149.9603632 | K93: 0.1499603632
B94: 0.512441 | C94: 0.51254113 | D94: 0.103 | E94: 1.000972136 | F94: 106000000000 | G94: 6.537735849e-12 | H94: 3.522626263e+11 | I94: 148650666.3 | J94: 148.6506663 | K94: 0.1486506663
B95: 0.512416 | C95: 0.51250512 | D95: 0.105 | E95: 1.000848762 | F95: 106000000000 | G95: 6.537735849e-12 | H95: 3.522626263e+11 | I95: 129793372.6 | J95: 129.7933726 | K95: 0.1297933726
B96: 0.512402 | C96: 0.51250312 | D96: 0.1184 | E96: 1.000854054 | F96: 106000000000 | G96: 6.537735849e-12 | H96: 3.522626263e+11 | I96: 130602307.1 | J96: 130.6023071 | K96: 0.1306023071
B97: 0.512476 | C97: 0.51256718 | D97: 0.1074 | E97: 1.000848976 | F97: 106000000000 | G97: 6.537735849e-12 | H97: 3.522626263e+11 | I97: 129826066.5 | J97: 129.8260665 | K97: 0.1298260665
B98: 0.512402 | C98: 0.51249415 | D98: 0.1081 | E98: 1.000852451 | F98: 106000000000 | G98: 6.537735849e-12 | H98: 3.522626263e+11 | I98: 130357338.2 | J98: 130.3573382 | K98: 0.1303573382
B99: 0.512427 | C99: 0.51252012 | D99: 0.1099 | E99: 1.000847316 | F99: 106000000000 | G99: 6.537735849e-12 | H99: 3.522626263e+11 | I99: 129572317.8 | J99: 129.5723178 | K99: 0.1295723178
B100: 0.512399 | C100: 0.51249312 | D100: 0.1107 | E100: 1.000850226 | F100: 106000000000 | G100: 6.537735849e-12 | H100: 3.522626263e+11 | I100: 130017143 | J100: 130.017143 | K100: 0.130017143
B101: 0.512492 | C101: 0.51254913 | D101: 0.0673 | E101: 1.000848886 | F101: 106000000000 | G101: 6.537735849e-12 | H101: 3.522626263e+11 | I101: 129812278.2 | J101: 129.8122782 | K101: 0.1298122782
B102: 0.512421 | C102: 0.51252614 | D102: 0.1241 | E102: 1.00084722 | F102: 106000000000 | G102: 6.537735849e-12 | H102: 3.522626263e+11 | I102: 129557680.6 | J102: 129.5576806 | K102: 0.1295576806
B103: 0.512443 | C103: 0.51253711 | D103: 0.1102 | E103: 1.000853993 | F103: 106000000000 | G103: 6.537735849e-12 | H103: 3.522626263e+11 | I103: 130592935 | J103: 130.592935 | K103: 0.130592935
B104: 0.51255 | C104: 0.51263612 | D104: 0.1074 | E104: 1.000801862 | F104: 106000000000 | G104: 6.537735849e-12 | H104: 3.522626263e+11 | I104: 122624304.1 | J104: 122.6243041 | K104: 0.1226243041
B105: 0.51255 | C105: 0.51263413 | D105: 0.1045 | E105: 1.000805072 | F105: 106000000000 | G105: 6.537735849e-12 | H105: 3.522626263e+11 | I105: 123114928.7 | J105: 123.1149287 | K105: 0.1231149287
B106: 0.512531 | C106: 0.51261513 | D106: 0.1044 | E106: 1.000805843 | F106: 106000000000 | G106: 6.537735849e-12 | H106: 3.522626263e+11 | I106: 123232807.4 | J106: 123.2328074 | K106: 0.1232328074
B107: 0.512665 | C107: 0.51276213 | D107: 0.1203 | E107: 1.000807398 | F107: 106000000000 | G107: 6.537735849e-12 | H107: 3.522626263e+11 | I107: 123470548.1 | J107: 123.4705481 | K107: 0.1234705481
B108: 0.512558 | C108: 0.51263812 | D108: 0.0999 | E108: 1.000802002 | F108: 106000000000 | G108: 6.537735849e-12 | H108: 3.522626263e+11 | I108: 122645675.1 | J108: 122.6456751 | K108: 0.1226456751
B109: 0.512536 | C109: 0.51266312 | D109: 0.1579 | E109: 1.000805066 | F109: 106000000000 | G109: 6.537735849e-12 | H109: 3.522626263e+11 | I109: 123114122.7 | J109: 123.1141227 | K109: 0.1231141227
B110: 0.512581 | C110: 0.51267711 | D110: 0.1191 | E110: 1.000806969 | F110: 106000000000 | G110: 6.537735849e-12 | H110: 3.522626263e+11 | I110: 123404933.8 | J110: 123.4049338 | K110: 0.1234049338
B111: 0.512558 | C111: 0.51265613 | D111: 0.1075 | E111: 1.000912837 | F111: 106000000000 | G111: 6.537735849e-12 | H111: 3.522626263e+11 | I111: 139587352.4 | J111: 139.5873524 | K111: 0.1395873524
B112: 0.512565 | C112: 0.51264713 | D112: 0.0896 | E112: 1.000916629 | F112: 106000000000 | G112: 6.537735849e-12 | H112: 3.522626263e+11 | I112: 140166983 | J112: 140.166983 | K112: 0.140166983
B113: 0.512568 | C113: 0.51264712 | D113: 0.0866 | E113: 1.000913626 | F113: 106000000000 | G113: 6.537735849e-12 | H113: 3.522626263e+11 | I113: 139707895.5 | J113: 139.7078955 | K113: 0.1397078955
A118: Table 4
A119: Sample | B119: 206Pb/204Pb | C119: 207Pb/204Pb | D119: Age
A120: 05MZL01 | B120: 18.5125 | C120: 15.6449 | D120: =[1]!AgePb76(C120/B120) -> 4999.709872
A121: 05MZL02 | B121: 18.5265 | C121: 15.6655 | D121: =[1]!AgePb76(C121/B121) -> 5000.504532
A122: 05MZL06 | B122: 18.5661 | C122: 15.6374 | D122: =[1]!AgePb76(C122/B122) -> 4994.925314
A123: 05MZL08 | B123: 18.5718 | C123: 15.5648 | D123: =[1]!AgePb76(C123/B123) -> 4987.882209
A124: 05MZL09 | B124: 18.5764 | C124: 15.5738 | D124: =[1]!AgePb76(C124/B124) -> 4988.351398
A125: 05MZL11 | B125: 18.5805 | C125: 15.591 | D125: =[1]!AgePb76(C125/B125) -> 4989.605426
A126: 05MZL13 | B126: 18.7969 | C126: 15.7427 | D126: =[1]!AgePb76(C126/B126) -> 4986.9125
A127: 05MZL14 | B127: 18.6632 | C127: 15.6668 | D127: =[1]!AgePb76(C127/B127) -> 4990.18614
A128: 05MZL19 | B128: 18.5628 | C128: 15.59 | D128: =[1]!AgePb76(C128/B128) -> 4990.867621
A129: 05MZL20 | B129: 18.6325 | C129: 15.6326 | D129: =[1]!AgePb76(C129/B129) -> 4989.42073
A130: 05MZL22 | B130: 18.5102 | C130: 15.577 | D130: =[1]!AgePb76(C130/B130) -> 4993.712062
A131: 05TH03 | B131: 18.6597 | C131: 15.6467 | D131: =[1]!AgePb76(C131/B131) -> 4988.629519
A132: 05TH05 | B132: 18.4623 | C132: 15.5479 | D132: =[1]!AgePb76(C132/B132) -> 4994.735967
A133: 05TH12 | B133: 18.5386 | C133: 15.5463 | D133: =[1]!AgePb76(C133/B133) -> 4988.734187
A134: 05TH14 | B134: 18.5478 | C134: 15.5409 | D134: =[1]!AgePb76(C134/B134) -> 4987.53631
A135: 05TH16 | B135: 18.5802 | C135: 15.5516 | D135: =[1]!AgePb76(C135/B135) -> 4986.03517
A136: 05TH17 | B136: 18.5795 | C136: 15.5781 | D136: =[1]!AgePb76(C136/B136) -> 4988.506468
A137: 05TH21 | B137: 15.4697 | C137: 15.5857 | D137: =[1]!AgePb76(C137/B137) -> 5247.867513
A138: 05TH23 | B138: 18.4354 | C138: 15.5696 | D138: =[1]!AgePb76(C138/B138) -> 4998.785534
A139: 05TH25 | B139: 18.515 | C139: 15.5673 | D139: =[1]!AgePb76(C139/B139) -> 4992.459586
A140: 05GH11 | B140: 18.6874 | C140: 15.6258 | D140: =[1]!AgePb76(C140/B140) -> 4984.624699
A141: 05GH13 | B141: 18.6321 | C141: 15.5288 | D141: =[1]!AgePb76(C141/B141) -> 4979.989293
A142: 05GH14 | B142: 18.6798 | C142: 15.533 | D142: =[1]!AgePb76(C142/B142) -> 4976.741107
A143: GH04-1 | B143: 18.3415 | C143: 15.4901 | D143: =[1]!AgePb76(C143/B143) -> 4998.767497
A144: GH04-2 | B144: 18.3603 | C144: 15.4871 | D144: =[1]!AgePb76(C144/B144) -> 4997.038393
A145: GH04-3 | B145: 18.4353 | C145: 15.5082 | D145: =[1]!AgePb76(C145/B145) -> 4993.184036
A146: GH04-4 | B146: 18.3816 | C146: 15.4858 | D146: =[1]!AgePb76(C146/B146) -> 4995.273355
A147: ER04-1 | B147: 18.3707 | C147: 15.4936 | D147: =[1]!AgePb76(C147/B147) -> 4996.830205
A148: ER04-2 | B148: 18.3945 | C148: 15.499 | D148: =[1]!AgePb76(C148/B148) -> 4995.486987
A149: ER04-3 | D149: .
A150: ER04-4 | B150: 18.3571 | C150: 15.4899 | D150: =[1]!AgePb76(C150/B150) -> 4997.542424

Sheet 232_Th_08
A1: Table 1 | E1: Age | I1: Age | K1: Age | M1: Age | O1: Age | P1: Age
A2: Sample | B2: Pb 204/206 | C2: Pb 204/206 | D2: Pb 207/206 | E2: Pb 207/206 | F2: Pb 208/206 | G2: 232Th/238U | H2: 207Pb/235U | I2: 207Pb/235U | J2: 206Pb/238U | K2: 206Pb/238U | L2: Pb207/U235 | M2: 207Pb/235U | N2: Pb206/U238 | O2: Pb206/U238 | P2: Pb208/232Th | Q2: Pb208/U238
A3: RBT33A.13 | B3: 0.0295 | C3: 0.0259 | D3: 0.4 | E3: =[2]!AgePb76(D3) -> 3909.07842 | F3: 1.01 | G3: 0.0275 | H3: 3.68 | I3: =[2]!AgePb7U5(H3) -> 1567.038747 | J3: 0.0668 | K3: =[2]!AgePb6U8(J3) -> 416.8477894 | L3: . | N3: 0.0344 | O3: =[2]!AgePb6U8(N3) -> 218.0277098 | P3: =[2]!AgePb8Th2(Q3/G3) -> 127165.7361 | Q3: =(1/F3)/J3 -> 14.82184147
A4: RBT33A.46 | B4: 0.0197 | C4: 0.0131 | D4: 0.276 | E4: =[2]!AgePb76(D4) -> 3340.445665 | F4: 0.514 | G4: 0.0411 | H4: 2.05 | I4: =[2]!AgePb7U5(H4) -> 1132.295873 | J4: 0.0538 | K4: =[2]!AgePb6U8(J4) -> 337.8093718 | L4: 0.537 | M4: =[2]!AgePb7U5(L4) -> 436.4446003 | N4: 0.0406 | O4: =[2]!AgePb6U8(N4) -> 256.5509742 | P4: =[2]!AgePb8Th2(Q4/G4) -> 137057.0366 | Q4: =(1/F4)/J4 -> 36.16218015
A5: RBT33.031 | B5: 0.056 | C5: 0.0509 | D5: 0.776 | E5: =[2]!AgePb76(D5) -> 4878.312483 | F5: 1.97 | G5: 0.108 | H5: 67 | I5: =[2]!AgePb7U5(H5) -> 4284.416617 | J5: 0.627 | K5: =[2]!AgePb6U8(J5) -> 3137.713639 | L5: . | N5: . | P5: =[2]!AgePb8Th2(Q5/G5) -> 43246.5219 | Q5: 0.8095920466
A6: RBT33.028 | B6: 0.0198 | C6: 0.0358 | D6: 0.438 | E6: =[2]!AgePb76(D6) -> 4044.956326 | F6: 1.46 | G6: 0.748 | H6: 5.95 | I6: =[2]!AgePb7U5(H6) -> 1968.565426 | J6: 0.0985 | K6: =[2]!AgePb6U8(J6) -> 605.612331 | L6: . | N6: 0.0325 | O6: =[2]!AgePb6U8(N6) -> 206.1759604 | P6: =[2]!AgePb8Th2(Q6/G6) -> 47130.52883 | Q6: 6.953619359
A7: RBT33.027 | B7: 0.0557 | C7: 0.0534 | D7: 0.808 | E7: =[2]!AgePb76(D7) -> 4935.903784 | F7: 2.06 | G7: 0.0507 | H7: 28 | I7: =[2]!AgePb7U5(H7) -> 3419.095121 | J7: 0.251 | K7: =[2]!AgePb6U8(J7) -> 1443.630823 | L7: 2.69 | M7: =[2]!AgePb7U5(L7) -> 1325.710979 | N7: 0.0315 | O7: =[2]!AgePb6U8(N7) -> 199.9294345 | P7: =[2]!AgePb8Th2(Q7/G7) -> 74124.36474 | Q7: 1.934011527
A8: RBT33.023 | B8: 0.0275 | C8: 0.0196 | D8: 0.355 | E8: =[2]!AgePb76(D8) -> 3728.592516 | F8: 0.76 | G8: 0.0241 | H8: 2.22 | I8: =[2]!AgePb7U5(H8) -> 1187.370015 | J8: 0.0455 | K8: =[2]!AgePb6U8(J8) -> 286.8347454 | L8: 0.307 | M8: =[2]!AgePb7U5(L8) -> 271.8530077 | N8: 0.0288 | O8: =[2]!AgePb6U8(N8) -> 183.0335181 | P8: =[2]!AgePb8Th2(Q8/G8) -> 143322.0064 | Q8: 28.91844997
A9: RBT33.026 | B9: 0.0493 | C9: 0.00774 | D9: 0.184 | E9: =[2]!AgePb76(D9) -> 2689.258441 | F9: 0.306 | G9: 0.0242 | H9: 0.955 | I9: =[2]!AgePb7U5(H9) -> 680.7028415 | J9: 0.0376 | K9: =[2]!AgePb6U8(J9) -> 237.9394296 | L9: 0.328 | M9: =[2]!AgePb7U5(L9) -> 288.0378241 | N9: 0.0321 | O9: =[2]!AgePb6U8(N9) -> 203.6780763 | P9: =[2]!AgePb8Th2(Q9/G9) -> 165469.4785 | Q9: 86.9141983
A10: RBT33.020 | B10: 0.0652 | C10: 0.0153 | D10: 0.265 | E10: =[2]!AgePb76(D10) -> 3276.679325 | F10: 0.594 | G10: 0.0213 | H10: 1.7 | I10: =[2]!AgePb7U5(H10) -> 1008.531018 | J10: 0.0464 | K10: =[2]!AgePb6U8(J10) -> 292.3816388 | L10: 0.172 | M10: =[2]!AgePb7U5(L10) -> 161.1531616 | N10: 0.0332 | O10: =[2]!AgePb6U8(N10) -> 210.5449298 | P10: =[2]!AgePb8Th2(Q10/G10) -> 150398.522 | Q10: 36.28236387
A11: RBT33.019 | B11: 0.0303 | C11: 0.0263 | D11: 0.42 | E11: =[2]!AgePb76(D11) -> 3982.268607 | F11: 1.03 | G11: 0.0662 | H11: 5.37 | I11: =[2]!AgePb7U5(H11) -> 1880.082723 | J11: 0.0929 | K11: =[2]!AgePb6U8(J11) -> 572.6653583 | L11: . | N11: 0.0472 | O11: =[2]!AgePb6U8(N11) -> 297.308207 | P11: =[2]!AgePb8Th2(Q11/G11) -> 102436.8297 | Q11: 10.45074043
A12: RBT33.025 | B12: 0.068 | C12: 0.0439 | D12: 0.626 | E12: =[2]!AgePb76(D12) -> 4569.536646 | F12: 1.7 | G12: 0.0678 | H12: 12.6 | I12: =[2]!AgePb7U5(H12) -> 2650.220635 | J12: 0.146 | K12: =[2]!AgePb6U8(J12) -> 878.5019713 | L12: . | N12: . | P12: =[2]!AgePb8Th2(Q12/G12) -> 82898.46243 | Q12: 4.029008864
A13: RBT33.018 | B13: 0.0605 | C13: 0.0575 | D13: 0.915 | E13: =[2]!AgePb76(D13) -> 5112.228698 | F13: 2.22 | G13: 0.106 | H13: 84.5 | I13: =[2]!AgePb7U5(H13) -> 4516.94814 | J13: 0.67 | K13: =[2]!AgePb6U8(J13) -> 3305.873498 | L13: 10.9 | M13: =[2]!AgePb7U5(L13) -> 2514.635122 | N13: . | P13: =[2]!AgePb8Th2(Q13/G13) -> 40296.93952 | Q13: 0.6723141051
D14: Average | E14: =AVERAGE(E3:E13) -> 4042.478265 | H14: Average | I14: =AVERAGE(I3:I13) -> 2208.660651 | J14: Average | K14: =AVERAGE(K3:K13) -> 1046.891872 | L14: Average | M14: =AVERAGE(M3:M13) -> 832.9724492 | N14: Average | O14: =AVERAGE(O3:O13) -> 221.9061013 | P14: =AVERAGE(P3:P13) -> 101231.4933
D15: Maximim | E15: =MAX(E3:E14) -> 5112.228698 | H15: Maximim | I15: =MAX(I3:I14) -> 4516.94814 | J15: Maximim | K15: =MAX(K3:K14) -> 3305.873498 | L15: Maximim | M15: =MAX(M3:M14) -> 2514.635122 | N15: Maximim | O15: =MAX(O3:O14) -> 297.308207 | P15: =MAX(P3:P14) -> 165469.4785
D16: Minimum | E16: =MIN(E3:E15) -> 2689.258441 | H16: Minimum | I16: =MIN(I3:I15) -> 680.7028415 | J16: Minimum | K16: =MIN(K3:K15) -> 237.9394296 | L16: Minimum | M16: =MIN(M3:M15) -> 161.1531616 | N16: Minimum | O16: =MIN(O3:O15) -> 183.0335181 | P16: =MIN(P3:P15) -> 40296.93952
E20: Age | F20: Age | G20: Age | H20: Age | I20: Age | J20: Age
D21: Statistics | E21: Pb 207/206 | F21: 207Pb/235U | G21: 206Pb/238U | H21: 207Pb/235U | I21: Pb206/U238 | J21: Pb208/232Th
D22: Average | E22: 4042.478265 | F22: 2208.660651 | G22: 1046.891872 | H22: 832.9724492 | I22: 221.9061013 | J22: 101231.0841 | N22: =(165469/161) -> 1027.757764
D23: Maximim | E23: 5112.228698 | F23: 4516.94814 | G23: 3305.873498 | H23: 2514.635122 | I23: 297.308207 | J23: 165468.8096
D24: Minimum | E24: 2689.258441 | F24: 680.7028415 | G24: 237.9394296 | H24: 161.1531616 | I24: 183.0335181 | J24: 40296.77662
D25: Difference | E25: =(E23-E24) -> 2422.970257 | F25: 3836.245299 | G25: 3067.934069 | H25: 2353.481961 | I25: 114.2746889 | J25: 125172.033 | L25: Pb208/232Th | M25: Pb208/232Th
L26: 165469.4785 | M26: 102436.8297
L27: 150398.522 | M27: 82898.46243
L28: 143322.0064 | M28: 74124.36474
L29: 137057.0366 | M29: 47130.52883
L30: 127165.7361 | M30: 43246.5219
D212: n.d.
A244: FC1.1.3 | B244: 0.0745 | C244: 4.5 | D244: 5.45 | F244: 0.016 | G244: 1.814 | H244: 0.1777 | J244: 0.89 | L244: 0.95
A245: FC1.3.2 | B245: 0.07489 | C245: 8.2 | D245: 2.02 | F245: 0.00731 | G245: 1.539 | H245: 0.1507 | J245: 0.81 | L245: 0.94
A246: FC1.4.2 | B246: 0.0772 | C246: 3.6 | D246: 7.11 | F246: 0.00849 | G246: 1.774 | H246: 0.167 | J246: 0.97 | L246: 0.98
A247: FC1.5.2 | B247: 0.07712 | C247: 9.9 | D247: 1.16 | F247: 0.00598 | G247: 1.644 | H247: 0.157 | J247: 0.74 | L247: 0.92
A248: FC1.9.2 | B248: 0.07536 | C248: 9.9 | D248: 1.49 | F248: 0.00719 | G248: 1.844 | H248: 0.1792 | J248: 0.66 | L248: 0.9
A249: FC1.10.2 | B249: 0.07531 | C249: 13 | D249: 0.921 | F249: 0.00713 | G249: 1.577 | H249: 0.1495 | J249: 0.65 | L249: 0.89
A250: FC1.11.2 | B250: 0.07778 | C250: 7.8 | D250: 2.08 | F250: 0.00823 | G250: 1.633 | H250: 0.1514 | J250: 0.81 | L250: 0.93
A251: FC1.13.1 | B251: 0.07583 | C251: 11 | D251: 1.17 | F251: 0.00763 | G251: 1.813 | H251: 0.176 | J251: 0.64 | L251: 0.9
A252: FC1.14.1 | B252: 0.07604 | C252: 7.1 | D252: 1.96 | F252: 0.0039 | G252: 2.089 | H252: 0.1993 | J252: 0.94 | L252: 0.97
A253: FC1.15.1 | B253: 0.07397 | C253: 15 | D253: 0.74 | F253: 0.00719 | G253: 1.856 | H253: 0.1787 | J253: 0.3 | L253: 0.68
A254: FC1.16.1 | B254: 0.07884 | C254: 14 | D254: 0.896 | F254: 0.0115 | G254: 1.979 | H254: 0.1843 | J254: 0.26 | L254: 0.65
A255: FC1.17.1 | B255: 0.07636 | C255: 12 | D255: 1.18 | F255: 0.00848 | G255: 1.906 | H255: 0.1811 | J255: 0.39 | L255: 0.73
A256: FC1.18.1 | B256: 0.07671 | C256: 28 | D256: 2.45 | F256: 0.00563 | G256: 2.112 | H256: 0.2015 | J256: 0.74 | L256: 0.87
A257: FC1.19.1 | B257: 0.07426 | C257: 13 | D257: 0.691 | F257: 0.00896 | G257: 1.745 | H257: 0.1801 | J257: 0.27 | L257: 0.65
A258: FC1.20.1 | B258: 0.07831 | C258: 10 | D258: 1.9 | F258: 0.00816 | G258: 2 | H258: 0.1853 | J258: 0.51 | L258: 0.79
A259: FC1.21.1 | B259: 0.0778 | C259: 15 | D259: 0.526 | F259: 0.00768 | G259: 1.706 | H259: 0.1707 | J259: 0.53 | L259: 0.91
A260: FC1.22.1 | B260: 0.07451 | C260: 13 | D260: 1.12 | F260: 0.00869 | G260: 1.81 | H260: 0.1788 | J260: 0.36 | L260: 0.68
A261: FC1.23.1 | B261: 0.07802 | C261: 14 | D261: 1.8 | F261: 0.00887 | G261: 1.866 | H261: 0.1735 | J261: 0.38 | L261: 0.72
A262: FC1.24.1 | B262: 0.07576 | C262: 11 | D262: 1.35 | F262: 0.0101 | G262: 1.842 | H262: 0.1754 | J262: 0.4 | L262: 0.74
A263: FC1.25.1 | B263: 0.07469 | C263: 10 | D263: 1.28 | F263: 0.0115 | G263: 1.974 | H263: 0.1966 | J263: 0.4 | L263: 0.74
A264: FC1.26.1 | B264: 0.07612 | C264: 11 | D264: 1.04 | F264: 0.00608 | G264: 1.981 | H264: 0.1904 | J264: 0.5 | L264: 0.79
A265: FC1.27.1 | B265: 0.07613 | C265: 9.7 | D265: 1.28 | F265: 0.0103 | G265: 2.161 | H265: 0.2129 | J265: 0.42 | L265: 0.76
A266: FC1.28.1 | B266: 0.07815 | C266: 9.7 | D266: 1.5 | F266: 0.00617 | G266: 2.133 | H266: 0.1986 | J266: 0.59 | L266: 0.82
A267: FC1.29.1 | B267: 0.07663 | C267: 15 | D267: 0.881 | F267: 0.00869 | G267: 1.998 | H267: 0.1818 | J267: 0.67 | L267: 0.93
A268: FC1.30.1 | B268: 0.07592 | C268: 9.9 | D268: 1.37 | F268: 0.00759 | G268: 1.903 | H268: 0.1906 | J268: 0.48 | L268: 0.79
A269: FC1.31.1 | B269: 0.07496 | C269: 9.1 | D269: 1.14 | F269: 0.00823 | G269: 2.043 | H269: 0.1977 | J269: 0.45 | L269: 0.77
A270: FC1.32.1 | B270: 0.07476 | C270: 13 | D270: 1.29 | F270: 0.00601 | G270: 1.737 | H270: 0.1744 | J270: 0.41 | L270: 0.75
A271: FC1.33.1 | B271: 0.07526 | C271: 9.9 | D271: 1.05 | F271: 0.00533 | G271: 2.081 | H271: 0.2019 | J271: 0.61 | L271: 0.83
A272: FC1.34.1 | B272: 0.07697 | C272: 17 | D272: 0.977 | F272: 0.00554 | G272: 2.023 | H272: 0.1941 | J272: 0.43 | L272: 0.75
A273: FC1.35.1 | B273: 0.07936 | C273: 7.9 | D273: 1.66 | F273: 0.00651 | G273: 1.744 | H273: 0.1623 | J273: 0.55 | L273: 0.76
A274: FC1.36.1 | B274: 0.07615 | C274: 11 | D274: 1.59 | F274: 0.0115 | G274: 1.935 | H274: 0.1808 | J274: 0.55 | L274: 0.7
A275: FC1.37.1 | B275: 0.07848 | C275: 16 | D275: 0.929 | F275: 0.00774 | G275: 1.952 | H275: 0.1774 | J275: 0.42 | L275: 0.66
A276: FC1.38.1 | B276: 0.07541 | C276: 14 | D276: 1.2 | F276: 0.00304 | G276: 1.899 | H276: 0.1801 | J276: 0.75 | L276: 0.84
A277: FC1.39.1 | B277: 0.0742 | C277: 15 | D277: 1.47 | F277: 0.00828 | G277: 1.73 | H277: 0.166 | J277: 0.39 | L277: 0.64
A278: FC1.40.1 | B278: 0.07596 | C278: 13 | D278: 1.51 | F278: 0.00546 | G278: 1.668 | H278: 0.158 | J278: 0.61 | L278: 0.77
A279: FC1.41.1 | B279: 0.07599 | C279: 12 | D279: 1.45 | F279: 0.00691 | G279: 1.789 | H279: 0.1665 | J279: 0.61 | L279: 0.77
A280: FC1.42.1 | B280: 0.07507 | C280: 7.1 | D280: 5.38 | F280: 0.00805 | G280: 1.8 | H280: 0.174 | J280: 0.87 | L280: 0.92
A281: FC1.43.1 | B281: 0.0766 | C281: 7.3 | D281: 2.93 | F281: 0.00866 | G281: 1.711 | H281: 0.165 | J281: 0.3 | L281: 0.33
A282: FC1.44.1 | B282: 0.07572 | C282: 15 | D282: 1.8 | F282: 0.00662 | G282: 1.713 | H282: 0.1577 | J282: 0.54 | L282: 0.72
A283: FC1.45.1 | B283: 0.07688 | C283: 12 | D283: 1.19 | F283: 0.0146 | G283: 2.287 | H283: 0.2006 | J283: 0.4 | L283: 0.64
A284: FC1.46.1 | B284: 0.07683 | C284: 40 | D284: 2.49 | F284: 0.00984 | G284: 1.77 | H284: 0.1638 | J284: 0.7 | L284: 0.77
A285: FC1.47.1 | B285: 0.07841 | C285: 8.1 | D285: 3.03 | F285: 0.0107 | G285: 1.777 | H285: 0.1629 | J285: 0.67 | L285: 0.8
A286: FC1.48.1 | B286: 0.07694 | C286: 7.6 | D286: 3.12 | F286: 0.0121 | G286: 1.92 | H286: 0.1789 | J286: 0.7 | L286: 0.81

Sheet 232_Th_09
B1: FC1-1 | C1: FC1-2 | D1: FC5-1 | E1: FC6-1 | F1: FC6-2 | G1: FC7 | H1: FC4 | K1: Method/Sample | L1: FC1-1 | M1: FC1-2 | N1: FC5-1 | O1: FC6-1 | P1: FC6-2 | Q1: FC7 | R1: FC4
A2: 206Pb/204Pb | B2: 17.795 | C2: 17.782 | D2: 17.707 | E2: 17.64 | F2: 17.763 | G2: 17.708 | H2: 16.936 | K2: Pb 207/206 | L2: 5046.94686 | M2: 5047.0707 | N2: 5050.502396 | O2: 5051.115148 | P2: 5048.767168 | Q2: 5050.970157 | R2: 5098.261244
A3: 207Pb/204Pb | B3: 15.548 | C3: 15.538 | D3: 15.51 | E3: 15.458 | F3: 15.54 | G3: 15.516 | H3: 15.344 | K3: 206Pb/238U | L3: 6049.724516 | M3: 6657.508577 | N3: 5870.873283 | O3: 6407.402545 | P3: 6538.743519 | Q3: 6212.254733 | R3: 14281.94067
A4: Pb 207/206 | B4: =[2]!AgePb76(B3/B2) -> 5046.94686 | C4: =[2]!AgePb76(C3/C2) -> 5047.0707 | D4: =[2]!AgePb76(D3/D2) -> 5050.502396 | E4: =[2]!AgePb76(E3/E2) -> 5051.115148 | F4: =[2]!AgePb76(F3/F2) -> 5048.767168 | G4: =[2]!AgePb76(G3/G2) -> 5050.970157 | H4: =[2]!AgePb76(H3/H2) -> 5098.261244 | I4: Age | K4: 207Pb/235U | L4: 33767.41849 | M4: 34765.01578 | N4: 33524.07706 | O4: 34380.23503 | P4: 34587.58897 | Q4: 34070.96069 | R4: 44682.71845
A5: 208Pb/204Pb | B5: 38.065 | C5: 38.044 | D5: 37.978 | E5: 37.837 | F5: 38.067 | G5: 37.966 | H5: 36.992 | K5: Pb208/232Th | L5: 8401.831609 | M5: 8396.178265 | N5: 8724.930336 | O5: 8773.608723 | P5: 9358.397708 | Q5: 8257.854822 | R5: 27208.03026
A6: 204Pb% | B6: 1.396 | C6: 1.382 | D6: 1.385 | E6: 1.39 | F6: 1.382 | G6: 1.385 | H6: 1.423 | K6: Rb/Sr | L6: 124 | M6: 126 | N6: 124 | O6: 126 | P6: 126 | Q6: 124 | R6: 116
A7: 238U/204Pb | B7: 11.436 | C7: 9.831 | D7: 11.915 | E7: 10.365 | F7: 10.107 | G7: 10.922 | H7: 2.074 | K7: Nd/Sm | L7: 125 | M7: 126 | N7: 126 | O7: 125 | P7: 125 | Q7: 125 | R7: 116
A8: 206Pb/238U | B8: =[2]!AgePb6U8(B2/B7) -> 6049.724516 | C8: =[2]!AgePb6U8(C2/C7) -> 6657.508577 | D8: =[2]!AgePb6U8(D2/D7) -> 5870.873283 | E8: =[2]!AgePb6U8(E2/E7) -> 6407.402545 | F8: =[2]!AgePb6U8(F2/F7) -> 6538.743519 | G8: =[2]!AgePb6U8(G2/G7) -> 6212.254733 | H8: =[2]!AgePb6U8(H2/H7) -> 14281.94067 | I8: Age
A9: 235U/204Pb | B9: 0.083 | C9: 0.071 | D9: 0.086 | E9: 0.075 | F9: 0.073 | G9: 0.079 | H9: 0.015
A10: 207Pb/235U | B10: =[2]!AgePb6U8(B3/B9) -> 33767.41849 | C10: =[2]!AgePb6U8(C3/C9) -> 34765.01578 | D10: =[2]!AgePb6U8(D3/D9) -> 33524.07706 | E10: =[2]!AgePb6U8(E3/E9) -> 34380.23503 | F10: =[2]!AgePb6U8(F3/F9) -> 34587.58897 | G10: =[2]!AgePb6U8(G3/G9) -> 34070.96069 | H10: =[2]!AgePb6U8(H3/H9) -> 44682.71845 | I10: Age
A11: 232Th/204Pb | B11: 73.855 | C11: 73.875 | D11: 70.353 | E11: 69.613 | F11: 64.647 | G11: 75.233 | H11: 13.014
A12: Pb208/232Th | B12: =[2]!AgePb8Th2(B5/B11) -> 8401.797645 | C12: =[2]!AgePb8Th2(C5/C11) -> 8396.144324 | D12: =[2]!AgePb8Th2(D5/D11) -> 8724.895066 | E12: =[2]!AgePb8Th2(E5/E11) -> 8773.573257 | F12: =[2]!AgePb8Th2(F5/F11) -> 9358.359877 | G12: =[2]!AgePb8Th2(G5/G11) -> 8257.82144 | H12: =[2]!AgePb8Th2(H5/H11) -> 27207.92027 | I12: Age
B15: Age | C15: Age | D15: Age | E15: Age
B16: Pb 207/206 | C16: 206Pb/238U | D16: 207Pb/235U | E16: Pb208/232Th
B17: 5047 | C17: 6050 | D17: 33767 | E17: 8402
B18: 5047 | C18: 6658 | D18: 34765 | E18: 8396
B19: 5051 | C19: 5871 | D19: 33524 | E19: 8725
B20: 5051 | C20: 6407 | D20: 34380 | E20: 8774
B21: 5049 | C21: 6539 | D21: 34588 | E21: 9358
B22: 5051 | C22: 6212 | D22: 34071 | E22: 8258
B23: 5098 | C23: 14282 | D23: 44683 | E23: 27208
A24: Average | B24: =AVERAGE(B17:B23) -> 5056.285714 | C24: =AVERAGE(C17:C23) -> 7431.285714 | D24: =AVERAGE(D17:D23) -> 35682.57143 | E24: =AVERAGE(E17:E23) -> 11303
A25: Maximim | B25: =MAX(B17:B24) -> 5098 | C25: =MAX(C17:C24) -> 14282 | D25: =MAX(D17:D24) -> 44683 | E25: =MAX(E17:E24) -> 27208
A26: Minimum | B26: =MIN(B17:B25) -> 5047 | C26: =MIN(C17:C25) -> 5871 | D26: =MIN(D17:D25) -> 33524 | E26: =MIN(E17:E25) -> 8258
B29: Age | C29: Age | D29: Age | E29: Age
A30: Statistics | B30: Pb 207/206 | C30: 206Pb/238U | D30: 207Pb/235U | E30: Pb208/232Th
A31: Average | B31: 5056.285714 | C31: 7431.285714 | D31: 35682.57143 | E31: 11303
A32: Maximim | B32: 5098 | C32: 14282 | D32: 44683 | E32: 27208
A33: Minimum | B33: 5047 | C33: 5871 | D33: 33524 | E33: 8258
A34: Difference | B34: =(B32-B33) -> 51 | C34: =(C32-C33) -> 8411 | D34: =(D32-D33) -> 11159 | E34: =(E32-E33) -> 18950
A37: Strontium | B37: Initial | C37: Today | D37: Today | E37: The Ratio | F37: Half | G37: Decay | H37: 2.303/Delta | I37: Age | J37: Age | K37: Age
A38: Dating | B38: 87Sr/86Sr | C38: 87Sr/86Sr | D38: 87Rb/86Sr | E38: Plus One | F38: Life | G38: Constant | H38: Constant | I38: Years | J38: Million Years | K38: Billion Years
A39: FC1-1 | B39: 0.709631 | C39: 0.709677 | D39: 0.0261 | E39: =1+((C39-B39)/D39) -> 1.001762452 | F39: 48800000000 | G39: =(0.693/F39) -> 1.420081967e-11 | H39: =(2.303/G39) -> 1.621737374e+11 | I39: =(LOG(E39))*(H39) -> 124022285.4 | J39: =(I39/1000000) -> 124.0222854 | K39: =(J39/1000) -> 0.1240222854
A40: FC1-2 | B40: 0.709561 | C40: 0.709621 | D40: 0.0335 | E40: =1+((C40-B40)/D40) -> 1.001791045 | F40: 48800000000 | G40: =(0.693/F40) -> 1.420081967e-11 | H40: =(2.303/G40) -> 1.621737374e+11 | I40: =(LOG(E40))*(H40) -> 126032528.6 | J40: =(I40/1000000) -> 126.0325286 | K40: =(J40/1000) -> 0.1260325286
A41: FC5-1 | B41: 0.71009 | C41: 0.710148 | D41: 0.0329 | E41: 1.001762918 | F41: 48800000000 | G41: 1.420081967e-11 | H41: 1.621737374e+11 | I41: 124055036.4 | J41: 124.0550364 | K41: 0.1240550364
A42: FC6-1 | B42: 0.709905 | C42: 0.709965 | D42: 0.0336 | E42: 1.001785714 | F42: 48800000000 | G42: 1.420081967e-11 | H42: 1.621737374e+11 | I42: 125657766.2 | J42: 125.6577662 | K42: 0.1256577662
A43: FC6-2 | B43: 0.709798 | C43: 0.709858 | D43: 0.0336 | E43: 1.001785714 | F43: 48800000000 | G43: 1.420081967e-11 | H43: 1.621737374e+11 | I43: 125657766.2 | J43: 125.6577662 | K43: 0.1256577662
A44: FC7 | B44: 0.709834 | C44: 0.709895 | D44: 0.0345 | E44: 1.001768116 | F44: 48800000000 | G44: 1.420081967e-11 | H44: 1.621737374e+11 | I44: 124420492.9 | J44: 124.4204929 | K44: 0.1244204929
A45: FC4 | B45: 0.709369 | C45: 0.709609 | D45: 0.1456 | E45: 1.001648352 | F45: 48800000000 | G45: 1.420081967e-11 | H45: 1.621737374e+11 | I45: 115999739.5 | J45: 115.9997395 | K45: 0.1159997395
J46: =AVERAGE(J39:J45) -> 123.6922307 | K46: 0.1236922307
A48: Neodymium | B48: Initial | C48: Today | D48: Today | E48: The Ratio | F48: Half | G48: Decay | H48: 2.303/Delta | I48: Age | J48: Age | K48: Age
A49: Dating | B49: 143Nd/144Nd | C49: 143Nd/144Nd | D49: 147Sm/144Nd | E49: Plus One | F49: Life | G49: Constant | H49: Constant | I49: Years | J49: Million Years | K49: Billion Years
A50: FC1-1 | B50: 0.511806 | C50: 0.511884 | D50: 0.0953 | E50: =1+((C50-B50)/D50) -> 1.000818468 | F50: 106000000000 | G50: =(0.693/F50) -> 6.537735849e-12 | H50: =(2.303/G50) -> 3.522626263e+11 | I50: =(LOG(E50))*(H50) -> 125162697.5 | J50: =(I50/1000000) -> 125.1626975 | K50: =(J50/1000) -> 0.1251626975
A51: FC1-2 | B51: 0.511789 | C51: 0.511862 | D51: 0.0888 | E51: =1+((C51-B51)/D51) -> 1.000822072 | F51: 106000000000 | G51: =(0.693/F51) -> 6.537735849e-12 | H51: =(2.303/G51) -> 3.522626263e+11 | I51: =(LOG(E51))*(H51) -> 125713617.8 | J51: =(I51/1000000) -> 125.7136178 | K51: =(J51/1000) -> 0.1257136178
A52: FC5-1 | B52: 0.511751 | C52: 0.511832 | D52: 0.0985 | E52: 1.000822335 | F52: 106000000000 | G52: 6.537735849e-12 | H52: 3.522626263e+11 | I52: 125753812.8 | J52: 125.7538128 | K52: 0.1257538128
A53: FC6-1 | B53: 0.511752 | C53: 0.511833 | D53: 0.0987 | E53: 1.000820669 | F53: 106000000000 | G53: 6.537735849e-12 | H53: 3.522626263e+11 | I53: 125499097 | J53: 125.499097 | K53: 0.125499097
A54: FC6-2 | B54: 0.511765 | C54: 0.511844 | D54: 0.0969 | E54: 1.000815273 | F54: 106000000000 | G54: 6.537735849e-12 | H54: 3.522626263e+11 | I54: 124674380.8 | J54: 124.6743808 | K54: 0.1246743808
A55: FC7 | B55: 0.51174 | C55: 0.511818 | D55: 0.0952 | E55: 1.000819328 | F55: 106000000000 | G55: 6.537735849e-12 | H55: 3.522626263e+11 | I55: 125294117.1 | J55: 125.2941171 | K55: 0.1252941171
A56: FC4 | B56: 0.511834 | C56: 0.511909 | D56: 0.0991 | E56: 1.000756811 | F56: 106000000000 | G56: 6.537735849e-12 | H56: 3.522626263e+11 | I56: 115737527.7 | J56: 115.7375277 | K56: 0.1157375277
J57: =AVERAGE(J50:J56) -> 123.9764644 | K57: 0.1239764644
D243: n.d.
A275: FC1.1.3 | B275: 0.0745 | C275: 4.5 | D275: 5.45 | F275: 0.016 | G275: 1.814 | H275: 0.1777 | J275: 0.89 | L275: 0.95
A276: FC1.3.2 | B276: 0.07489 | C276: 8.2 | D276: 2.02 | F276: 0.00731 | G276: 1.539 | H276: 0.1507 | J276: 0.81 | L276: 0.94
A277: FC1.4.2 | B277: 0.0772 | C277: 3.6 | D277: 7.11 | F277: 0.00849 | G277: 1.774 | H277: 0.167 | J277: 0.97 | L277: 0.98
A278: FC1.5.2 | B278: 0.07712 | C278: 9.9 | D278: 1.16 | F278: 0.00598 | G278: 1.644 | H278: 0.157 | J278: 0.74 | L278: 0.92
A279: FC1.9.2 | B279: 0.07536 | C279: 9.9 | D279: 1.49 | F279: 0.00719 | G279: 1.844 | H279: 0.1792 | J279: 0.66 | L279: 0.9
A280: FC1.10.2 | B280: 0.07531 | C280: 13 | D280: 0.921 | F280: 0.00713 | G280: 1.577 | H280: 0.1495 | J280: 0.65 | L280: 0.89
A281: FC1.11.2 | B281: 0.07778 | C281: 7.8 | D281: 2.08 | F281: 0.00823 | G281: 1.633 | H281: 0.1514 | J281: 0.81 | L281: 0.93
A282: FC1.13.1 | B282: 0.07583 | C282: 11 | D282: 1.17 | F282: 0.00763 | G282: 1.813 | H282: 0.176 | J282: 0.64 | L282: 0.9
A283: FC1.14.1 | B283: 0.07604 | C283: 7.1 | D283: 1.96 | F283: 0.0039 | G283: 2.089 | H283: 0.1993 | J283: 0.94 | L283: 0.97
A284: FC1.15.1 | B284: 0.07397 | C284: 15 | D284: 0.74 | F284: 0.00719 | G284: 1.856 | H284: 0.1787 | J284: 0.3 | L284: 0.68
A285: FC1.16.1 | B285: 0.07884 | C285: 14 | D285: 0.896 | F285: 0.0115 | G285: 1.979 | H285: 0.1843 | J285: 0.26 | L285: 0.65
A286: FC1.17.1 | B286: 0.07636 | C286: 12 | D286: 1.18 | F286: 0.00848 | G286: 1.906 | H286: 0.1811 | J286: 0.39 | L286: 0.73
A287: FC1.18.1 | B287: 0.07671 | C287: 28 | D287: 2.45 | F287: 0.00563 | G287: 2.112 | H287: 0.2015 | J287: 0.74 | L287: 0.87
A288: FC1.19.1 | B288: 0.07426 | C288: 13 | D288: 0.691 | F288: 0.00896 | G288: 1.745 | H288: 0.1801 | J288: 0.27 | L288: 0.65
A289: FC1.20.1 | B289: 0.07831 | C289: 10 | D289: 1.9 | F289: 0.00816 | G289: 2 | H289: 0.1853 | J289: 0.51 | L289: 0.79
A290: FC1.21.1 | B290: 0.0778 | C290: 15 | D290: 0.526 | F290: 0.00768 | G290: 1.706 | H290: 0.1707 | J290: 0.53 | L290: 0.91
A291: FC1.22.1 | B291: 0.07451 | C291: 13 | D291: 1.12 | F291: 0.00869 | G291: 1.81 | H291: 0.1788 | J291: 0.36 | L291: 0.68
A292: FC1.23.1 | B292: 0.07802 | C292: 14 | D292: 1.8 | F292: 0.00887 | G292: 1.866 | H292: 0.1735 | J292: 0.38 | L292: 0.72
A293: FC1.24.1 | B293: 0.07576 | C293: 11 | D293: 1.35 | F293: 0.0101 | G293: 1.842 | H293: 0.1754 | J293: 0.4 | L293: 0.74
A294: FC1.25.1 | B294: 0.07469 | C294: 10 | D294: 1.28 | F294: 0.0115 | G294: 1.974 | H294: 0.1966 | J294: 0.4 | L294: 0.74
A295: FC1.26.1 | B295: 0.07612 | C295: 11 | D295: 1.04 | F295: 0.00608 | G295: 1.981 | H295: 0.1904 | J295: 0.5 | L295: 0.79
A296: FC1.27.1 | B296: 0.07613 | C296: 9.7 | D296: 1.28 | F296: 0.0103 | G296: 2.161 | H296: 0.2129 | J296: 0.42 | L296: 0.76
A297: FC1.28.1 | B297: 0.07815 | C297: 9.7 | D297: 1.5 | F297: 0.00617 | G297: 2.133 | H297: 0.1986 | J297: 0.59 | L297: 0.82
A298: FC1.29.1 | B298: 0.07663 | C298: 15 | D298: 0.881 | F298: 0.00869 | G298: 1.998 | H298: 0.1818 | J298: 0.67 | L298: 0.93
A299: FC1.30.1 | B299: 0.07592 | C299: 9.9 | D299: 1.37 | F299: 0.00759 | G299: 1.903 | H299: 0.1906 | J299: 0.48 | L299: 0.79
A300: FC1.31.1 | B300: 0.07496 | C300: 9.1 | D300: 1.14 | F300: 0.00823 | G300: 2.043 | H300: 0.1977 | J300: 0.45 | L300: 0.77
A301: FC1.32.1 | B301: 0.07476 | C301: 13 | D301: 1.29 | F301: 0.00601 | G301: 1.737 | H301: 0.1744 | J301: 0.41 | L301: 0.75
A302: FC1.33.1 | B302: 0.07526 | C302: 9.9 | D302: 1.05 | F302: 0.00533 | G302: 2.081 | H302: 0.2019 | J302: 0.61 | L302: 0.83
A303: FC1.34.1 | B303: 0.07697 | C303: 17 | D303: 0.977 | F303: 0.00554 | G303: 2.023 | H303: 0.1941 | J303: 0.43 | L303: 0.75
A304: FC1.35.1 | B304: 0.07936 | C304: 7.9 | D304: 1.66 | F304: 0.00651 | G304: 1.744 | H304: 0.1623 | J304: 0.55 | L304: 0.76
A305: FC1.36.1 | B305: 0.07615 | C305: 11 | D305: 1.59 | F305: 0.0115 | G305: 1.935 | H305: 0.1808 | J305: 0.55 | L305: 0.7
A306: FC1.37.1 | B306: 0.07848 | C306: 16 | D306: 0.929 | F306: 0.00774 | G306: 1.952 | H306: 0.1774 | J306: 0.42 | L306: 0.66
A307: FC1.38.1 | B307: 0.07541 | C307: 14 | D307: 1.2 | F307: 0.00304 | G307: 1.899 | H307: 0.1801 | J307: 0.75 | L307: 0.84
A308: FC1.39.1 | B308: 0.0742 | C308: 15 | D308: 1.47 | F308: 0.00828 | G308: 1.73 | H308: 0.166 | J308: 0.39 | L308: 0.64
A309: FC1.40.1 | B309: 0.07596 | C309: 13 | D309: 1.51 | F309: 0.00546 | G309: 1.668 | H309: 0.158 | J309: 0.61 | L309: 0.77
A310: FC1.41.1 | B310: 0.07599 | C310: 12 | D310: 1.45 | F310: 0.00691 | G310: 1.789 | H310: 0.1665 | J310: 0.61 | L310: 0.77
A311: FC1.42.1 | B311: 0.07507 | C311: 7.1 | D311: 5.38 | F311: 0.00805 | G311: 1.8 | H311: 0.174 | J311: 0.87 | L311: 0.92
A312: FC1.43.1 | B312: 0.0766 | C312: 7.3 | D312: 2.93 | F312: 0.00866 | G312: 1.711 | H312: 0.165 | J312: 0.3 | L312: 0.33
A313: FC1.44.1 | B313: 0.07572 | C313: 15 | D313: 1.8 | F313: 0.00662 | G313: 1.713 | H313: 0.1577 | J313: 0.54 | L313: 0.72
A314: FC1.45.1 | B314: 0.07688 | C314: 12 | D314: 1.19 | F314: 0.0146 | G314: 2.287 | H314: 0.2006 | J314: 0.4 | L314: 0.64
A315: FC1.46.1 | B315: 0.07683 | C315: 40 | D315: 2.49 | F315: 0.00984 | G315: 1.77 | H315: 0.1638 | J315: 0.7 | L315: 0.77
A316: FC1.47.1 | B316: 0.07841 | C316: 8.1 | D316: 3.03 | F316: 0.0107 | G316: 1.777 | H316: 0.1629 | J316: 0.67 | L316: 0.8
A317: FC1.48.1 | B317: 0.07694 | C317: 7.6 | D317: 3.12 | F317: 0.0121 | G317: 1.92 | H317: 0.1789 | J317: 0.7 | L317: 0.81

Sheet 232_Th_10
A1: Table 4 | D1: Age | H1: Age | J1: Age | L1: Age
A2: Sample | B2: 208Pb/238U | C2: 208Pb/232Th | D2: 208Pb/232Th | E2: 232Th/238U | G2: 207Pb/206Pb | H2: 207Pb/206Pb | I2: 208Pb/206Pb | J2: 206Pb/238U | K2: 206Pb/238U | L2: 207Pb/235U | M2: 207Pb/235U
A3: 94-12 | B3: =(I3/K3) -> 0.2064013841 | C3: =(B3/E3) -> 0.4701626061 | D3: =[2]!AgePb8Th2(C3) -> 7789.247318 | E3: 0.439 | G3: 0.2145 | H3: =[2]!AgePb76(G3) -> 2939.854674 | I3: 0.1193 | J3: =[2]!AgePb6U8(K3) -> 2940.584834 | K3: 0.578 | L3: =[2]!AgePb7U5(M3) -> 2940.459906 | M3: 17.1
A4: 94-12 | B4: =(I4/K4) -> 0.625 | C4: =(B4/E4) -> 0.003048780488 | D4: =[2]!AgePb8Th2(C4) -> 61.52890109 | E4: 205 | F4: 0.567 | G4: 0.155 | H4: =[2]!AgePb76(G4) -> 2401.83299 | I4: 0.0005 | J4: =[2]!AgePb6U8(K4) -> 5.155069593 | K4: 0.0008 | L4: =[2]!AgePb7U5(M4) -> 19.11129029 | M4: 0.019
A5: 94-12 | B5: 0.4366197183 | C5: 0.0003894912741 | D5: =[2]!AgePb8Th2(C5) -> 7.870953858 | E5: 1121 | F5: 1.249 | G5: 0.118 | H5: =[2]!AgePb76(G5) -> 1926.155697 | I5: 0.0031 | J5: =[2]!AgePb6U8(K5) -> 45.60782383 | K5: 0.0071 | L5: =[2]!AgePb7U5(M5) -> 4.053430745 | M5: 0.004
A6: 94-12 | B6: 0.55 | C6: 0.002263374486 | D6: =[2]!AgePb8Th2(C6) -> 45.69614779 | E6: 243 | F6: 0.803 | G6: 0.004 | H6: . | I6: 0.0011 | J6: =[2]!AgePb6U8(K6) -> 12.8799527 | K6: 0.002 | L6: =[2]!AgePb7U5(M6) -> 6.074094205 | M6: 0.006
A7: 94-12 | B7: 0.6 | C7: 0.01071428571 | D7: =[2]!AgePb8Th2(C7) -> 215.40767 | E7: 56 | F7: 0.43 | G7: 0.003 | H7: . | I7: 0.0015 | J7: =[2]!AgePb6U8(K7) -> 16.09592392 | K7: 0.0025 | L7: =[2]!AgePb7U5(M7) -> 7.082919974 | M7: 0.007
A8: 94-12 | B8: 0.4390243902 | C8: 0.003377110694 | D8: =[2]!AgePb8Th2(C8) -> 68.14393253 | E8: 130 | F8: 0.217 | G8: 0.068 | H8: =[2]!AgePb76(G8) -> 868.5541498 | I8: 0.0036 | J8: =[2]!AgePb6U8(K8) -> 52.64504539 | K8: 0.0082 | L8: =[2]!AgePb7U5(M8) -> 2.028738044 | M8: 0.002
A9: 94-12 | B9: 0.4402515723 | C9: 0.001719732704 | D9: =[2]!AgePb8Th2(C9) -> 34.72977579 | E9: 256 | F9: 0.606 | G9: 0.292 | H9: =[2]!AgePb76(G9) -> 3428.292063 | I9: 0.007 | J9: =[2]!AgePb6U8(K9) -> 101.6916623 | K9: 0.0159 | L9: =[2]!AgePb7U5(M9) -> 5.064265128 | M9: 0.005
A10: 94-12 | B10: 0.4838709677 | C10: 0.003337041157 | D10: =[2]!AgePb8Th2(C10) -> 67.33674767 | E10: 145 | F10: 0.649 | G10: 0.008 | H10: . | I10: 0.0015 | J10: =[2]!AgePb6U8(K10) -> 19.95297281 | K10: 0.0031 | L10: =[2]!AgePb7U5(M10) -> 7.082919974 | M10: 0.007
A11: 94-12 | B11: 0.3179347826 | C11: 0.4998974569 | D11: =[2]!AgePb8Th2(C11) -> 8193.971576 | E11: 0.636 | F11: 0.239 | G11: 0.1898 | H11: =[2]!AgePb76(G11) -> 2740.429418 | I11: 0.1755 | J11: =[2]!AgePb6U8(K11) -> 2833.485394 | K11: 0.552 | L11: =[2]!AgePb7U5(M11) -> 2779.06437 | M11: 14.44
A12: 94-12 | B12: 0.5 | C12: 0.01315789474 | D12: =[2]!AgePb8Th2(C12) -> 264.2158983 | E12: 38 | F12: 0.602 | G12: 0.228 | H12: =[2]!AgePb76(G12) -> 3038.061542 | I12: 0.0014 | J12: =[2]!AgePb6U8(K12) -> 18.02473684 | K12: 0.0028 | L12: =[2]!AgePb7U5(M12) -> 16.11752973 | M12: 0.016
A13: 94-12 | B13: 0.5 | C13: 0.03125 | D13: =[2]!AgePb8Th2(C13) -> 621.9637932 | E13: 16 | F13: 0.503 | G13: 0.003 | H13: . | I13: 0.0035 | J13: =[2]!AgePb6U8(K13) -> 44.96769532 | K13: 0.007 | L13: =[2]!AgePb7U5(M13) -> 9.09756955 | M13: 0.009
A14: 94-12 | B14: 0.312815534 | C14: 0.5231028996 | D14: =[2]!AgePb8Th2(C14) -> 8504.287729 | E14: 0.598 | F14: 0.424 | G14: 0.1862 | H14: =[2]!AgePb76(G14) -> 2708.88437 | I14: 0.1611 | J14: =[2]!AgePb6U8(K14) -> 2677.939977 | K14: 0.515 | L14: =[2]!AgePb7U5(M14) -> 2696.91314 | M14: 13.24
A15: 94-12 | B15: 0.2330827068 | C15: 0.5034183731 | D15: =[2]!AgePb8Th2(C15) -> 8241.362926 | E15: 0.463 | F15: 0.005 | G15: 0.1872 | H15: =[2]!AgePb76(G15) -> 2717.716966 | I15: 0.124 | J15: =[2]!AgePb6U8(K15) -> 2749.873143 | K15: 0.532 | L15: =[2]!AgePb7U5(M15) -> 2731.264894 | M15: 13.73
A16: 94-12 | B16: 0.5442379182 | C16: 0.5105421372 | D16: =[2]!AgePb8Th2(C16) -> 8336.909907 | E16: 1.066 | F16: 0.366 | G16: 0.1845 | H16: =[2]!AgePb76(G16) -> 2693.742585 | I16: 0.2928 | J16: =[2]!AgePb6U8(K16) -> 2775.070885 | K16: 0.538 | L16: =[2]!AgePb7U5(M16) -> 2727.812381 | M16: 13.68
A17: 94-12 | B17: 0.468762279 | C17: 0.5419217098 | D17: =[2]!AgePb8Th2(C17) -> 8752.491198 | E17: 0.865 | F17: 0.003 | G17: 0.1834 | H17: =[2]!AgePb76(G17) -> 2683.85885 | I17: 0.2386 | J17: =[2]!AgePb6U8(K17) -> 2652.358935 | K17: 0.509 | L17: =[2]!AgePb7U5(M17) -> 2669.449148 | M17: 12.86
A18: 94-12 | B18: 0.4718146718 | C18: 0.5301288447 | D18: =[2]!AgePb8Th2(C18) -> 8597.310644 | E18: 0.89 | F18: 0.122 | G18: 0.1857 | H18: =[2]!AgePb76(G18) -> 2704.447523 | I18: 0.2444 | J18: =[2]!AgePb6U8(K18) -> 2690.692532 | K18: 0.518 | L18: =[2]!AgePb7U5(M18) -> 2697.62594 | M18: 13.25
A19: 94-12 | B19: 0.4566074951 | C19: 0.5365540483 | D19: =[2]!AgePb8Th2(C19) -> 8682.006633 | E19: 0.851 | F19: 0.003 | G19: 0.1833 | H19: =[2]!AgePb76(G19) -> 2682.956934 | I19: 0.2315 | J19: =[2]!AgePb6U8(K19) -> 2643.809313 | K19: 0.507 | L19: =[2]!AgePb7U5(M19) -> 2665.779527 | M19: 12.81
A20: 94-12 | B20: 0.3832706767 | C20: 0.5200416237 | D20: =[2]!AgePb8Th2(C20) -> 8463.622406 | E20: 0.737 | F20: 0.276 | G20: 0.1847 | H20: =[2]!AgePb76(G20) -> 2695.532315 | I20: 0.2039 | J20: =[2]!AgePb6U8(K20) -> 2749.873143 | K20: 0.532 | L20: =[2]!AgePb7U5(M20) -> 2718.780518 | M20: 13.55
A21: 94-12 | B21: 0.4493530499 | C21: 0.5054589988 | D21: =[2]!AgePb8Th2(C21) -> 8268.778864 | E21: 0.889 | F21: 0 | G21: 0.1849 | H21: =[2]!AgePb76(G21) -> 2697.319808 | I21: 0.2431 | J21: =[2]!AgePb6U8(K21) -> 2787.632918 | K21: 0.541 | L21: =[2]!AgePb7U5(M21) -> 2735.392473 | M21: 13.79
A22: 94-8 | B22: 0.4659090909 | D22: . | E22: 0 | F22: 0.018 | G22: 2.498 | H22: =[2]!AgePb76(G22) -> 6495.221 | I22: 0.0082 | J22: =[2]!AgePb6U8(K22) -> 112.4700313 | K22: 0.0176 | L22: =[2]!AgePb7U5(M22) -> 12.11206871 | M22: 0.012
A23: 94-8 | B23: 0.5362318841 | D23: . | E23: 0 | F23: 0.002 | G23: 0.657 | H23: =[2]!AgePb76(G23) -> 4639.420146 | I23: 0.0037 | J23: =[2]!AgePb6U8(K23) -> 44.32750324 | K23: 0.0069 | L23: =[2]!AgePb7U5(M23) -> 11.10822972 | M23: 0.011
A24: 94-8 | B24: 0.5150501672 | D24: . | E24: 0 | F24: 0.003 | G24: 1.17 | H24: =[2]!AgePb76(G24) -> 5457.029583 | I24: 0.0154 | J24: =[2]!AgePb6U8(K24) -> 189.9223861 | K24: 0.0299 | L24: =[2]!AgePb7U5(M24) -> 10.10339732 | M24: 0.01
A25: 94-8 | B25: 0.5135135135 | D25: . | E25: 0 | F25: 0.008 | G25: 0.966 | H25: =[2]!AgePb76(G25) -> 5188.717595 | I25: 0.0038 | J25: =[2]!AgePb6U8(K25) -> 47.52782807 | K25: 0.0074 | L25: =[2]!AgePb7U5(M25) -> 11.10822972 | M25: 0.011
A26: 94-12 | B26: . | D26: . | E26: 0.003 | F26: 0.263 | G26: 0.1818 | H26: =[2]!AgePb76(G26) -> 2669.359549 | I26: –0.0012 | J26: =[2]!AgePb6U8(K26) -> 2724.576521 | K26: 0.526 | L26: =[2]!AgePb7U5(M26) -> 2692.625802 | M26: 13.18
A27: 94-12 | B27: 0.002898550725 | C27: 0.4140786749 | D27: =[2]!AgePb8Th2(C27) -> 7003.096633 | E27: 0.007 | F27: 0.002 | G27: 0.1723 | H27: =[2]!AgePb76(G27) -> 2580.111029 | I27: 0.0012 | J27: =[2]!AgePb6U8(K27) -> 2233.183352 | K27: 0.414 | L27: =[2]!AgePb7U5(M27) -> 2418.967417 | M27: 9.83
A28: 94-12 | B28: . | D28: . | E28: 0.001 | F28: 0 | G28: 0.181 | H28: =[2]!AgePb76(G28) -> 2662.054459 | I28: –0.0002 | J28: =[2]!AgePb6U8(K28) -> 2677.939977 | K28: 0.515 | L28: =[2]!AgePb7U5(M28) -> 2667.982891 | M28: 12.84
A29: 94-12 | B29: 0.4390243902 | C29: 0.002195121951 | D29: =[2]!AgePb8Th2(C29) -> 44.31968047 | E29: 200 | F29: 0.087 | G29: 27.723 | H29: . | I29: 0.0036 | J29: =[2]!AgePb6U8(K29) -> 52.64504539 | K29: 0.0082 | L29: =[2]!AgePb7U5(M29) -> 3.041589054 | M29: 0.003
A30: 94-12 | B30: 0.4418604651 | C30: 0.0009401286492 | D30: =[2]!AgePb8Th2(C30) -> 18.99316837 | E30: 470 | F30: 0.174 | G30: 27.9 | H30: . | I30: 0.0038 | J30: =[2]!AgePb6U8(K30) -> 55.20213157 | K30: 0.0086 | L30: =[2]!AgePb7U5(M30) -> 2.028738044 | M30: 0.002
A31: 94-12 | B31: 0.1104986877 | C31: 0.2915532656 | D31: =[2]!AgePb8Th2(C31) -> 5171.209215 | E31: 0.379 | F31: 16.442 | G31: 0.1735 | H31: =[2]!AgePb76(G31) -> 2591.6956 | I31: 0.0421 | J31: =[2]!AgePb6U8(K31) -> 2080.95326 | K31: 0.381 | L31: =[2]!AgePb7U5(M31) -> 2349.114112 | M31: 9.11
A32: 94-12 | B32: 0.6887640449 | C32: 2.334793373 | D32: =[2]!AgePb8Th2(C32) -> 24343.82456 | E32: 0.295 | F32: 0.025 | G32: 0.091 | H32: =[2]!AgePb76(G32) -> 1446.602531 | I32: 0.1226 | J32: =[2]!AgePb6U8(K32) -> 1056.039228 | K32: 0.178 | L32: =[2]!AgePb7U5(M32) -> 1190.518492 | M32: 2.23
C33: Average | D33: =AVERAGE(D3:D32) -> 5074.930262 | G33: Average | H33: =AVERAGE(H3:H32) -> 3027.410474 | I33: Average | J33: =AVERAGE(J3:J32) -> 1303.104307 | K33: Average | L33: =AVERAGE(L3:L32) -> 1293.565534
C34: Maximim | D34: =MAX(D3:D33) -> 24343.82456 | G34: Maximim | H34: =MAX(H3:H33) -> 6495.221 | I34: Maximim | J34: =MAX(J3:J33) -> 2940.584834 | K34: Maximim | L34: =MAX(L3:L33) -> 2940.459906
C35: Minimum | D35: =MIN(D3:D34) -> 7.870953858 | G35: Minimum | H35: =MIN(H3:H34) -> 868.5541498 | I35: Minimum | J35: =MIN(J3:J34) -> 5.155069593 | K35: Minimum | L35: =MIN(L3:L34) -> 2.028738044
L36: =(D34/L35) -> 11999.49133
C38: Table 4 | D38: Age | E38: Age | F38: Age | G38: Age
C39: Statistics | D39: 208Pb/232Th | E39: 207Pb/206Pb | F39: 206Pb/238U | G39: 207Pb/235U
C40: Average | D40: 5074.930262 | E40: 3027.410474 | F40: 1303.104307 | G40: 1293.565534
C41: Maximim | D41: 24343.82456 | E41: 6495.221 | F41: 2940.584834 | G41: 2940.459906
C42: Minimum | D42: 7.870953858 | E42: 868.5541498 | F42: 5.155069593 | G42: 2.028738044
C43: Difference | D43: =(D41-D42) -> 24335.95361 | E43: =(E41-E42) -> 5626.66685 | F43: =(F41-F42) -> 2935.429765 | G43: =(G41-G42) -> 2938.431168
A46: Table 5 | D46: Age | G46: Age | K46: Age | M46: Age
A47: Sample | B47: 208Pb/238U | C47: 208Pb/232Th | D47: 208Pb/232Th | F47: 232Th/238U | G47: 207Pb/206Pb | H47: 207Pb/206Pb | J47: 208Pb/206Pb | K47: 206Pb/238U | L47: 206Pb/238U | M47: 207Pb/235U | N47: 207Pb/235U
A48: 94-12 | B48: =J48/(1/L48) -> 0.0380016 | C48: =(B48/F48) -> 0.13104 | D48: =[2]!AgePb8Th2(C48) -> 2488.884557 | F48: 0.29 | G48: =[2]!AgePb76(H48) -> 2726.495309 | H48: 0.1882 | J48: 0.0754 | K48: =[2]!AgePb6U8(L48) -> 2630.963581 | L48: 0.504 | M48: =[2]!AgePb7U5(N48) -> 2684.718354 | N48: 13.07
A49: 94-12 | B49: =J49/(1/L49) -> 0.0668215 | C49: =(B49/F49) -> 0.1277657744 | D49: =[2]!AgePb8Th2(C49) -> 2430.287715 | F49: 0.523 | G49: =[2]!AgePb76(H49) -> 2709.770089 | H49: 0.1863 | J49: 0.1249 | K49: =[2]!AgePb6U8(L49) -> 2762.484326 | L49: 0.535 | M49: =[2]!AgePb7U5(N49) -> 2731.95399 | N49: 13.74
A50: 94-8 | B50: 0.0014732 | C50: 0.008094505495 | D50: =[2]!AgePb8Th2(C50) -> 162.9493826 | F50: 0.182 | G50: =[2]!AgePb76(H50) -> 2693.742585 | H50: 0.1845 | J50: 0.0029 | K50: =[2]!AgePb6U8(L50) -> 2648.085541 | L50: 0.508 | M50: =[2]!AgePb7U5(N50) -> 2674.564439 | N50: 12.93
A51: 94-12 | B51: 0.003021 | C51: 0.00533745583 | D51: =[2]!AgePb8Th2(C51) -> 107.5949893 | F51: 0.566 | G51: =[2]!AgePb76(H51) -> 2706.223914 | H51: 0.1859 | J51: 0.0057 | K51: =[2]!AgePb6U8(L51) -> 2741.451961 | L51: 0.53 | M51: =[2]!AgePb7U5(N51) -> 2721.56812 | N51: 13.59
A52: 94-12 | B52: 0.0020216 | C52: 0.005631197772 | D52: =[2]!AgePb8Th2(C52) -> 113.4997847 | F52: 0.359 | G52: =[2]!AgePb76(H52) -> 2721.234777 | H52: 0.1876 | J52: 0.0038 | K52: =[2]!AgePb6U8(L52) -> 2749.873143 | L52: 0.532 | M52: =[2]!AgePb7U5(N52) -> 2732.642618 | N52: 13.75
A53: 94-12 | B53: 0.002084 | C53: 0.006553459119 | D53: =[2]!AgePb8Th2(C53) -> 132.0278639 | F53: 0.318 | G53: =[2]!AgePb76(H53) -> 2690.156395 | H53: 0.1841 | J53: 0.004 | K53: =[2]!AgePb6U8(L53) -> 2703.419908 | L53: 0.521 | M53: =[2]!AgePb7U5(N53) -> 2695.486038 | N53: 13.22
A54: 94-12 | B54: 0.00253 | C54: 0.007737003058 | D54: =[2]!AgePb8Th2(C54) -> 155.7802111 | F54: 0.327 | G54: =[2]!AgePb76(H54) -> 2702.668922 | H54: 0.1855 | J54: 0.0046 | K54: =[2]!AgePb6U8(L54) -> 2825.172802 | L54: 0.55 | M54: =[2]!AgePb7U5(N54) -> 2754.435714 | N54: 14.07
A55: 94-8 | B55: 0.002028 | C55: 0.004609090909 | D55: =[2]!AgePb8Th2(C55) -> 92.94596413 | F55: 0.44 | G55: =[2]!AgePb76(H55) -> 2694.63773 | H55: 0.1846 | J55: 0.0039 | K55: =[2]!AgePb6U8(L55) -> 2699.180241 | L55: 0.52 | M55: =[2]!AgePb7U5(N55) -> 2697.62594 | N55: 13.25
A56: 94-8 | B56: 0.0021756 | C56: 2.1756 | D56: =[2]!AgePb8Th2(C56) -> 23355.16101 | F56: 0.001 | G56: =[2]!AgePb76(H56) -> 2651.02649 | H56: 0.1798 | J56: 0.0042 | K56: =[2]!AgePb6U8(L56) -> 2690.692532 | L56: 0.518 | M56: =[2]!AgePb7U5(N56) -> 2667.982891 | N56: 12.84
A57: 94-8 | B57: 0.0021966 | C57: 0.002752631579 | D57: =[2]!AgePb8Th2(C57) -> 55.56038457 | F57: 0.798 | G57: =[2]!AgePb76(H57) -> 2661.138698 | H57: 0.1809 | J57: 0.0042 | K57: =[2]!AgePb6U8(L57) -> 2711.890887 | L57: 0.523 | M57: =[2]!AgePb7U5(N57) -> 2683.273997 | N57: 13.05
A58: 94-8 | B58: 0.0019988 | C58: 0.007189928058 | D58: =[2]!AgePb8Th2(C58) -> 144.8045226 | F58: 0.278 | G58: =[2]!AgePb76(H58) -> 2682.054449 | H58: 0.1832 | J58: 0.0038 | K58: =[2]!AgePb6U8(L58) -> 2724.576521 | L58: 0.526 | M58: =[2]!AgePb7U5(N58) -> 2699.761341 | N58: 13.28
A59: 94-12 | B59: 0.002507 | C59: 0.008441077441 | D59: =[2]!AgePb8Th2(C59) -> 169.8969331 | F59: 0.297 | G59: =[2]!AgePb76(H59) -> 2676.627557 | H59: 0.1826 | J59: 0.0046 | K59: =[2]!AgePb6U8(L59) -> 2804.344305 | L59: 0.545 | M59: =[2]!AgePb7U5(N59) -> 2729.885297 | N59: 13.71
A60: 94-12 | B60: 0.0036448 | C60: 0.006272242299 | D60: =[2]!AgePb8Th2(C60) -> 126.3800638 | F60: 0.5811 | G60: =[2]!AgePb76(H60) -> 2670.27007 | H60: 0.1819 | J60: 0.0067 | K60: =[2]!AgePb6U8(L60) -> 2800.170518 | L60: 0.544 | M60: =[2]!AgePb7U5(N60) -> 2724.348089 | N60: 13.63
A61: 94-12 | B61: 0.0047386 | C61: 0.01053022222 | D61: =[2]!AgePb8Th2(C61) -> 211.7264396 | F61: 0.45 | G61: =[2]!AgePb76(H61) -> 2670.27007 | H61: 0.1819 | J61: 0.0058 | K61: =[2]!AgePb6U8(L61) -> 3849.713389 | L61: 0.817 | M61: =[2]!AgePb7U5(N61) -> 3114.776576 | N61: 20.49
A62: 94-12 | B62: 0.0006818 | C62: 0.004638095238 | D62: =[2]!AgePb8Th2(C62) -> 93.52950818 | F62: 0.147 | G62: =[2]!AgePb76(H62) -> 2663.884228 | H62: 0.1812 | J62: 0.0014 | K62: =[2]!AgePb6U8(L62) -> 2557.683594 | L62: 0.487 | M62: =[2]!AgePb7U5(N62) -> 2617.598127 | N62: 12.17
C63: Average | D63: =AVERAGE(D48:D62) -> 1989.401955 | G63: =AVERAGE(G48:G62) -> 2688.013419 | K63: =AVERAGE(K48:K62) -> 2793.31355 | M63: =AVERAGE(M48:M62) -> 2728.708102
C64: Maximim | D64: =MAX(D48:D63) -> 23355.16101 | G64: =AVERAGE(G48:G63) -> 2688.013419 | K64: =AVERAGE(K48:K63) -> 2793.31355 | M64: =AVERAGE(M48:M63) -> 2728.708102
C65: Minimum | D65: =MIN(D48:D64) -> 55.56038457 | G65: =MIN(G48:G64) -> 2651.02649 | K65: =MIN(K48:K64) -> 2557.683594 | M65: =MIN(M48:M64) -> 2617.598127
C68: Table 5 | D68: Age | E68: Age | F68: Age | G68: Age
C69: Statistics | D69: 208Pb/232Th | E69: 207Pb/206Pb | F69: 206Pb/238U | G69: 207Pb/235U
C70: Average | D70: 1989.401955 | E70: 2688.013419 | F70: 2793.31355 | G70: 2728.708102
C71: Maximim | D71: 23355.16101 | E71: 2688.013419 | F71: 2793.31355 | G71: 2728.708102
C72: Minimum | D72: 55.56038457 | E72: 2651.02649 | F72: 2557.683594 | G72: 2617.598127
C73: Difference | D73: =(D71-D72) -> 23299.60062 | E73: =(E71-E72) -> 36.98692886 | F73: =(F71-F72) -> 235.6299562 | G73: =(G71-G72) -> 111.1099746
A76: Table 9 | D76: Age | F76: Age | L76: Age
A77: Sample | B77: 208Pb/238U | C77: 208Pb/232Th | D77: 208Pb/232Th | E77: 232Th/238U | F77: 207Pb/206Pb | G77: 207Pb/206Pb | I77: 208Pb/206Pb | K77: 206Pb/238U | L77: 207Pb/235U | M77: 207Pb/235U
A78: 2013-01-27 | B78: =I78/(1/K78) -> 0.1030647 | C78: =(B78/E78) -> 0.1670416532 | D78: =[2]!AgePb8Th2(C78) -> 3122.224258 | E78: 0.617 | F78: =[2]!AgePb76(G78) -> 3347.229316 | G78: 0.2772 | I78: 0.1509 | K78: 0.683 | L78: =[2]!AgePb7U5(M78) -> 3350.665242 | M78: 26.11
A79: 2013-01-11 | B79: =I79/(1/K79) -> 0.0318008 | C79: =(B79/E79) -> 0.08435225464 | D79: =[2]!AgePb8Th2(C79) -> 1636.843019 | E79: 0.377 | F79: =[2]!AgePb76(G79) -> 2737.827107 | G79: 0.1895 | I79: 0.1016 | K79: 0.313 | L79: =[2]!AgePb7U5(M79) -> 2708.25832 | M79: 13.4
A80: 2013-01-15 | B80: 0.1557852 | C80: 0.1418808743 | D80: =[2]!AgePb8Th2(C80) -> 2681.693635 | E80: 1.098 | F80: =[2]!AgePb76(G80) -> 2736.958615 | G80: 0.1894 | I80: 0.2973 | K80: 0.524 | L80: =[2]!AgePb7U5(M80) -> 2727.812381 | M80: 13.68
A81: 2013-01-17 | B81: 0.079156 | C81: 0.140099115 | D81: =[2]!AgePb8Th2(C81) -> 2650.130402 | E81: 0.565 | F81: =[2]!AgePb76(G81) -> 2735.220045 | G81: 0.1892 | I81: 0.154 | K81: 0.514 | L81: =[2]!AgePb7U5(M81) -> 2708.963203 | M81: 13.41
A82: 2013-01-19 | B82: 0.1290315 | C82: 0.138594522 | D82: =[2]!AgePb8Th2(C82) -> 2623.438633 | E82: 0.931 | F82: =[2]!AgePb76(G82) -> 2740.429418 | G82: 0.1898 | I82: 0.2535 | K82: 0.509 | L82: =[2]!AgePb7U5(M82) -> 2703.310394 | M82: 13.33
A83: 2013-01-20 | B83: 0.0410826 | C83: 0.006038894605 | D83: =[2]!AgePb8Th2(C83) -> 121.6924418 | E83: 6.803 | F83: =[2]!AgePb76(G83) -> 2729.991601 | G83: 0.1886 | I83: 0.1794 | K83: 0.229 | L83: =[2]!AgePb7U5(M83) -> 1967.103391 | M83: 5.94
A84: 2013-01-21 | B84: 0.102543 | C84: 0.8074251969 | D84: =[2]!AgePb8Th2(C84) -> 11963.68447 | E84: 0.127 | F84: =[2]!AgePb76(G84) -> 2824.563347 | G84: 0.1998 | I84: 0.1995 | K84: 0.514 | L84: =[2]!AgePb7U5(M84) -> 2712.480293 | M84: 13.46
A85: 2013-01-26 | B85: 0.1065526 | C85: 0.1402007895 | D85: =[2]!AgePb8Th2(C85) -> 2651.932855 | E85: 0.76 | F85: =[2]!AgePb76(G85) -> 2731.736543 | G85: 0.1888 | I85: 0.2057 | K85: 0.518 | L85: =[2]!AgePb7U5(M85) -> 2714.584715 | M85: 13.49
A86: 2013-01-30 | B86: 0.1165016 | C86: 0.1337561424 | D86: =[2]!AgePb8Th2(C86) -> 2537.365137 | E86: 0.871 | F86: =[2]!AgePb76(G86) -> 2736.958615 | G86: 0.1894 | I86: 0.2722 | K86: 0.428 | L86: =[2]!AgePb7U5(M86) -> 2538.249746 | M86: 11.18
A87: 38-1 | B87: 0.0699048 | C87: 0.06582372881 | D87: =[2]!AgePb8Th2(C87) -> 1288.488216 | E87: 1.062 | F87: =[2]!AgePb76(G87) -> 2716.836158 | G87: 0.1871 | I87: 0.1533 | K87: 0.456 | L87: =[2]!AgePb7U5(M87) -> 2585.485381 | M87: 11.76
A88: 2013-01-02 | B88: 0.058212 | C88: 0.0792 | D88: =[2]!AgePb8Th2(C88) -> 1540.576572 | E88: 0.735 | F88: =[2]!AgePb76(G88) -> 2723.867464 | G88: 0.1879 | I88: 0.1617 | K88: 0.36 | L88: =[2]!AgePb7U5(M88) -> 2369.989095 | M88: 9.32
A89: 2013-01-05 | B89: 0.0623319 | C89: 0.1436218894 | D89: =[2]!AgePb8Th2(C89) -> 2712.487561 | E89: 0.434 | F89: =[2]!AgePb76(G89) -> 2724.743949 | G89: 0.188 | I89: 0.1201 | K89: 0.519 | L89: =[2]!AgePb7U5(M89) -> 2711.777849 | M89: 13.45
A90: 2013-01-07 | B90: 0.062458 | C90: 0.04609446494 | D90: =[2]!AgePb8Th2(C90) -> 910.8372354 | E90: 1.355 | F90: =[2]!AgePb76(G90) -> 2728.244524 | G90: 0.1884 | I90: 0.187 | K90: 0.334 | L90: =[2]!AgePb7U5(M90) -> 2304.982384 | M90: 8.68
A91: 2013-02-07 | B91: 0.0579628 | C91: 0.1341731481 | D91: =[2]!AgePb8Th2(C91) -> 2544.798011 | E91: 0.432 | F91: =[2]!AgePb76(G91) -> 2718.597231 | G91: 0.1873 | I91: 0.1141 | K91: 0.508 | L91: =[2]!AgePb7U5(M91) -> 2689.03914 | M91: 13.13
A92: 2013-01-08 | B92: 0.0621414 | C92: 0.0238729927 | D92: =[2]!AgePb8Th2(C92) -> 476.8567632 | E92: 2.603 | F92: =[2]!AgePb76(G92) -> 2719.476954 | G92: 0.1874 | I92: 0.1817 | K92: 0.342 | L92: =[2]!AgePb7U5(M92) -> 2320.595963 | M92: 8.83
A93: 2013-01-12 | B93: 0.118055 | C93: 0.1035570175 | D93: =[2]!AgePb8Th2(C93) -> 1991.684995 | E93: 1.14 | F93: =[2]!AgePb76(G93) -> 2713.30749 | G93: 0.1867 | I93: 0.3373 | K93: 0.35 | L93: =[2]!AgePb7U5(M93) -> 2339.020758 | M93: 9.01
A94: 2013-01-22 | B94: 0.0556686 | C94: 0.1226180617 | D94: =[2]!AgePb8Th2(C94) -> 2337.817333 | E94: 0.454 | F94: =[2]!AgePb76(G94) -> 2729.11833 | G94: 0.1885 | I94: 0.1098 | K94: 0.507 | L94: =[2]!AgePb7U5(M94) -> 2691.909482 | M94: 13.17
A95: 28-1?c+r | B95: 5.5e-06 | C95: 0.0007857142857 | D95: =[2]!AgePb8Th2(C95) -> 15.87480089 | E95: 0.007 | F95: . | G95: 0.0006 | I95: 0.0011 | K95: 0.005 | L95: =[2]!AgePb7U5(M95) -> 124.0977131 | M95: 0.13
A96: 32-1?c+r | B96: 4.2e-06 | C96: 0.0003 | D96: =[2]!AgePb8Th2(C96) -> 6.062759151 | E96: 0.014 | F96: . | G96: 0.0005 | I96: 0.0007 | K96: 0.006 | L96: =[2]!AgePb7U5(M96) -> 141.9119078 | M96: 0.15
A97: 33-1 | B97: 0.0997272 | C97: 0.1184408551 | D97: =[2]!AgePb8Th2(C97) -> 2262.468354 | E97: 0.842 | F97: =[2]!AgePb76(G97) -> 2722.99044 | G97: 0.1878 | I97: 0.2052 | K97: 0.486 | L97: =[2]!AgePb7U5(M97) -> 2649.473756 | M97: 12.59
A98: 37-1?c+r | B98: 2.6e-06 | C98: 4.684684685e-06 | D98: =[2]!AgePb8Th2(C98) -> 0.09468769503 | E98: 0.555 | F98: . | G98: 0.0006 | I98: 0.0013 | K98: 0.002 | L98: =[2]!AgePb7U5(M98) -> 59.16526184 | M98: 0.06
A99: 14-1?c+r | B99: 5.5e-06 | C99: 3.548387097e-05 | D99: =[2]!AgePb8Th2(C99) -> 0.7171953801 | E99: 0.155 | F99: . | G99: 0.0007 | I99: 0.0011 | K99: 0.005 | L99: =[2]!AgePb7U5(M99) -> 124.0977131 | M99: 0.13
A100: 2013-01-01 | B100: 0.1248068 | C100: 0.1410246328 | D100: =[2]!AgePb8Th2(C100) -> 2666.531772 | E100: 0.885 | F100: =[2]!AgePb76(G100) -> 2700.888106 | G100: 0.1853 | I100: 0.2452 | K100: 0.509 | L100: =[2]!AgePb7U5(M100) -> 2680.379104 | M100: 13.01
A101: 2013-01-03 | B101: 0.095521 | C101: 0.03792020643 | D101: =[2]!AgePb8Th2(C101) -> 752.277097 | E101: 2.519 | F101: =[2]!AgePb76(G101) -> 2669.359549 | G101: 0.1818 | I101: 0.3238 | K101: 0.295 | L101: =[2]!AgePb7U5(M101) -> 2158.549946 | M101: 7.38
A102: 2013-01-04 | B102: 0.0681912 | C102: 0.05331602815 | D102: =[2]!AgePb8Th2(C102) -> 1049.890042 | E102: 1.279 | F102: =[2]!AgePb76(G102) -> 2490.118557 | G102: 0.1633 | I102: 0.2952 | K102: 0.231 | L102: =[2]!AgePb7U5(M102) -> 1850.977394 | M102: 5.19
A103: 2013-01-06 | B103: 0.1516185 | C103: 0.1162718558 | D103: =[2]!AgePb8Th2(C103) -> 2223.232596 | E103: 1.304 | F103: =[2]!AgePb76(G103) -> 2699.10507 | G103: 0.1851 | I103: 0.3063 | K103: 0.495 | L103: =[2]!AgePb7U5(M103) -> 2651.712749 | M103: 12.62
A104: 2013-01-09 | B104: 0.1541192 | C104: 0.1351922807 | D104: =[2]!AgePb8Th2(C104) -> 2562.951933 | E104: 1.14 | F104: =[2]!AgePb76(G104) -> 2665.711662 | G104: 0.1814 | I104: 0.3064 | K104: 0.503 | L104: =[2]!AgePb7U5(M104) -> 2649.473756 | M104: 12.59
A105: 2013-01-10 | B105: 0.0932841 | C105: 0.09871333333 | D105: =[2]!AgePb8Th2(C105) -> 1902.775103 | E105: 0.945 | F105: =[2]!AgePb76(G105) -> 2672.089378 | G105: 0.1821 | I105: 0.1989 | K105: 0.469 | L105: =[2]!AgePb7U5(M105) -> 2587.075645 | M105: 11.78
A106: 2013-01-13 | B106: 0.1131984 | C106: 0.1378786845 | D106: =[2]!AgePb8Th2(C106) -> 2610.727153 | E106: 0.821 | F106: =[2]!AgePb76(G106) -> 2658.387894 | G106: 0.1806 | I106: 0.2246 | K106: 0.504 | L106: =[2]!AgePb7U5(M106) -> 2647.229814 | M106: 12.56
A107: 2013-01-16 | B107: 0.1433712 | C107: 0.1406979392 | D107: =[2]!AgePb8Th2(C107) -> 2660.743859 | E107: 1.019 | F107: =[2]!AgePb76(G107) -> 2658.387894 | G107: 0.1806 | I107: 0.2856 | K107: 0.502 | L107: =[2]!AgePb7U5(M107) -> 2642.726999 | M107: 12.5
A108: 2013-01-18 | B108: 0.1916826 | C108: 0.1406328687 | D108: =[2]!AgePb8Th2(C108) -> 2659.59083 | E108: 1.363 | F108: =[2]!AgePb76(G108) -> 2662.054459 | G108: 0.181 | I108: 0.3826 | K108: 0.501 | L108: =[2]!AgePb7U5(M108) -> 2641.974585 | M108: 12.49
A109: 2013-01-23 | B109: 4.8e-06 | C109: 0.0004363636364 | D109: =[2]!AgePb8Th2(C109) -> 8.817957705 | E109: 0.011 | F109: . | G109: 0.0005 | I109: 0.0008 | K109: 0.006 | L109: =[2]!AgePb7U5(M109) -> 141.9119078 | M109: 0.15
A110: 2013-01-24 | B110: 0.1834326 | C110: 0.1393864742 | D110: =[2]!AgePb8Th2(C110) -> 2637.49241 | E110: 1.316 | F110: =[2]!AgePb76(G110) -> 2649.180214 | G110: 0.1796 | I110: 0.3618 | K110: 0.507 | L110: =[2]!AgePb7U5(M110) -> 2632.142121 | M110: 12.36
A111: 2013-01-25 | B111: 0.065649 | C111: 0.1077980296 | D111: =[2]!AgePb8Th2(C111) -> 2069.212489 | E111: 0.609 | F111: =[2]!AgePb76(G111) -> 2686.561192 | G111: 0.1837 | I111: 0.1385 | K111: 0.474 | L111: =[2]!AgePb7U5(M111) -> 2603.624746 | M111: 11.99
A112: 2013-01-29 | B112: 5.5e-06 | C112: 0.0001833333333 | D112: =[2]!AgePb8Th2(C112) -> 3.70523557 | E112: 0.03 | F112: . | G112: 0.0006 | I112: 0.0011 | K112: 0.005 | L112: =[2]!AgePb7U5(M112) -> 141.9119078 | M112: 0.15
A113: 2013-01-31 | B113: 0.0540795 | C113: 0.1175641304 | D113: =[2]!AgePb8Th2(C113) -> 2246.618156 | E113: 0.46 | F113: =[2]!AgePb76(G113) -> 2669.359549 | G113: 0.1818 | I113: 0.1163 | K113: 0.465 | L113: =[2]!AgePb7U5(M113) -> 2577.496489 | M113: 11.66
A114: 34-1 | B114: 0.0425952 | C114: 0.1176662983 | D114: =[2]!AgePb8Th2(C114) -> 2248.465877 | E114: 0.362 | F114: =[2]!AgePb76(G114) -> 2685.660978 | G114: 0.1836 | I114: 0.0864 | K114: 0.493 | L114: =[2]!AgePb7U5(M114) -> 2640.468082 | M114: 12.47
A115: 35-1 | B115: 0.0706076 | C115: 0.02442324455 | D115: =[2]!AgePb8Th2(C115) -> 487.7163412 | E115: 2.891 | F115: =[2]!AgePb76(G115) -> 2633.390094 | G115: 0.1779 | I115: 0.2338 | K115: 0.302 | L115: =[2]!AgePb7U5(M115) -> 2163.385113 | M115: 7.42
A116: 36-1 | B116: 0.034801 | C116: 0.009750910619 | D116: =[2]!AgePb8Th2(C116) -> 196.1329416 | E116: 3.569 | F116: =[2]!AgePb76(G116) -> 2690.156395 | G116: 0.1841 | I116: 0.2677 | K116: 0.13 | L116: =[2]!AgePb7U5(M116) -> 1483.41159 | M116: 3.31
A117: 39-1 | B117: 0.0263012 | C117: 0.005427404045 | D117: =[2]!AgePb8Th2(C117) -> 109.40331 | E117: 4.846 | F117: =[2]!AgePb76(G117) -> 2638.98296 | G117: 0.1785 | I117: 0.1399 | K117: 0.188 | L117: =[2]!AgePb7U5(M117) -> 1756.494964 | M117: 4.64
A118: 40-1 | B118: 6.5e-06 | C118: 3.125e-05 | D118: =[2]!AgePb8Th2(C118) -> 0.6316222684 | E118: 0.208 | F118: . | G118: 0.0007 | I118: 0.0013 | K118: 0.005 | L118: =[2]!AgePb7U5(M118) -> 133.0438771 | M118: 0.14
C119: Average | D119: =AVERAGE(D78:D118) -> 1833.528928 | E119: Average | F119: =AVERAGE(F78:F118) -> 2716.102679 | K119: Average | L119: =AVERAGE(L78:L118) -> 2098.218656
C120: Maximim | D120: =MAX(D78:D119) -> 11963.68447 | E120: Maximim | F120: =MAX(F78:F119) -> 3347.229316 | K120: Maximim | L120: =MAX(L78:L119) -> 3350.665242
C121: Minimum | D121: =MIN(D78:D120) -> 0.09468769503 | E121: Minimum | F121: =MIN(F78:F120) -> 2490.118557 | K121: Minimum | L121: =MIN(L78:L120) -> 59.16526184
C124: Table 9 | D124: Age | E124: Age | F124: Age
C125: Statistics | D125: 208Pb/232Th | E125: 207Pb/206Pb | F125: 207Pb/235U
C126: Average | D126: 1833.528928 | E126: 2716.102679 | F126: 2098.218656
C127: Maximim | D127: 11963.68447 | E127: 3347.229316 | F127: 3350.665242
C128: Minimum | D128: 0.1 | E128: 2490.118557 | F128: 59.16526184
C129: Difference | D129: =(D127-D128) -> 11963.58447 | E129: =(E127-E128) -> 857.1107588 | F129: =(F127-F128) -> 3291.49998

Sheet 232_Th_11
O1: Age | P1: Age | Q1: Age | R1: Age | S1: Ratio | T1: Ratio | U1: Ratio
H2: 206Pb/238U | I2: 207Pb/235U | O2: 207Pb/206Pb | P2: 206Pb/238U | Q2: 207Pb/235U | R2: 208Pb/232Th | S2: 207Pb/206Pb | T2: 206Pb/238U | U2: 207Pb/235U
A3: cof01 | B3: 46 | C3: 995448 | D3: 0 | E3: 1.013 | F3: 0 | G3: 0.1248 | H3: 0.00013 | I3: 0.00222 | J3: 0.00379 | K3: 0.0013 | L3: 1e-05 | M3: 3e-05 | N3: 4e-05 | O3: 2025 | P3: =[2]!AgePb6U8(H3) -> 0.8379793762 | Q3: 2.3 | R3: 76 | S3: =(O3/R3) -> 26.64473684 | T3: =(R3/P3) -> 90.69435616 | U3: =(R3/Q3) -> 33.04347826
A4: cof02 | B4: 145 | C4: 1026430 | D4: 0.0001 | E4: 1.0156 | F4: 0 | G4: 0.0782 | H4: 0.00022 | I4: 0.00237 | J4: 0.00364 | K4: 0.0008 | L4: 1e-05 | M4: 3e-05 | N4: 3e-05 | O4: 1151 | P4: =[2]!AgePb6U8(H4) -> 1.41805514 | Q4: 2.4 | R4: 73 | S4: =(O4/R4) -> 15.76712329 | T4: =(R4/P4) -> 51.47895731 | U4: =(R4/Q4) -> 30.41666667
A5: cof03 | B5: 18 | C5: 923608 | D5: 0 | E5: 1.0174 | F5: 0 | G5: 0.0601 | H5: 0.00034 | I5: 0.00286 | J5: 0.00463 | K5: 0.0006 | L5: 1e-05 | M5: 3e-05 | N5: 5e-05 | O5: 609 | P5: =[2]!AgePb6U8(H5) -> 2.191408304 | Q5: 2.9 | R5: 93 | S5: 6.548387097 | T5: 42.4384629 | U5: 32.06896552
A6: cof04 | B6: 175 | C6: 1538763 | D6: 0.0001 | E6: 1.012 | F6: 0 | G6: 0.0963 | H6: 0.00014 | I6: 0.00191 | J6: 0.00372 | K6: 0.001 | L6: 1e-05 | M6: 2e-05 | N6: 3e-05 | O6: 1554 | P6: =[2]!AgePb6U8(H6) -> 0.9024348165 | Q6: 1.9 | R6: 75 | S6: 20.72 | T6: 83.10849562 | U6: 39.47368421
A7: cof05 | B7: 23 | C7: 1716439 | D7: 0 | E7: 1.0201 | F7: 0 | G7: 0.0692 | H7: 0.00021 | I7: 0.00197 | J7: 0.00461 | K7: 0.0007 | L7: 1e-05 | M7: 2e-05 | N7: 4e-05 | O7: 904 | P7: =[2]!AgePb6U8(H7) -> 1.353604855 | Q7: 2 | R7: 93 | S7: 9.720430108 | T7: 68.70542735 | U7: 46.5
A8: cof06 | B8: 1057 | C8: 1347209 | D8: 0.0008 | E8: 1.0154 | F8: 0 | G8: 0.0726 | H8: 0.00064 | I8: 0.0064 | J8: 0.00259 | K8: 0.0007 | L8: 1e-05 | M8: 8e-05 | N8: 2e-05 | O8: 1004 | P8: =[2]!AgePb6U8(H8) -> 4.124385414 | Q8: 6.5 | R8: 52 | S8: 19.30769231 | T8: 12.60793907 | U8: 8
A9: cof07 | B9: 145 | C9: 586259 | D9: 0.0002 | E9: 1.0177 | F9: 0 | G9: 0.0971 | H9: 0.00017 | I9: 0.00228 | J9: 0.00304 | K9: 0.001 | L9: 1e-05 | M9: 2e-05 | N9: 3e-05 | O9: 1568 | P9: =[2]!AgePb6U8(H9) -> 1.095797271 | Q9: 2.3 | R9: 61 | S9: 25.70491803 | T9: 55.66723118 | U9: 26.52173913
A10: cof08 | B10: 76 | C10: 1025206 | D10: 0.0001 | E10: 1.0159 | F10: 0 | G10: 0.1418 | H10: 6e-05 | I10: 0.00102 | J10: 0.00331 | K10: 0.0016 | L10: 1e-05 | M10: 1e-05 | N10: 4e-05 | O10: 2250 | P10: =[2]!AgePb6U8(H10) -> 0.3867732478 | Q10: 1 | R10: 67 | S10: 33.58208955 | T10: 173.2281133 | U10: 67
A11: cof08b | B11: 314 | C11: 960749 | D11: 0.0003 | E11: 1.0131 | F11: 0 | G11: 0.1575 | H11: 3e-05 | I11: 0.00069 | J11: 0.0035 | K11: 0.0018 | L11: 1e-05 | M11: 1e-05 | N11: 3e-05 | O11: 2429 | P11: =[2]!AgePb6U8(H11) -> 0.1933895246 | Q11: 0.7 | R11: 71 | S11: 34.21126761 | T11: 367.1346736 | U11: 101.4285714
A12: cof08c | B12: 41 | C12: 607466 | D12: 0.0001 | E12: 1.0093 | F12: 0 | G12: 0.0672 | H12: 0.00022 | I12: 0.00199 | J12: 0.00312 | K12: 0.0007 | L12: 1e-05 | M12: 2e-05 | N12: 4e-05 | O12: 843 | P12: =[2]!AgePb6U8(H12) -> 1.41805514 | Q12: 2 | R12: 63 | S12: 13.38095238 | T12: 44.42704535 | U12: 31.5
A13: cof09 | B13: 249 | C13: 1334404 | D13: 0.0002 | E13: 1.0137 | F13: 0 | G13: 0.0583 | H13: 0.00013 | I13: 0.00104 | J13: 0.0038 | K13: 0.0006 | L13: 1e-05 | M13: 1e-05 | N13: 3e-05 | O13: 540 | P13: =[2]!AgePb6U8(H13) -> 0.8379793762 | Q13: 1.1 | R13: 77 | S13: 7.012987013 | T13: 91.88770295 | U13: 70
A14: cof10 | B14: 319 | C14: 1194741 | D14: 0.0003 | E14: 1.0174 | F14: 0 | G14: 0.0771 | H14: 4e-05 | I14: 0.0005 | J14: 0.00311 | K14: 0.0009 | L14: 1e-05 | M14: 1e-05 | N14: 3e-05 | O14: 1123 | P14: =[2]!AgePb6U8(H14) -> 0.2578514103 | Q14: 0.5 | R14: 63 | S14: 17.82539683 | T14: 244.3267614 | U14: 126
A15: cof10b | B15: 879 | C15: 464343 | D15: 0.0019 | E15: 1.015 | F15: 0 | G15: 0.0468 | H15: 0.00105 | I15: 0.00674 | J15: 0.1186 | K15: 0.0005 | L15: 1e-05 | M15: 7e-05 | N15: 0.0009 | O15: 37 | P15: =[2]!AgePb6U8(H15) -> 6.765183791 | Q15: 6.8 | R15: 2266 | S15: =(R15/15) -> 151.0666667 | T15: 334.9502497 | U15: 333.2352941
A16: carn01 | B16: 31 | C16: 399695 | D16: 0.0001 | E16: 1.0076 | F16: 0 | G16: 0.0464 | H16: 0.00085 | I16: 0.00542 | J16: 0.5446 | K16: 0.0005 | L16: 1e-05 | M16: 6e-05 | N16: 0.0053 | O16: 21 | P16: =[2]!AgePb6U8(H16) -> 5.477124606 | Q16: 5.5 | R16: 8788 | S16: =(R16/15) -> 585.8666667 | T16: 1604.491523 | U16: 1597.818182
A17: carn02 | B17: 90 | C17: 1414164 | D17: 0.0001 | E17: 1.0168 | F17: 0 | G17: 0.0463 | H17: 0.00066 | I17: 0.00425 | J17: 0.8618 | K17: 0.0005 | L17: 1e-05 | M17: 5e-05 | N17: 0.0079 | O17: 13 | P17: =[2]!AgePb6U8(H17) -> 4.253229949 | Q17: 4.3 | R17: 12563 | S17: 837.5333333 | T17: 2953.755182 | U17: 2921.627907
A18: carn03 | B18: 37 | C18: 339625 | D18: 0.0001 | E18: 0.9952 | F18: 0 | G18: 0.0462 | H18: 0.00072 | I18: 0.00457 | J18: 0.297 | K18: 0.0005 | L18: 1e-05 | M18: 6e-05 | N18: 0.0035 | O18: 11 | P18: =[2]!AgePb6U8(H18) -> 4.639748102 | Q18: 4.6 | R18: 5256 | S18: 350.4 | T18: 1132.82012 | U18: 1142.608696
A19: carn04 | B19: 67 | C19: 661112 | D19: 0.0001 | E19: 1.0116 | F19: 0 | G19: 0.0464 | H19: 0.00065 | I19: 0.00418 | J19: 0.572 | K19: 0.0005 | L19: 1e-05 | M19: 5e-05 | N19: 0.0056 | O19: 17 | P19: =[2]!AgePb6U8(H19) -> 4.188808003 | Q19: 4.2 | R19: 9143 | S19: 609.5333333 | T19: 2182.721193 | U19: 2176.904762
A20: carn05 | B20: 25 | C20: 1209663 | D20: 0 | E20: 1.0069 | F20: 0 | G20: 0.0465 | H20: 0.00055 | I20: 0.00352 | J20: 1.7686 | K20: 0.0005 | L20: 1e-05 | M20: 4e-05 | N20: 0.0221 | O20: 22 | P20: =[2]!AgePb6U8(H20) -> 3.544553137 | Q20: 3.6 | R20: 20583 | S20: 1372.2 | T20: 5806.937914 | U20: 5717.5
A21: carn06 | B21: 228 | C21: 1166612 | D21: 0.0002 | E21: 1.0204 | F21: 0 | G21: 0.0462 | H21: 0.00053 | I21: 0.00336 | J21: 0.0468 | K21: 0.0005 | L21: 1e-05 | M21: 4e-05 | N21: 0.0005 | O21: 9 | P21: =[2]!AgePb6U8(H21) -> 3.415694437 | Q21: 3.4 | R21: 925 | S21: 61.66666667 | T21: 270.8087673 | U21: 272.0588235
A22: carn07 | B22: 25 | C22: 740907 | D22: 0 | E22: 0.9933 | F22: 0 | G22: 0.0463 | H22: 0.00063 | I22: 0.00402 | J22: 1.3572 | K22: 0.0005 | L22: 1e-05 | M22: 5e-05 | N22: 0.0165 | O22: 11 | P22: =[2]!AgePb6U8(H22) -> 4.059962181 | Q22: 4.1 | R22: 17331 | S22: 1155.4 | T22: 4268.758976 | U22: 4227.073171
A23: carn08 | B23: 283 | C23: 1530451 | D23: 0.0002 | E23: 1.0066 | F23: 0 | G23: 0.0467 | H23: 0.00079 | I23: 0.00508 | J23: 0.1377 | K23: 0.0005 | L23: 1e-05 | M23: 7e-05 | N23: 0.0014 | O23: 35 | P23: =[2]!AgePb6U8(H23) -> 5.090656659 | Q23: 5.1 | R23: 2608 | S23: 173.8666667 | T23: 512.3111171 | U23: 511.372549
A24: carn09 | B24: 242 | C24: 1130958 | D24: 0.0002 | E24: 1.02 | F24: 0 | G24: 0.0466 | H24: 0.00069 | I24: 0.00442 | J24: 0.1237 | K24: 0.0005 | L24: 1e-05 | M24: 6e-05 | N24: 0.0012 | O24: 29 | P24: =[2]!AgePb6U8(H24) -> 4.446491922 | Q24: 4.5 | R24: 2358 | S24: 157.2 | T24: 530.3056974 | U24: 524
N25: Average | O25: =AVERAGE(O3:O24) -> 736.5909091 | P25: =AVERAGE(P3:P24) -> 2.768143939 | Q25: 3.259090909 | R25: 3758.409091 | S25: 258.4163325 | T25: 951.0711774 | U25: 910.734204
N26: Maximum | O26: =MAX(O3:O25) -> 2429 | P26: =MAX(P3:P25) -> 6.765183791 | Q26: 6.8 | R26: 20583 | S26: =MAX(S3:S24) -> 1372.2 | T26: =MAX(T3:T24) -> 5806.937914 | U26: =MAX(U3:U24) -> 5717.5
K27: =(R26/P27) -> 106432.859 | N27: Minimum | O27: =MIN(O3:O26) -> 9 | P27: =MIN(P3:P26) -> 0.1933895246 | Q27: 0.5 | R27: 52 | S27: 6.548387097 | T27: 12.60793907 | U27: 8
N30: Statistical | O30: Age | P30: Age | Q30: Age | R30: Age | S30: Ratio | T30: Ratio | U30: Ratio
N31: Summary | O31: 207/206 | P31: 206Pb/238U | Q31: 207Pb/235U | R31: 208Pb/232Th | S31: 207Pb/206Pb | T31: 206Pb/238U | U31: 207Pb/235U
N32: Average | O32: 736.5909091 | P32: 2.768143939 | Q32: 3.259090909 | R32: 3758.409091 | S32: 258.4163325 | T32: 951.0711774 | U32: 910.734204
N33: Maximum | O33: 2429 | P33: 6.765183791 | Q33: 6.8 | R33: 20583 | S33: 1372.2 | T33: 5806.937914 | U33: 5717.5
N34: Minimum | O34: 9 | P34: 0.1933895246 | Q34: 0.5 | R34: 52 | S34: 6.548387097 | T34: 12.60793907 | U34: 8
N35: Difference | O35: =(O33-O34) -> 2420 | P35: 6.571794266 | Q35: 6.3 | R35: 20531 | S35: 1365.651613 | T35: 5794.329974 | U35: 5709.5
N38: Statistical | O38: Ratio | P38: Ratio | Q38: Ratio
N39: Summary | O39: 207Pb/206Pb | P39: 206Pb/238U | Q39: 207Pb/235U
N40: Average | O40: 258.4163325 | P40: 951.0711774 | Q40: 910.734204
N41: Maximum | O41: 1372.2 | P41: 5806.937914 | Q41: 5717.5
N42: Minimum | O42: 6.548387097 | P42: 12.60793907 | Q42: 8
N43: Difference | O43: =(O41-O42) -> 1365.651613 | P43: =(P41-P42) -> 5794.329974 | Q43: =(Q41-Q42) -> 5709.5

Sheet Thorium_A
A1: Sample | B1: 206Pb/204Pb | D1: 208Pb/204Pb | F1: 238U/204Pb | H1: 207Pb/206Pb | I1: Age | J1: 238U/204Pb | L1: 232Th/204Pb | M1: 206Pb/238U | N1: 206Pb/238U, Age | O1: 208Pb/232Th, Age | Q1: 206Pb/238U | R1: 208Pb/232Th | S1: 207Pb/206Pb
A2: 0L1 | B2: 16.71 | C2: -7 | D2: 14.695 | E2: -39 | F2: 36.34 | G2: -10 | H2: 0.8794 | I2: =[2]!AgePb76($H$2) -> 5056.109324 | J2: 3.19 | K2: -11 | L2: 10.53 | M2: =(B2/J2) -> 5.238244514 | N2: =[2]!AgePb6U8(M2) -> 11801.4428 | O2: =[2]!AgePb8Th2(D2/L2) -> 17657.54907 | Q2: 51612.00329 | R2: 173633.1751 | S2: 5278.872505
A3: 0L2 | B3: 13.15 | C3: -67 | D3: 12.63 | E3: -30 | F3: 33.06 | G3: -55 | H3: 0.956 | I3: =[2]!AgePb76($H$3) -> 5174.06204 | J3: 2.94 | K3: -58 | L3: 8 | M3: 4.472789116 | N3: =[2]!AgePb6U8(M3) -> 10957.53992 | O3: =[2]!AgePb8Th2(D3/L3) -> 19147.14069 | Q3: 50358.6085 | R3: 172926.0448 | S3: 5224.665421
A4: 0L3 | B4: 17.69 | C4: -11 | D4: 15.065 | E4: -43 | F4: 37.34 | G4: -11 | H4: 0.8517 | I4: =[2]!AgePb76($H$4) -> 5010.74991 | J4: 1.43 | K4: -10 | L4: 4.17 | M4: 12.37062937 | N4: =[2]!AgePb6U8(M4) -> 16715.94175 | O4: =[2]!AgePb8Th2(D4/L4) -> 30900.76807 | Q4: 48965.53258 | R4: 142070.4095 | S4: 5209.254997
A5: PX1 | B5: 12.234 | C5: -67 | D5: 11.992 | E5: -63 | F5: 32.28 | G5: -15 | H5: 0.9802 | I5: =[2]!AgePb76($H$5) -> 5209.254997 | J5: 0.456 | K5: -10 | L5: 2.012 | M5: 26.82894737 | N5: =[2]!AgePb6U8(M5) -> 21441.26834 | O5: =[2]!AgePb8Th2(D5/L5) -> 39216.04347 | Q5: 43933.296 | R5: 134555.0693 | S5: 5206.093827
A6: PX2 | B6: 13.371 | C6: -59 | D6: 12.676 | E6: -30 | F6: 33.24 | G6: -61 | H6: 0.9476 | I6: =[2]!AgePb76($H$6) -> 5161.625437 | J6: 0.268 | K6: -11 | L6: 0.772 | M6: 49.89179104 | N6: =[2]!AgePb6U8(M6) -> 25332.48435 | O6: =[2]!AgePb8Th2(D6/L6) -> 57758.48661 | Q6: 41519.59085 | R6: 131778.156 | S6: 5174.06204
A7: PX3 | B7: 18.651 | C7: -82 | D7: 15.531 | E7: -68 | F7: 38.29 | G7: -17 | H7: 0.83262 | I7: =[2]!AgePb76($H$7) -> 4978.585191 | J7: 0.12 | K7: -4 | L7: 0.154 | M7: 155.425 | N7: =[2]!AgePb6U8(M7) -> 32571.00185 | O7: =[2]!AgePb8Th2(D7/L7) -> 93451.38996 | Q7: 41031.96668 | R7: 130861.2033 | S7: 5161.625437
A8: M1 | B8: 14.03 | C8: -7 | D8: 13.011 | E8: -37 | F8: 33.79 | G8: -10 | H8: 0.9272 | I8: =[2]!AgePb76($H$8) -> 5130.929707 | J8: 0.226 | K8: -15 | L8: 0.644 | M8: 62.07964602 | N8: =[2]!AgePb6U8(M8) -> 26716.50701 | O8: =[2]!AgePb8Th2(D8/L8) -> 61731.42613 | Q8: 38205.31469 | R8: 130120.0131 | S8: 5146.967712
A9: M2 | B9: 12.41 | C9: -24 | D9: 12.15 | E9: -30 | F9: 32.4 | G9: -7 | H9: 0.978 | I9: =[2]!AgePb76($H$9) -> 5206.093827 | J9: 0.251 | K9: -13 | L9: 0.437 | M9: 49.44223108 | N9: =[2]!AgePb6U8(M9) -> 25275.28601 | O9: =[2]!AgePb8Th2(D9/L9) -> 67922.92308 | Q9: 37923.51555 | R9: 128632.4113 | S9: 5130.929707
A10: M3 | B10: 13.71 | C10: -9 | D10: 12.87 | E10: -8 | F10: 33.53 | G10: -13 | H10: 0.9378 | I10: =[2]!AgePb76($H$10) -> 5146.967712 | J10: 0.368 | K10: -18 | L10: 0.504 | M10: 37.25543478 | N10: =[2]!AgePb6U8(M10) -> 23492.57461 | O10: =[2]!AgePb8Th2(D10/L10) -> 66265.6197 | Q10: 36605.91007 | R10: 112890.2444 | S10: 5098.262718
A11: WR | B11: 17.04 | C11: -8 | D11: 14.898 | E11: -29 | F11: 36.71 | G11: -8 | H11: 0.8735 | I11: =[2]!AgePb76($H$11) -> 5046.576263 | J11: 0.937 | K11: -30 | L11: 2.659 | M11: 18.18569904 | N11: =[2]!AgePb6U8(M11) -> 19043.77218 | O11: =[2]!AgePb8Th2(D11/L11) -> 38150.63403 | Q11: 36367.99127 | R11: 111967.4716 | S11: 5080.517939
A12: Metal | B12: 15.61 | C12: -11 | D12: 13.968 | E12: -60 | F12: 35.48 | G12: -14 | H12: 0.8947 | I12: =[2]!AgePb76($H$12) -> 5080.517939 | J12: 2.52 | K12: -10 | L12: . | M12: 6.194444444 | N12: =[2]!AgePb6U8(M12) -> 12720.76792 | O12: . | Q12: 36183.83565 | R12: 106435.239 | S12: 5056.109324
A13: White | B13: 17.72 | C13: -32 | D13: 15.338 | E13: -46 | F13: 37.32 | G13: -17 | H13: 0.8629 | I13: =[2]!AgePb76($H$13) -> 5029.27614 | J13: 0.79 | K13: -13 | L13: 0.293 | M13: 22.43037975 | N13: =[2]!AgePb6U8(M13) -> 20332.20603 | O13: =[2]!AgePb8Th2(D13/L13) -> 80380.77396 | Q13: 33843.69955 | R13: 104843.3122 | S13: 5053.853396
A14: OL1 | B14: 16.39 | C14: -25 | D14: 14.39 | E14: -11 | F14: 36.2 | G14: -26 | H14: 0.878 | I14: =[2]!AgePb76($H$14) -> 5053.853396 | J14: 0.018 | K14: -46 | L14: . | M14: 910.5555556 | N14: =[2]!AgePb6U8(M14) -> 43933.296 | O14: . | Q14: 33413.59716 | R14: 103440.8536 | S14: 5046.576263
A15: 0L3 | B15: 11.27 | C15: -3.4 | D15: 11.66 | E15: -1.63 | F15: 31.37 | G15: -3 | H15: 1.03 | I15: =[2]!AgePb76($H$15) -> 5278.872505 | J15: 0.95 | K15: -82 | L15: . | M15: 11.86315789 | N15: =[2]!AgePb6U8(M15) -> 16466.50925 | O15: . | Q15: 32571.00185 | R15: 103415.1346 | S15: 5045.927483
A16: PXI | B16: 17.904 | C16: -50 | D16: 15.468 | E16: -37 | F16: 37.74 | G16: -9 | H16: 0.8639 | I16: =[2]!AgePb76($H$16) -> 5030.917837 | J16: 0.101 | K16: -4 | L16: 0.249 | M16: 177.2673267 | N16: =[2]!AgePb6U8(M16) -> 33413.59716 | O16: =[2]!AgePb8Th2(D16/L16) -> 83780.60256 | Q16: 30101.69132 | R16: 101282.6451 | S16: 5036.484558
A17: M1 | B17: 17.986 | C17: -41 | D17: 15.397 | E17: -34 | F17: 37.882 | G17: -57 | H17: 0.8561 | I17: =[2]!AgePb76($H$17) -> 5018.05875 | J17: 0.031 | K17: -7 | L17: 0.058 | M17: 580.1935484 | N17: =[2]!AgePb6U8(M17) -> 41031.96668 | O17: =[2]!AgePb8Th2(D17/L17) -> 112890.2444 | Q17: 29479.39589 | R17: 98173.62581 | S17: 5035.994309
A18: M2 | B18: 11.98 | C18: -1.34 | D18: 11.87 | E18: -67 | F18: 31.85 | G18: -1.22 | H18: 0.991 | I18: =[2]!AgePb76($H$18) -> 5224.665421 | J18: 0.36 | L18: 2.1 | M18: 33.27777778 | N18: =[2]!AgePb6U8(M18) -> 22784.8333 | O18: =[2]!AgePb8Th2(D18/L18) -> 38301.66404 | Q18: 29155.27519 | R18: 96702.77567 | S18: 5033.540362
A19: Metal | B19: 14.75 | C19: -61 | D19: 13.36 | E19: -29 | F19: 34.13 | G19: -63 | H19: 0.906 | I19: =[2]!AgePb76($H$19) -> 5098.262718 | J19: 2.23 | K19: -49 | L19: 2.05 | M19: 6.614349776 | N19: =[2]!AgePb6U8(M19) -> 13086.44381 | O19: =[2]!AgePb8Th2(D19/L19) -> 40771.63934 | Q19: 28703.80069 | R19: 94033.51576 | S19: 5032.704992
A20: OL1 | B20: 18.217 | C20: -34 | D20: 15.352 | E20: -27 | F20: 37.69 | G20: -7 | H20: 0.8427 | I20: =[2]!AgePb76($H$20) -> 4995.674293 | J20: 0.2 | L20: 0.103 | M20: 91.085 | N20: =[2]!AgePb6U8(M20) -> 29155.27519 | O20: =[2]!AgePb8Th2(D20/L20) -> 101282.6451 | Q20: 26826.10846 | R20: 93451.38996 | S20: 5032.393641
A21: 0L2 | B21: 17.25 | C21: -8 | D21: 15.07 | E21: -21 | F21: 36.941 | G21: -65 | H21: 0.8731 | I21: =[2]!AgePb76($H$21) -> 5045.927483 | J21: 0.18 | L21: 0.026 | M21: 95.83333333 | N21: =[2]!AgePb6U8(M21) -> 29479.39589 | O21: =[2]!AgePb8Th2(D21/L21) -> 128632.4113 | Q21: 26716.50701 | R21: 84307.01683 | S21: 5030.917837
A22: 0L3 | B22: 17.622 | C22: -49 | D22: 15.126 | E22: -18 | F22: 37.367 | G22: -50 | H22: 0.8584 | I22: =[2]!AgePb76($H$22) -> 5021.863422 | J22: 0.279 | K22: -47 | L22: 0.085 | M22: 63.16129032 | N22: =[2]!AgePb6U8(M22) -> 26826.10846 | O22: =[2]!AgePb8Th2(D22/L22) -> 104843.3122 | Q22: 25458.49234 | R22: 83780.60256 | S22: 5029.27614
A23: PX1 | B23: 17.993 | C23: -44 | D23: 15.564 | E23: -40 | F23: 37.9 | G23: -10 | H23: 0.86499 | I23: =[2]!AgePb76($H$23) -> 5032.704992 | J23: 0.006 | L23: 0.0138 | M23: 2998.833333 | N23: =[2]!AgePb6U8(M23) -> 51612.00329 | O23: =[2]!AgePb8Th2(D23/L23) -> 142070.4095 | Q23: 25332.48435 | R23: 82584.77793 | S23: 5024.338903
A24: PX2 | B24: 17.899 | C24: -43 | D24: 15.366 | E24: -27 | F24: 37.903 | G24: -67 | H24: 0.8582 | I24: =[2]!AgePb76($H$24) -> 5021.533011 | J24: 0.009 | L24: 0.331 | M24: 1988.777778 | N24: =[2]!AgePb6U8(M24) -> 48965.53258 | O24: =[2]!AgePb8Th2(D24/L24) -> 78001.14229 | Q24: 25275.28601 | R24: 80380.77396 | S24: 5021.863422
A25: PX3 | B25: 18.54 | C25: -19 | D25: 15.602 | E25: -15 | F25: 38.399 | G25: -46 | H25: 0.84148 | I25: =[2]!AgePb76($H$25) -> 4993.617555 | J25: 0.066 | K25: -4 | L25: 0.081 | M25: 280.9090909 | N25: =[2]!AgePb6U8(M25) -> 36367.99127 | O25: =[2]!AgePb8Th2(D25/L25) -> 106435.239 | Q25: 24764.40953 | R25: 78001.14229 | S25: 5021.533011
A26: Ml | B26: 17.987 | C26: -41 | D26: 15.384 | E26: -15 | F26: 37.755 | G26: -54 | H26: 0.8553 | I26: =[2]!AgePb76($H$26) -> 5016.732841 | J26: failed | L26: . | M26: . | N26: . | O26: . | Q26: 24661.15645 | R26: 67922.92308 | S26: 5018.05875
A27: M2 | B27: 18.15 | C27: -42 | D27: 15.468 | E27: -45 | F27: 38.1 | G27: -11 | H27: 0.8522 | I27: =[2]!AgePb76($H$27) -> 5011.582477 | J27: 0.029 | L27: 0.061 | M27: 625.862069 | N27: =[2]!AgePb6U8(M27) -> 41519.59085 | O27: =[2]!AgePb8Th2(D27/L27) -> 111967.4716 | Q27: 23492.57461 | R27: 66265.6197 | S27: 5017.528544
A28: M3 | B28: 18.078 | C28: -15 | D28: 15.546 | E28: -14 | F28: 38.043 | G28: -43 | H28: 0.8599 | I28: =[2]!AgePb76($H$28) -> 5024.338903 | J28: 0.403 | K28: -12 | L28: 0.02 | M28: 44.85856079 | N28: =[2]!AgePb6U8(M28) -> 24661.15645 | O28: =[2]!AgePb8Th2(D28/L28) -> 134555.0693 | Q28: 22784.8333 | R28: 61731.42613 | S28: 5016.732841
A29: WR | B29: 18.388 | C29: -22 | D29: 15.597 | E29: -19 | F29: 38.371 | G29: -53 | H29: 0.84819 | I29: =[2]!AgePb76($H$29) -> 5004.890637 | J29: 0.097 | K29: -3 | L29: . | M29: 189.5670103 | N29: =[2]!AgePb6U8(M29) -> 33843.69955 | O29: . | Q29: 22504.62977 | R29: 57758.48661 | S29: 5016.732841
A30: Metal | B30: 18.329 | C30: -14 | D30: 15.574 | E30: -14 | F30: 38.337 | G30: -41 | H30: 0.84969 | I30: =[2]!AgePb76($H$30) -> 5007.397745 | J30: 0.216 | K30: -2 | L30: 0.122 | M30: 84.85648148 | N30: =[2]!AgePb6U8(M30) -> 28703.80069 | O30: =[2]!AgePb8Th2(D30/L30) -> 98173.62581 | Q30: 22495.04966 | R30: 57329.1927 | S30: 5016.401158
A31: White | B31: 17.96 | C31: -22 | D31: 15.58 | E31: -22 | F31: 37.98 | G31: -61 | H31: 0.867 | I31: =[2]!AgePb76($H$31) -> 5035.994309 | J31: 0.17 | L31: 0.094 | M31: 105.6470588 | N31: =[2]!AgePb6U8(M31) -> 30101.69132 | O31: =[2]!AgePb8Th2(D31/L31) -> 103415.1346 | Q31: 21441.26834 | R31: 40771.63934 | S31: 5012.713936
A32: OL1 | B32: 18.25 | C32: -9 | D32: 15.6 | E32: -8 | F32: 38.14 | G32: -19 | H32: 0.8551 | I32: =[2]!AgePb76($H$32) -> 5016.401158 | J32: 0.051 | K32: -5 | L32: 0.0241 | M32: 357.8431373 | N32: =[2]!AgePb6U8(M32) -> 37923.51555 | O32: =[2]!AgePb8Th2(D32/L32) -> 130861.2033 | Q32: 20332.20603 | R32: 39216.04347 | S32: 5011.582477
A33: 0L2 | B33: 17.76 | C33: -22 | D33: 15.434 | E33: -34 | F33: 37.77 | G33: -11 | H33: 0.8673 | I33: =[2]!AgePb76($H$33) -> 5036.484558 | J33: 0.559 | K33: -49 | L33: 0.093 | M33: 31.77101968 | N33: =[2]!AgePb6U8(M33) -> 22495.04966 | O33: =[2]!AgePb8Th2(D33/L33) -> 103440.8536 | Q33: 19043.77218 | R33: 38301.66404 | S33: 5010.74991
A34: 0L3 | B34: 18.17 | C34: -14 | D34: 15.5 | E34: -17 | F34: 38.13 | G34: -29 | H34: 0.85288 | I34: =[2]!AgePb76($H$34) -> 5012.713936 | J34: 0.357 | K34: -27 | L34: 0.243 | M34: 50.89635854 | N34: =[2]!AgePb6U8(M34) -> 25458.49234 | O34: =[2]!AgePb8Th2(D34/L34) -> 84307.01683 | Q34: 16715.94175 | R34: 38150.63403 | S34: 5008.249091
A35: PX1 | B35: 18.022 | C35: -60 | D35: 15.6 | E35: -9 | F35: 37.95 | G35: -21 | H35: 0.8655 | I35: =[2]!AgePb76($H$35) -> 5033.540362 | J35: 0.0073 | K35: -4 | L35: 0.0029 | M35: 2468.767123 | N35: =[2]!AgePb6U8(M35) -> 50358.6085 | O35: =[2]!AgePb8Th2(D35/L35) -> 173633.1751 | Q35: 16466.50925 | R35: 34120.74316 | S35: 5007.581415
A36: PX2 | B36: 18.194 | C36: -57 | D36: 15.574 | E36: -41 | F36: 38.21 | G36: -10 | H36: 0.85578 | I36: =[2]!AgePb76($H$36) -> 5017.528544 | J36: 0.399 | K36: -6 | L36: 0.15 | M36: 45.59899749 | N36: =[2]!AgePb6U8(M36) -> 24764.40953 | O36: =[2]!AgePb8Th2(D36/L36) -> 94033.51576 | Q36: 13287.8987 | R36: 30900.76807 | S36: 5007.414443
A37: PX3 | B37: 18.36 | C37: -10 | D37: 15.618 | E37: -38 | F37: 38.4 | G37: -10 | H37: 0.8498 | I37: =[2]!AgePb76($H$37) -> 5007.581415 | J37: 0.577 | K37: -21 | L37: 0.267 | M37: 31.81975737 | N37: =[2]!AgePb6U8(M37) -> 22504.62977 | O37: =[2]!AgePb8Th2(D37/L37) -> 82584.77793 | Q37: 13086.44381 | R37: 19147.14069 | S37: 5007.397745
A38: Ml | B38: 18.32 | C38: -7 | D38: 15.58 | E38: -9 | F38: 38.31 | G38: -15 | H38: 0.8502 | I38: =[2]!AgePb76($H$38) -> 5008.249091 | J38: 0.049 | K38: -1 | L38: 0.023 | M38: 373.877551 | N38: =[2]!AgePb6U8(M38) -> 38205.31469 | O38: =[2]!AgePb8Th2(D38/L38) -> 131778.156 | Q38: 12720.76792 | R38: 17657.54907 | S38: 5006.930109
A39: M2 | B39: 18.365 | C39: -13 | D39: 15.599 | E39: -13 | F39: 38.371 | G39: -46 | H39: 0.84941 | I39: =[2]!AgePb76($H$39) -> 5006.930109 | J39: 0.063 | K39: -4 | L39: 0.025 | M39: 291.5079365 | N39: =[2]!AgePb6U8(M39) -> 36605.91007 | O39: =[2]!AgePb8Th2(D39/L39) -> 130120.0131 | Q39: 12583.40427 | S39: 5004.890637
A40: M3 | B40: 18.016 | C40: -52 | D40: 15.583 | E40: -43 | F40: 37.95 | G40: -11 | H40: 0.8648 | I40: =[2]!AgePb76($H$40) -> 5032.393641 | J40: 0.066 | K40: -2 | L40: 0.003 | M40: 272.969697 | N40: =[2]!AgePb6U8(M40) -> 36183.83565 | O40: =[2]!AgePb8Th2(D40/L40) -> 172926.0448 | Q40: 11801.4428 | S40: 5001.054022
A41: WR | B41: 18.37 | C41: -23 | D41: 15.572 | E41: -25 | F41: 38.28 | G41: -9 | H41: 0.8459 | I41: =[2]!AgePb76($H$41) -> 5001.054022 | J41: 3.04 | K41: -25 | L41: 0.97 | M41: 6.042763158 | N41: =[2]!AgePb6U8(M41) -> 12583.40427 | O41: =[2]!AgePb8Th2(D41/L41) -> 57329.1927 | Q41: 10957.53992 | S41: 4995.674293
A42: Metal | B42: 18.37 | C42: -7 | D42: 15.609 | E42: -37 | F42: 38.39 | G42: -11 | H42: 0.8497 | I42: =[2]!AgePb76($H$42) -> 5007.414443 | J42: 16 | K42: -1.5 | L42: 3.54 | M42: 1.148125 | N42: =[2]!AgePb6U8(M42) -> 4928.898428 | O42: =[2]!AgePb8Th2(D42/L42) -> 34120.74316 | Q42: 4928.898428 | S42: 4993.617555
A43: White | B43: 18.1 | C43: -42 | D43: 15.54 | E43: -59 | F43: 37.94 | G43: -20 | H43: 0.8553 | I43: =[2]!AgePb76($H$43) -> 5016.732841 | J43: 2.64 | K43: -42 | L43: 0.131 | M43: 6.856060606 | N43: =[2]!AgePb6U8(M43) -> 13287.8987 | O43: =[2]!AgePb8Th2(D43/L43) -> 96702.77567 | S43: 4978.585191
H44: Average | I44: =AVERAGE(I2:I43) -> 5055.82526 | M44: Average | N44: =AVERAGE(N2:N43) -> 27406.18663 | O44: =AVERAGE(O2:O43) -> 87825.42794
H45: Maximum | I45: =MAX(I2:I44) -> 5278.872505 | M45: Maximum | N45: =MAX(N2:N44) -> 51612.00329 | O45: =MAX(O2:O44) -> 173633.1751
H46: Minimum | I46: =MIN(I2:I45) -> 4978.585191 | M46: Minimum | N46: =MIN(N2:N45) -> 4928.898428 | O46: =MIN(O2:O45) -> 17657.54907
H47: Difference | I47: =(I45-I46) -> 300.2873149 | M47: Difference | N47: =(N45-N46) -> 46683.10486 | O47: =(O45-O46) -> 155975.626
D48: 44 | E48: 34 | I48: 207Pb/206Pb | N48: 206Pb/238U | O48: 208Pb/232Th
D49: 42 | E49: 37
D50: 37 | E50: =SUM(E48:E49) -> 71 | H50: Statisitics | I50: 207Pb/206Pb | J50: 206Pb/238U | K50: 208Pb/232Th
D51: =SUM(D48:D50) -> 123 | H51: Average | I51: 5055.82526 | J51: 27406.18663 | K51: 87825.42794
H52: Maximum | I52: 5278.872505 | J52: 51612.00329 | K52: 173633.1751
H53: Minimum | I53: 4978.585191 | J53: 4928.898428 | K53: 17657.54907
H54: Difference | I54: 300.2873149 | J54: 46683.10486 | K54: 155975.626

Sheet Thorium_B
H1: Age | I1: Age | K1: Age | O1: 14557
B2: 206Pb/204Pb | C2: 207Pb/206Pb | D2: 207Pb/204Pb | E2: 206Pb/238U | F2: 208Pb/204Pb | G2: 208Pb/232Th | H2: 208Pb/232Th | I2: 207Pb/206Pb | J2: 238U/204Pb | K2: 206Pb/238U | L2: 232Th/204Pb | O2: 6419
A3: Atl-3A | B3: 20.089 | C3: =(D3/B3) -> 0.7782866245 | D3: 15.635 | E3: =(B3/J3) -> 0.6809830508 | F3: 39.966 | G3: =(F3/L3) -> 0.2938676471 | H3: =[2]!AgePb8Th2(G3) -> 5207.395833 | I3: =[2]!AgePb76(C3) -> 4882.510971 | J3: 29.5 | K3: =[2]!AgePb6U8(E3) -> 3348.130679 | L3: 136 | O3: 5207
A4: Atl-3A | B4: 20.093 | C4: 0.7782809934 | D4: 15.638 | E4: . | F4: 39.977 | G4: . | H4: . | I4: =[2]!AgePb76(C4) -> 4882.500648 | J4: . | K4: . | L4: . | O4: 4996
A5: Atl-3B | B5: 20.176 | C5: 0.7753271213 | D5: 15.643 | E5: 0.3910077519 | F5: 40.049 | G5: 0.1733722944 | H5: =[2]!AgePb8Th2(G5) -> 3231.569597 | I5: =[2]!AgePb76(C5) -> 4877.074496 | J5: 51.6 | K5: =[2]!AgePb6U8(E5) -> 2127.500312 | L5: 231 | O5: 4893
A6: Atl-3B | B6: 20.1745 | C6: 0.7754343354 | D6: 15.644 | E6: . | F6: 40.058 | G6: . | H6: . | I6: =[2]!AgePb76(C6) -> 4877.271829 | J6: . | K6: . | L6: . | O6: 4890
A7: Atl-3C | B7: 20.1763 | C7: 0.7751669037 | D7: 15.64 | E7: 0.2497066832 | F7: 40.075 | G7: 0.1068666667 | H7: =[2]!AgePb8Th2(G7) -> 2052.212245 | I7: =[2]!AgePb76(C7) -> 4876.779553 | J7: 80.8 | K7: =[2]!AgePb6U8(E7) -> 1436.962903 | L7: 375 | O7: 4890
A8: Atl-3E | B8: 20.106 | C8: 0.7776285686 | D8: 15.635 | E8: 0.2673670213 | F8: 40.003 | G8: 0.1072466488 | H8: =[2]!AgePb8Th2(G8) -> 2059.149817 | I8: =[2]!AgePb76(C8) -> 4881.304058 | J8: 75.2 | K8: =[2]!AgePb6U8(E8) -> 1527.423283 | L8: 373 | O8: 4883
A9: Atl-3E | B9: 20.1114 | C9: 0.7774694949 | D9: 15.636 | E9: . | F9: 40.011 | G9: . | H9: . | I9: =[2]!AgePb76(C9) -> 4881.012144 | J9: . | K9: . | L9: . | O9: 4883
A10: Atl-3F | B10: 19.9774 | C10: 0.7823340375 | D10: 15.629 | E10: 0.2770790569 | F10: 39.828 | G10: 0.137337931 | H10: =[2]!AgePb8Th2(G10) -> 2601.119424 | I10: =[2]!AgePb76(C10) -> 4889.910349 | J10: 72.1 | K10: =[2]!AgePb6U8(E10) -> 1576.634865 | L10: 290 | O10: 4882
A11: Atl-3F | B11: 19.9793 | C11: 0.7822596387 | D11: 15.629 | E11: . | F11: 39.831 | G11: . | H11: . | I11: =[2]!AgePb76(C11) -> 4889.774704 | J11: . | K11: . | L11: . | O11: 4881
A12: Atl-3I | B12: 19.933 | C12: 0.784227161 | D12: 15.632 | E12: 0.4196421053 | F12: 39.718 | G12: 0.1675864979 | H12: =[2]!AgePb8Th2(G12) -> 3131.658331 | I12: =[2]!AgePb76(C12) -> 4893.357329 | J12: 47.5 | K12: =[2]!AgePb6U8(E12) -> 2258.854481 | L12: 237 | O12: 4881
A13: Atl-3K | B13: 20.2499 | C13: 0.7731890034 | D13: 15.657 | E13: 0.3916808511 | F13: 40.173 | G13: 0.1482398524 | H13: =[2]!AgePb8Th2(G13) -> 2793.94051 | I13: =[2]!AgePb76(C13) -> 4873.133098 | J13: 51.7 | K13: =[2]!AgePb6U8(E13) -> 2130.618933 | L13: 271 | O13: 4877
A14: Atl-3L | B14: 20.1831 | C14: 0.7751039236 | D14: 15.644 | E14: 0.3565918728 | F14: 40.083 | G14: 0.1256520376 | H14: =[2]!AgePb8Th2(G14) -> 2392.36901 | I14: =[2]!AgePb76(C14) -> 4876.663596 | J14: 56.6 | K14: =[2]!AgePb6U8(E14) -> 1965.998895 | L14: 319 | O14: 4877
A15: Atl-3T | B15: 20.2456 | C15: 0.7731062552 | D15: 15.652 | E15: 0.3596021314 | F15: 40.226 | G15: 0.1172769679 | H15: =[2]!AgePb8Th2(G15) -> 2241.423877 | I15: =[2]!AgePb76(C15) -> 4872.980327 | J15: 56.3 | K15: =[2]!AgePb6U8(E15) -> 1980.287552 | L15: 343 | O15: 4877
A16: Atl-3U | B16: 20.213 | C16: 0.773858408 | D16: 15.642 | E16: 0.2536135508 | F16: 40.126 | G16: 0.100566416 | H16: =[2]!AgePb8Th2(G16) -> 1936.836199 | I16: =[2]!AgePb76(C16) -> 4874.368323 | J16: 79.7 | K16: =[2]!AgePb6U8(E16) -> 1457.084426 | L16: 399 | O16: 4877
A17: Atl-3U | B17: 20.2166 | C17: 0.7737700701 | D17: 15.643 | E17: . | F17: 40.134 | G17: . | H17: . | I17: =[2]!AgePb76(C17) -> 4874.205382 | J17: . | K17: . | L17: . | O17: 4874
A18: Atl-3V | B18: 20.104 | C18: 0.7779048945 | D18: 15.639 | E18: 0.7732307692 | F18: 39.937 | G18: 0.2450122699 | H18: =[2]!AgePb8Th2(G18) -> 4429.416579 | I18: =[2]!AgePb76(C18) -> 4881.810988 | J18: 26 | K18: =[2]!AgePb6U8(E18) -> 3692.526518 | L18: 163 | O18: 4874
A19: GP101 | B19: 18.6055 | C19: 0.842761549 | D19: 15.68 | E19: 1.706926606 | F19: 39.239 | G19: 1.054811828 | H19: =[2]!AgePb8Th2(G19) -> 14556.52907 | I19: =[2]!AgePb76(C19) -> 4995.777972 | J19: 10.9 | K19: =[2]!AgePb6U8(E19) -> 6419.428831 | L19: 37.2 | O19: 4873
G20: Average | H20: =AVERAGE(H18:H19) -> 9492.972826 | I20: =AVERAGE(I18:I19) -> 4938.79448 | J20: Average | K20: =AVERAGE(K18:K19) -> 5055.977675 | O20: 4873
G21: Maximum | H21: =MAX(H18:H20) -> 14556.52907 | I21: =MAX(I18:I20) -> 4995.777972 | J21: Maximum | K21: =MAX(K18:K20) -> 6419.428831 | O21: 4429
G22: Minimum | H22: =MIN(H18:H21) -> 4429.416579 | I22: =MIN(I18:I21) -> 4881.810988 | J22: Minimum | K22: =MIN(K18:K21) -> 3692.526518 | O22: 3693
G23: Difference | H23: =(H21-H22) -> 10127.11249 | I23: =(I21-I22) -> 113.9669832 | J23: Difference | K23: =(K21-K22) -> 2726.902313 | O23: 3348
O24: 3232
O25: 3132
G26: Statisitics | H26: 208Pb/232Th | I26: 207Pb/206Pb | J26: 206Pb/238U | O26: 2794
G27: Average | H27: 9492.972826 | I27: 4938.79448 | J27: 5055.977675 | O27: 2601
G28: Maximum | H28: 14556.52907 | I28: 4995.777972 | J28: 6419.428831 | O28: 2392
G29: Minimum | H29: 4429.416579 | I29: 4881.810988 | J29: 3692.526518 | O29: 2259
G30: Difference | H30: 10127.11249 | I30: 113.9669832 | J30: 2726.902313 | O30: 2241
O31: 2131
O32: 2128
O33: 2059
O34: 2052
O35: 1980
O36: 1966
O37: 1937
O38: 1577
O39: 1527
O40: 1457
O41: 1437

Sheet Throrium_C
B1: Ratio | C1: Ratio | D1: Ratio | E1: Age | F1: Age | G1: Age | O1: 207Pb/206Pb | P1: 206Pb/238U | Q1: 208Pb/232Th
B2: 207Pb/206Pb | C2: 206Pb/238U | D2: 208Pb/232Th | E2: 207Pb/206Pb | F2: 206Pb/238U | G2: 208Pb/232Th | H2: 206Pb/204Pb | I2: 207Pb/204Pb | J2: 208Pb/204Pb | K2: 238U/204Pb | L2: 232Th/204P | O2: 5090.070196 | P2: 18639.33445 | Q2: 92494.77459
A3: Atl-3A | B3: =(I3/H3) -> 0.7782866245 | C3: =(H3/K3) -> 0.6809830508 | D3: =(J3/L3) -> 0.2936517267 | E3: =[1]!AgePb76(B3) -> 4882.510971 | F3: =[1]!AgePb6U8(C3) -> 3348.130679 | G3: =[1]!AgePb8Th2(D3) -> 5204.022538 | H3: 20.089 | I3: 15.635 | J3: 39.966 | K3: 29.5 | L3: 136.1 | O3: 5089.894206 | P3: 15306.78499 | Q3: 73503.49994
A4: Atl-3A | B4: 0.7782809934 | E4: =[1]!AgePb76(B4) -> 4882.500648 | F4: . | G4: . | H4: 20.093 | I4: 15.638 | J4: 39.977 | K4: — | L4: — | O4: 5085.622411 | P4: 10772.25468 | Q4: 42037.68124
A5: Atl-3A | B5: 0.8428926334 | C5: 9.745263158 | D5: 3.251610169 | E5: =[1]!AgePb76(B5) -> 4995.998755 | F5: =[1]!AgePb6U8(C5) -> 15306.78499 | G5: =[1]!AgePb8Th2(D5) -> 29253.11318 | H5: 18.516 | I5: 15.607 | J5: 38.369 | K5: 1.9 | L5: 11.8 | O5: 5084.819376 | P5: 10311.67118 | Q5: 29253.11318
A6: Atl-3C | B6: 0.7751669037 | C6: 0.2497066832 | D6: 0.1068097015 | E6: =[1]!AgePb76(B6) -> 4876.779553 | F6: =[1]!AgePb6U8(C6) -> 1436.962903 | G6: =[1]!AgePb8Th2(D6) -> 2051.171991 | H6: 20.1763 | I6: 15.64 | J6: 40.075 | K6: 80.8 | L6: 375.2 | O6: 5084.700601 | P6: 9290.722192 | Q6: 13018.34034
A7: Atl-3C | E7: . | F7: . | G7: . | H7: — | I7: — | J7: — | O7: 5067.666839 | P7: 5624.682121 | Q7: 10956.14129
A8: Atl-3C | B8: 0.7751669037 | C8: 0.2603393548 | D8: 0.1099753019 | E8: =[1]!AgePb76(B8) -> 4876.779553 | F8: =[1]!AgePb6U8(C8) -> 1491.57785 | G8: =[1]!AgePb8Th2(D8) -> 2108.898727 | H8: 20.1763 | I8: 15.64 | J8: 40.075 | K8: 77.5 | L8: 364.4 | O8: 5025.226036 | P8: 4508.478519 | Q8: 10621.14883
A9: Atl-3C | E9: . | F9: . | G9: . | H9: — | I9: — | J9: — | O9: 5021.211407 | P9: 3766.971255 | Q9: 10021.95777
A10: Atl-3C | E10: . | F10: . | G10: . | H10: — | I10: — | J10: — | O10: 5020.666694 | P10: 3692.526518 | Q10: 5204.022538
A11: Atl-3E | B11: 0.7776285686 | C11: 0.2673670213 | D11: 0.1071891747 | E11: =[1]!AgePb76(B11) -> 4881.304058 | F11: =[1]!AgePb6U8(C11) -> 1527.423283 | G11: =[1]!AgePb8Th2(D11) -> 2058.10063 | H11: 20.106 | I11: 15.635 | J11: 40.003 | K11: 75.2 | L11: 373.2 | O11: 5015.697104 | P11: 3348.130679 | Q11: 4955.718468
A12: Atl-3E | B12: 0.8243079357 | C12: 3.951041667 | D12: 0.6418708609 | E12: =[1]!AgePb76(B12) -> 4964.327121 | F12: =[1]!AgePb6U8(C12) -> 10311.67118 | G12: =[1]!AgePb8Th2(D12) -> 10021.95777 | H12: 18.965 | I12: 15.633 | J12: 38.769 | K12: 4.8 | L12: 60.4 | O12: 5007.992406 | P12: 2920.571159 | Q12: 4429.416579
A13: Atl-3E | B13: 0.7774694949 | C13: 0.266729443 | D13: 0.1049881921 | E13: =[1]!AgePb76(B13) -> 4881.012144 | F13: =[1]!AgePb6U8(C13) -> 1524.179449 | G13: =[1]!AgePb8Th2(D13) -> 2017.880728 | H13: 20.1114 | I13: 15.636 | J13: 40.011 | K13: 75.4 | L13: 381.1 | O13: 5001.234374 | P13: 2258.854481 | Q13: 3132.882908
A14: Atl-3E | B14: 0.8151856487 | E14: =[1]!AgePb76(B14) -> 4948.502248 | F14: . | G14: . | H14: 19.176 | I14: 15.632 | J14: 38.769 | K14: — | L14: — | O14: 5000.08979 | P14: 2130.618933 | Q14: 2798.76329
A15: Atl-3E | E15: . | F15: . | G15: . | H15: — | I15: — | J15: — | O15: 4995.998755 | P15: 1980.287552 | Q15: 2597.757292
A16: Atl-3F | B16: 0.7823340375 | C16: 0.2770790569 | D16: 0.1371487603 | E16: =[1]!AgePb76(B16) -> 4889.910349 | F16: =[1]!AgePb6U8(C16) -> 1576.634865 | G16: =[1]!AgePb8Th2(D16) -> 2597.757292 | H16: 19.9774 | I16: 15.629 | J16: 39.828 | K16: 72.1 | L16: 290.4 | O16: 4983.925729 | P16: 1965.998895 | Q16: 2393.784399
A17: Atl-3F | B17: 0.7822596387 | E17: =[1]!AgePb76(B17) -> 4889.774704 | F17: . | G17: . | H17: 19.9793 | I17: 15.629 | J17: 39.831 | K17: — | L17: — | O17: 4964.327121 | P17: 1678.571999 | Q17: 2238.335413
A18: Atl-3F | B18: 0.8357562801 | C18: 3.225862069 | D18: 0.9042388759 | E18: =[1]!AgePb76(B18) -> 4983.925729 | F18: =[1]!AgePb6U8(C18) -> 9290.722192 | G18: =[1]!AgePb8Th2(D18) -> 13018.34034 | H18: 18.71 | I18: 15.637 | J18: 38.611 | K18: 5.8 | L18: 42.7 | O18: 4958.577663 | P18: 1576.634865 | Q18: 2108.898727
A19: Atl-3F | E19: . | F19: . | G19: . | H19: — | I19: — | J19: — | O19: 4948.502248 | P19: 1527.423283 | Q19: 2058.10063
A20: Atl-3I | B20: 0.784227161 | C20: 0.4196421053 | D20: 0.1676572393 | E20: =[1]!AgePb76(B20) -> 4893.357329 | F20: =[1]!AgePb6U8(C20) -> 2258.854481 | G20: =[1]!AgePb8Th2(D20) -> 3132.882908 | H20: 19.933 | I20: 15.632 | J20: 39.718 | K20: 47.5 | L20: 236.9 | O20: 4942.615377 | P20: 1524.179449 | Q20: 2051.171991
A21: Atl-3I | E21: . | F21: . | G21: . | H21: — | I21: — | J21: — | O21: 4922.701836 | P21: 1491.57785 | Q21: 2017.880728
A22: Atl-3I | E22: . | F22: . | G22: . | H22: — | I22: — | J22: — | O22: 4893.357329 | P22: 1457.084426 | Q22: 1938.689533
A23: Atl-3K | B23: 0.7731890034 | C23: 0.3916808511 | D23: 0.1485138632 | E23: =[1]!AgePb76(B23) -> 4873.133098 | F23: =[1]!AgePb6U8(C23) -> 2130.618933 | G23: =[1]!AgePb8Th2(D23) -> 2798.76329 | H23: 20.2499 | I23: 15.657 | J23: 40.173 | K23: 51.7 | L23: 270.5 | O23: 4889.910349 | P23: 1436.962903
A24: Atl-3K | E24: . | F24: . | G24: . | H24: — | I24: — | J24: — | O24: 4889.774704
A25: Atl-3L | B25: 0.7751039236 | C25: 0.3565918728 | D25: 0.1257308657 | E25: =[1]!AgePb76(B25) -> 4876.663596 | F25: =[1]!AgePb6U8(C25) -> 1965.998895 | G25: =[1]!AgePb8Th2(D25) -> 2393.784399 | H25: 20.1831 | I25: 15.644 | J25: 40.083 | K25: 56.6 | L25: 318.8 | O25: 4882.510971
A26: Atl-3L | B26: 0.8209811559 | C26: 4.317727273 | D26: 0.719537037 | E26: =[1]!AgePb76(B26) -> 4958.577663 | F26: =[1]!AgePb6U8(C26) -> 10772.25468 | G26: =[1]!AgePb8Th2(D26) -> 10956.14129 | H26: 18.998 | I26: 15.597 | J26: 38.855 | K26: 4.4 | L26: 54 | O26: 4882.500648
A27: Atl-3U | B27: 0.773858408 | C27: 0.2536135508 | D27: 0.1006673357 | E27: =[1]!AgePb76(B27) -> 4874.368323 | F27: =[1]!AgePb6U8(C27) -> 1457.084426 | G27: =[1]!AgePb8Th2(D27) -> 1938.689533 | H27: 20.213 | I27: 15.642 | J27: 40.126 | K27: 79.7 | L27: 398.6 | O27: 4881.810988
A28: Atl-3U | B28: 0.7737700701 | E28: =[1]!AgePb76(B28) -> 4874.205382 | F28: . | G28: . | H28: 20.2166 | I28: 15.643 | J28: 40.134 | K28: — | L28: — | O28: 4881.304058
A29: Atl-3U | B29: 0.8118195956 | C29: 0.7938271605 | D29: 0.2778566359 | E29: =[1]!AgePb76(B29) -> 4942.615377 | F29: =[1]!AgePb6U8(C29) -> 3766.971255 | G29: =[1]!AgePb8Th2(D29) -> 4955.718468 | H29: 19.29 | I29: 15.66 | J29: 39.15 | K29: 24.3 | L29: 140.9 | O29: 4881.012144
A30: Atl-3V | B30: 0.7779048945 | C30: 0.7732307692 | D30: 0.2450122699 | E30: =[1]!AgePb76(B30) -> 4881.810988 | F30: =[1]!AgePb6U8(C30) -> 3692.526518 | G30: =[1]!AgePb8Th2(D30) -> 4429.416579 | H30: 20.104 | I30: 15.639 | J30: 39.937 | K30: 26 | L30: 163 | O30: 4876.779553
A31: Atl-3V | E31: . | F31: . | G31: . | H31: — | I31: — | J31: — | O31: 4876.779553
A32: Atl-3V | E32: . | F32: . | G32: . | H32: — | I32: — | J32: — | O32: 4876.663596
A33: Atl-3T | B33: 0.7731062552 | C33: 0.3596021314 | D33: 0.1171062591 | E33: =[1]!AgePb76(B33) -> 4872.980327 | F33: =[1]!AgePb6U8(C33) -> 1980.287552 | G33: =[1]!AgePb8Th2(D33) -> 2238.335413 | H33: 20.2456 | I33: 15.652 | J33: 40.226 | K33: 56.3 | L33: 343.5 | O33: 4874.368323
A34: Atl-3T | E34: . | F34: . | G34: . | H34: — | I34: — | J34: — | O34: 4874.205382
A35: Atl-3T | E35: . | F35: . | G35: . | H35: — | I35: — | J35: — | O35: 4873.133098
A36: Mb47 | B36: 0.7722947991 | C36: 0.2974340176 | D36: 7.002982456 | E36: =[1]!AgePb76(B36) -> 4871.481281 | F36: =[1]!AgePb6U8(C36) -> 1678.571999 | G36: =[1]!AgePb8Th2(D36) -> 42037.68124 | H36: 20.285 | I36: 15.666 | J36: 39.917 | K36: 68.2 | L36: 5.7 | O36: 4872.980327
A37: Mb47 | B37: 0.8500461982 | E37: =[1]!AgePb76(B37) -> 5007.992406 | F37: . | G37: . | H37: 18.399 | I37: 15.64 | J37: 38.299 | K37: — | L37: — | O37: 4871.481281
A38: Br12 | B38: 0.8453255017 | C38: 1.392954545 | D38: 0.6912727273 | E38: =[1]!AgePb76(B38) -> 5000.08979 | F38: =[1]!AgePb6U8(C38) -> 5624.682121 | G38: =[1]!AgePb8Th2(D38) -> 10621.14883 | H38: 18.387 | I38: 15.543 | J38: 38.02 | K38: 13.2 | L38: 55
A39: Br12 | B39: 0.8460075012 | E39: =[1]!AgePb76(B39) -> 5001.234374 | F39: . | G39: . | H39: 18.397 | I39: 15.564 | J39: 38.12 | K39: — | L39: -
A40: Br12 | B40: 0.8866096866 | E40: =[1]!AgePb76(B40) -> 5067.666839 | F40: . | G40: . | H40: 17.55 | I40: 15.56 | J40: 37.44 | K40: — | L40: —
A41: 70-379 | B41: 0.9007642563 | C41: 1.0125 | E41: =[1]!AgePb76(B41) -> 5090.070196 | F41: =[1]!AgePb6U8(C41) -> 4508.478519 | G41: . | H41: 17.01 | I41: 15.322 | J41: 37.085 | K41: 16.8 | L41: —
A42: 70-379 | B42: 0.9006521356 | E42: =[1]!AgePb76(B42) -> 5089.894206 | F42: . | G42: . | H42: 17.021 | I42: 15.33 | J42: 37.11 | K42: — | L42: —
A43: 70-379 | B43: 0.8576758477 | E43: =[1]!AgePb76(B43) -> 5020.666694 | F43: . | G43: . | H43: 18.226 | I43: 15.632 | J43: 38.324 | K43: — | L43: —
A44: 71-321 | B44: 0.8973500206 | C44: 17.019 | D44: 36.962 | E44: =[1]!AgePb76(B44) -> 5084.700601 | F44: =[1]!AgePb6U8(C44) -> 18639.33445 | G44: =[1]!AgePb8Th2(D44) -> 73503.49994 | H44: 17.019 | I44: 15.272 | J44: 36.962 | K44: 1 | L44: 1
A45: 71-321 | B45: 0.8979351727 | E45: =[1]!AgePb76(B45) -> 5085.622411 | F45: . | G45: . | H45: 16.999 | I45: 15.264 | J45: 36.939 | K45: — | L45: —
A46: 71-321 | B46: 0.858005379 | E46: =[1]!AgePb76(B46) -> 5021.211407 | F46: . | G46: . | H46: 18.219 | I46: 15.632 | J46: 38.362 | K46: — | L46: —
A47: 71-107 | B47: 0.897425395 | E47: =[1]!AgePb76(B47) -> 5084.819376 | F47: . | G47: . | H47: 17.09 | I47: 15.337 | J47: 36.892 | K47: — | L47: —
A48: 71-107 | B48: 0.8604382295 | E48: =[1]!AgePb76(B48) -> 5025.226036 | F48: . | G48: . | H48: 18.164 | I48: 15.629 | J48: 38.299 | K48: — | L48: —
A49: 72-228 | B49: 0.8005423937 | C49: 0.5731085044 | D49: 96.1425 | E49: =[1]!AgePb76(B49) -> 4922.701836 | F49: =[1]!AgePb6U8(C49) -> 2920.571159 | G49: =[1]!AgePb8Th2(D49) -> 92494.77459 | H49: 19.543 | I49: 15.645 | J49: 38.457 | K49: 34.1 | L49: 0.4
A50: 72-228 | B50: 0.8546756299 | E50: =[1]!AgePb76(B50) -> 5015.697104 | F50: . | G50: . | H50: 18.297 | I50: 15.638 | J50: 38.371 | K50: — | L50: —

Sheet Thorium_D
R1: 207Pb/206Pb | S1: 208Pb/232Th | T1: 206Pb/238U
A2: Table 3 | R2: 8076.554278 | S2: 5699.475594 | T2: 54790.18999
M3: Age | N3: Age | O3: Age | R3: 5222.103464 | S3: 4118.929991 | T3: 33580.888
A4: SAMPLE | B4: LAB | C4: MINERAL* | D4: WEIGHT U | E4: Th | F4: Ph | G4: 206Pb/ | H4: 206Pb/204Pb | I4: 207Pb/204Pb | J4: 208Pb/204Pb | K4: 238U/204Pb | L4: 232Th/204Pb | M4: 207Pb/206Pb | N4: 208Pb/232Th | O4: 206Pb/238U | R4: 5193.90238 | S4: 3986.71903 | T4: 30183.79809
B5: NO. | C5: Age. initial | D5: (mg) | E5: (ppm) | F5: (ppm) | G5: (ppm) | R5: 5184.438339 | S5: 2899.150955 | T5: 24442.89472
C6: 208Pb/204Pb | R6: 5179.12143 | S6: 2099.882989 | T6: 23847.99259
A7: EAST OREBODY | B7: Bastnaesite | D7: 0.11 | E7: 0.0726 | F7: 962.5 | G7: 29.652 | H7: 16.163 | I7: 15.483 | J7: 339.15 | K7: 0.79267 | L7: 10850 | M7: =[2]!AgePb76(I7/H7) -> 5176.901102 | N7: =[2]!AgePb8Th2(J7/L7) -> 622.1218549 | O7: =[2]!AgePb6U8(H7/K7) -> 19745.04803 | R7: 5178.066859 | S7: 1896.096326 | T7: 23314.3947
A8: 8B7 | B8: G2 | R8: 5176.901102 | S8: 1788.777439 | T8: 22846.94083
C9: 555±11 Ma | H9: 0.335# | I9: 0.365 | J9: 3.27 | K9: 7.47 | L9: 5.54 | R9: 5174.838738 | S9: 1731.209138 | T9: 22505.99705
B10: 3 | C10: MSWD=1.05 | D10: 1.2 | E10: 0.0451 | F10: 1012 | G10: 25.973 | H10: 16.571 | I10: 14.823 | J10: 1904.5 | K10: 2.9181 | L10: 67630 | M10: =[2]!AgePb76(I10/H10) -> 5080.224684 | N10: =[2]!AgePb8Th2(J10/L10) -> 561.3210853 | O10: =[2]!AgePb6U8(H10/K10) -> 12241.24168 | R10: 5171.510807 | S10: 1310.211219 | T10: 22490.16876
C11: 36.585±14.7 | H11: 0.378 | I11: 0.375 | J11: 1.98 | K11: 3.17 | L11: 3.11 | R11: 5163.583 | S11: 1285.312484 | T11: 20580.79569
B12: G4§ | D12: 1.887 | E12: 0.0478 | F12: 1008 | G12: 26.065 | H12: 13.011 | I12: 12.615 | J12: 2393.5 | K12: 3.8485 | L12: 83910 | M12: =[2]!AgePb76(I12/H12) -> 5193.90238 | N12: =[2]!AgePb8Th2(J12/L12) -> 568.4761513 | O12: =[2]!AgePb6U8(H12/K12) -> 9522.8418 | R12: 5162.109979 | S12: 1192.360738 | T12: 20496.02257
H13: 1.38 | I13: 1.32 | J13: 1.96 | K13: 3.14 | L13: 3.1 | R13: 5159.640572 | S13: 1172.86023 | T13: 20400.63319
A14: 796-48.270 | B14: R1 | C14: Monazite | D14: 1.395 | E14: 0.3677 | F14: 2320 | G14: 44.715 | H14: 17.081 | I14: 15.365 | J14: 2084.7 | K14: 15.089 | L14: 98480 | M14: =[2]!AgePb76(I14/H14) -> 5088.143351 | N14: =[2]!AgePb8Th2(J14/L14) -> 423.4021138 | O14: =[2]!AgePb6U8(H14/K14) -> 4880.376082 | R14: 5158.043583 | S14: 1138.781448 | T14: 20382.00751
C15: 415±17 Ma | H15: 0.193 | I15: 0.241 | J15: 1.08 | K15: 1.73 | L15: 1.71 | R15: 5151.506815 | S15: 1128.78422 | T15: 20345.54322
B16: R2 | C16: MSWD=0.234 | D16: 1.563 | E16: 0.214 | F16: 2317 | G16: 44.118 | H16: 16.998 | I16: 15.317 | J16: 2494 | K16: 10.633 | L16: 118900 | M16: =[2]!AgePb76(I16/H16) -> 5090.606491 | N16: =[2]!AgePb8Th2(J16/L16) -> 419.5785814 | O16: =[2]!AgePb6U8(H16/K16) -> 6156.17056 | R16: 5150.755998 | S16: 1108.630023 | T16: 19842.51312
C17: 39.613±99.27 | H17: 0.305 | I17: 0.305 | J17: 1.2 | K17: 1.81 | L17: 1.85 | R17: 5144.823525 | S17: 1098.523165 | T17: 19745.04803
B18: R3 | D18: 1.476 | E18: 0.4813 | F18: 2296 | G18: 44.136 | H18: 17.069 | I18: 15.402 | J18: 2253.8 | K18: 21.636 | L18: 106700 | M18: =[2]!AgePb76(I18/H18) -> 5092.537302 | N18: =[2]!AgePb8Th2(J18/L18) -> 422.4917809 | O18: =[2]!AgePb6U8(H18/K18) -> 3749.30022 | R18: 5139.549775 | S18: 1055.747295 | T18: 19280.35009
H19: 0.138 | I19: 0.162 | J19: 1.12 | K19: 1.79 | L19: 1.76 | R19: 5139.475327 | S19: 1006.785785 | T19: 18892.8736
B20: R4 | D20: 1.305 | E20: 0.311 | F20: 2239 | G20: 42.269 | H20: 17.939 | I20: 15.217 | J20: 4888.5 | K20: 31.42 | L20: 233700 | M20: =[2]!AgePb76(I20/H20) -> 5005.013695 | N20: =[2]!AgePb8Th2(J20/L20) -> 418.4349497 | O20: =[2]!AgePb6U8(H20/K20) -> 2911.687267 | R20: 5139.320701 | S20: 825.2856708 | T20: 18092.39468
H21: 0.395 | I21: 0.454 | J21: 2.87 | K21: 4.26 | L21: 4.28 | R21: 5138.012607 | S21: 807.9139223 | T21: 13953.38397
B22: R5 | D22: 1.468 | E22: 0.3293 | F22: 2191 | G22: 41.956 | H22: 17.284 | I22: 15.261 | J22: 2833.5 | K22: 19.518 | L22: 134200 | M22: =[2]!AgePb76(I22/H22) -> 5061.821228 | N22: =[2]!AgePb8Th2(J22/L22) -> 422.3182809 | O22: =[2]!AgePb6U8(H22/K22) -> 4088.413053 | R22: 5137.957686 | S22: 779.2287592 | T22: 13722.86701
H23: 0.283 | I23: 0.357 | J23: 1.49 | K23: 2.26 | L23: 2.29 | R23: 5137.476985 | S23: 752.4436645 | T23: 12744.24993
A24: 796-48.277 | B24: Q1 | C24: Monazite | D24: 0.099 | E24: 0.2645 | F24: 2829 | G24: 57.244 | H24: 17.533 | I24: 15.369 | J24: 1491.8 | K24: 6.1144 | L24: 67580 | M24: =[2]!AgePb76(I24/H24) -> 5051.554231 | N24: =[2]!AgePb8Th2(J24/L24) -> 441.3231328 | O24: =[2]!AgePb6U8(H24/K24) -> 8719.461901 | R24: 5135.374009 | S24: 720.5312438 | T24: 12241.24168
C25: 432±8.5 Ma | H25: 0.827 | I25: 0.855 | J25: 8.55 | K25: 13.8 | L25: 13.7 | R25: 5134.666326 | S25: 701.4161775 | T25: 11927.66829
B26: Q2 | C26: MSWD=1.27 | D26: 1.297 | E26: 0.3063 | F26: 3041 | G26: 63.32 | H26: 16.572 | I26: 15.265 | J26: 1439.3 | K26: 6.1766 | L26: 63350 | M26: =[2]!AgePb76(I26/H26) -> 5121.661102 | N26: =[2]!AgePb8Th2(J26/L26) -> 454.0790197 | O26: =[2]!AgePb6U8(H26/K26) -> 8404.419963 | R26: 5134.436867 | S26: 684.2227728 | T26: 11862.28262
C27: 61.467±30.26 | H27: 0.197 | I27: 0.247 | J27: 0.596 | K27: 1.06 | L27: 1.04 | R27: 5134.343234 | S27: 682.6112193 | T27: 11764.2669
B28: Q3 | D28: 1.159 | E28: 0.2882 | F28: 3036 | G28: 62444 | H28: 16.772 | I28: 15.341 | J28: 1421.2 | K28: 5.8232 | L28: 63360 | M28: =[2]!AgePb76(I28/H28) -> 5111.733437 | N28: =[2]!AgePb8Th2(J28/L28) -> 448.3616029 | O28: =[2]!AgePb6U8(H28/K28) -> 8740.612767 | R28: 5134.226755 | S28: 659.2245333 | T28: 11708.9072
H29: 0.307 | I29: 0.348 | J29: 0.699 | K29: 1.06 | L29: 1.13 | R29: 5133.45156 | S29: 652.3596525 | T29: 11648.59136
B30: Q4 | D30: 1.012 | E30: 0.2912 | F30: 3051 | G30: 63.107 | H30: 16.631 | I30: 15.268 | J30: 1483.5 | K30: 6.0694 | L30: 65700 | M30: =[2]!AgePb76(I30/H30) -> 5116.920327 | N30: =[2]!AgePb8Th2(J30/L30) -> 451.3139197 | O30: =[2]!AgePb6U8(H30/K30) -> 8503.611875 | R30: 5132.57936 | S30: 622.1218549 | T30: 11639.06839
H31: 0.194 | I31: 0.272 | J31: 0.764 | K31: 1.19 | L31: 1.26 | R31: 5131.227022 | S31: 605.5624652 | T31: 11475.42465
B32: Q5 | D32: 0.926 | E32: 0.2675 | F32: 2977 | G32: 61.425 | H32: 16.78 | I32: 15.189 | J32: 1643.6 | K32: 6.3298 | L32: 72780 | M32: =[2]!AgePb76(I32/H32) -> 5096.990367 | N32: =[2]!AgePb8Th2(J32/L32) -> 451.3775373 | O32: =[2]!AgePb6U8(H32/K32) -> 8348.029846 | R32: 5131.193959 | S32: 597.8774311 | T32: 11291.74368
H33: 0.335 | I33: 0.425 | J33: 578 | K33: 1.53 | L33: 1.54 | R33: 5129.907745 | S33: 595.5639264 | T33: 11265.09296
R34: 5126.583629 | S34: 584.9731776 | T34: 10350.03508
B35: Q6 | D35: 0.718 | E35: 0.6665 | F35: 2867 | G35: 58.807 | H35: 17.612 | I35: 15.378 | J35: 1602.6 | K35: 16.087 | L35: 71510 | M35: =[2]!AgePb76(I35/H35) -> 5046.016169 | N35: =[2]!AgePb8Th2(J35/L35) -> 447.9720761 | O35: =[2]!AgePb6U8(H35/K35) -> 4766.84397 | R35: 5126.332937 | S35: 576.4091176 | T35: 10318.44078
H36: 0.233 | I36: 0.29 | J36: 1.23 | K36: 1.86 | L36: 1.92 | R36: 5121.661102 | S36: 574.3607743 | T36: 9861.783211
B37: D3# | D37: 1.156 | E37: 0.2639 | F37: 3019 | G37: 60.27 | H37: 17.283 | I37: 15.233 | J37: 2480.1 | K37: 9.5444 | L37: 112900 | M37: =[2]!AgePb76(I37/H37) -> 5059.303527 | N37: =[2]!AgePb8Th2(J37/L37) -> 439.2000884 | O37: =[2]!AgePb6U8(H37/K37) -> 6662.170238 | R37: 5118.847656 | S37: 568.4761513 | T37: 9522.8418
H38: 0.168 | I38: 0.189 | J38: 1.15 | K38: 1.77 | L38: 1.79 | R38: 5117.311101 | S38: 566.333086 | T38: 9391.208477
B39: N | D39: 0.991 | E39: 0.2743 | F39: 3011 | G39: 60.933 | H39: 16.945 | I39: 15.115 | J39: 2653.8 | K39: 10.492 | L39: 119000 | M39: =[2]!AgePb76(I39/H39) -> 5076.248475 | N39: =[2]!AgePb8Th2(J39/L39) -> 445.7971255 | O39: =[2]!AgePb6U8(H39/K39) -> 6196.805192 | R39: 5116.920327 | S39: 563.8891634 | T39: 9164.508572
H40: 0.256 | I40: 0.283 | J40: 1.43 | K40: 2.19 | L40: 2.21 | R40: 5115.941334 | S40: 561.3210853 | T40: 9139.888048
B41: D6 | D41: 0.978 | E41: 0.2682 | F41: 3063 | G41: 61.306 | H41: 17.161 | I41: 15.142 | J41: 3159.6 | K41: 12.114 | L41: 142900 | M41: =[2]!AgePb76(I41/H41) -> 5060.849659 | N41: =[2]!AgePb8Th2(J41/L41) -> 442.0348186 | O41: =[2]!AgePb6U8(H41/K41) -> 5688.136025 | R41: 5115.533269 | S41: 557.665972 | T41: 8892.692609
H42: 0.479 | I42: 0.5 | J42: 1.75 | K42: 2.64 | L42: 2.64 | R42: 5115.186002 | S42: 554.9145546 | T42: 8801.457681
A43: 796-48.278 | B43: J1 | C43: Monazite | D43: 0.236 | E43: 1.8547 | F43: 2285 | G43: 46.798 | H43: 19.214 | I43: 15.471 | J43: 821.74 | K43: 29.467 | L43: 37510 | M43: =[2]!AgePb76(I43/H43) -> 4930.951916 | N43: =[2]!AgePb8Th2(J43/L43) -> 438.0133304 | O43: =[2]!AgePb6U8(H43/K43) -> 3236.214776 | R43: 5111.733437 | S43: 554.5256335 | T43: 8740.612767
C44: 419±3.7 Ma | H44: 0.226 | I44: 0.281 | J44: 2.38 | K44: 3.57 | L44: 3.57 | R44: 5109.277911 | S44: 551.7255776 | T44: 8719.461901
B45: 12 | C45: MSWI.94 | D45: 1.169 | E45: 1.1996 | F45: 2558 | G45: 49.982 | H45: 17.745 | I45: 15.264 | J45: 1577 | K45: 33.533 | L45: 73880 | M45: =[2]!AgePb76(I45/H45) -> 5024.810321 | N45: =[2]!AgePb8Th2(J45/L45) -> 426.8984791 | O45: =[2]!AgePb6U8(H45/K45) -> 2737.996981 | R45: 5109.257351 | S45: 549.9443061 | T45: 8610.367841
C46: 35.493±10.17 | H46: 0.36 | I46: 37 | J46: 0.938 | K46: 1.37 | L46: 1.43 | R46: 5107.11917 | S46: 548.5129619 | T46: 8503.611875
B47: J3 | D47: 1.263 | E47: 1.278 | F47: 2489 | G47: 49.241 | H47: 17.414 | I47: 15.46 | J47: 1337.4 | K47: 30.866 | L47: 62120 | M47: =[2]!AgePb76(I47/H47) -> 5069.551727 | N47: =[2]!AgePb8Th2(J47/L47) -> 430.536965 | O47: =[2]!AgePb6U8(H47/K47) -> 2883.881655 | R47: 5101.655517 | S47: 547.8584778 | T47: 8456.183802
H48: 0.24 | I48: 0.318 | J48: 0.734 | K48: 1.14 | L48: 1.18 | R48: 5100.867029 | S48: 545.8307142 | T48: 8404.419963
B49: J4 | D49: 1.125 | E49: 2.0895 | F49: 2422 | G49: 49.499 | H49: 17.816 | I49: 15.385 | J49: 843.37 | K49: 32.123 | L49: 38470 | M49: =[2]!AgePb76(I49/H49) -> 5030.342846 | N49: =[2]!AgePb8Th2(J49/L49) -> 438.3213303 | O49: =[2]!AgePb6U8(H49/K49) -> 2844.351176 | R49: 5100.654211 | S49: 545.0558753 | T49: 8348.029846
H50: 0.101 | I50: 0.136 | J50: 0.505 | K50: 0.869 | L50: 0.892 | R50: 5097.774688 | S50: 544.4502776 | T50: 8241.285993
B51: J5 | D51: 0.989 | E51: 2.4279 | F51: 2493 | G51: 49.291 | H51: 18.407 | I51: 15.301 | J51: 1133.7 | K51: 49.912 | L51: 52960 | M51: =[2]!AgePb76(I51/H51) -> 4976.262437 | N51: =[2]!AgePb8Th2(J51/L51) -> 428.1114993 | O51: =[2]!AgePb6U8(H51/K51) -> 2023.699968 | R51: 5096.990367 | S51: 544.4022404 | T51: 7856.319269
H52: 0.0716 | I52: 0.142 | J52: 0.832 | K52: 1.27 | L52: 1.21 | R52: 5092.537302 | S52: 542.7677133 | T52: 7839.144463
B53: SI | D53: 0.392 | E53: 1.0126 | F53: 2855 | G53: 55.535 | H53: 17.48 | I53: 15.242 | J53: 2283.9 | K53: 36.651 | L53: 106800 | M53: =[2]!AgePb76(I53/H53) -> 5044.089664 | N53: =[2]!AgePb8Th2(J53/L53) -> 427.67831 | O53: =[2]!AgePb6U8(H53/K53) -> 2513.884426 | R53: 5091.744644 | S53: 541.462745 | T53: 7340.548985
H54: 0.395 | I54: 0.476 | J54: 3.37 | K54: 5.19 | L54: 5.18 | R54: 5090.606491 | S54: 540.4629956 | T54: 7263.797736
B55: S2 | D55: 1.317 | E55: 0.658 | F55: 2883 | G55: 55.255 | H55: 20.585 | I55: 15.48 | J55: 7297.9 | K55: 75.761 | L55: 343000 | M55: =[2]!AgePb76(I55/H55) -> 4833.441086 | N55: =[2]!AgePb8Th2(J55/L55) -> 425.5379112 | O55: =[2]!AgePb6U8(H55/K55) -> 1549.47449 | R55: 5089.339641 | S55: 511.0695127 | T55: 7025.13867
H56: 0.454 | I56: 0.431 | J56: 3.25 | K56: 4.49 | L56: 4.5 | R56: 5088.143351 | S56: 510.618353 | T56: 6662.170238
B57: S3 | D57: 1.737 | E57: 2.6034 | F57: 2877 | G57: 55.367 | H57: 18.165 | I57: 15.257 | J57: 3477.7 | K57: 143.24 | L57: 163500 | M57: =[2]!AgePb76(I57/H57) -> 4990.969346 | N57: =[2]!AgePb8Th2(J57/L57) -> 425.4124351 | O57: =[2]!AgePb6U8(H57/K57) -> 769.6708407 | R57: 5085.230358 | S57: 507.2168715 | T57: 6487.440631
H58: 0.321 | I58: 0.348 | J58: 1.2 | K58: 1.75 | L58: 1.79 | R58: 5081.01618 | S58: 505.5727132 | T58: 6364.49803
B59: S4 | D59: 1.524 | E59: 2.216 | F59: 2824 | G59: 54.012 | H59: 20.631 | I59: 15.553 | J59: 5579.7 | K59: 199.89 | L59: 263200 | M59: =[2]!AgePb76(I59/H59) -> 4836.976527 | N59: =[2]!AgePb8Th2(J59/L59) -> 424.0098133 | O59: =[2]!AgePb6U8(H59/K59) -> 633.2036307 | R59: 5080.224684 | S59: 504.1761841 | T59: 6196.805192
H60: 0.349 | I60: 0.351 | J60: 2.19 | K60: 3.15 | L60: 3.05 | R60: 5078.521224 | S60: 495.651866 | T60: 6166.115478
B61: S5 | D61: 1.446 | E61: 2.1615 | F61: 2825 | G61: 54.109 | H61: 18.907 | I61: 15.303 | J61: 3784.9 | K61: 132.36 | L61: 178700 | M61: =[2]!AgePb76(I61/H61) -> 4938.337402 | N61: =[2]!AgePb8Th2(J61/L61) -> 423.6282508 | O61: =[2]!AgePb6U8(H61/K61) -> 860.7316953 | R61: 5076.248475 | S61: 493.2328026 | T61: 6156.17056
H62: 0.274 | I62: 0.413 | J62: 1.57 | K62: 238 | L62: 2.29 | R62: 5071.75033 | S62: 479.492778 | T62: 6116.851167
B63: S6 | D63: 1.37 | E63: 1.9497 | F63: 2714 | G63: 51.307 | H63: 19.432 | I63: 15.292 | J63: 3662.3 | K63: 121.89 | L63: 175300 | M63: =[2]!AgePb76(I63/H63) -> 4898.298385 | N63: =[2]!AgePb8Th2(J63/L63) -> 417.9156585 | O63: =[2]!AgePb6U8(H63/K63) -> 953.5663239 | R63: 5069.551727 | S63: 476.5053427 | T63: 5909.537499
H64: 0.368 | I64: 0.404 | J64: 1.71 | K64: 2.42 | L64: 2.45 | R64: 5068.067389 | S64: 474.2342154 | T64: 5688.136025
A65: 796-48.280 | B65: L1 | C65: Monazite | D65: 0.5 | E65: 0.4283 | F65: 1255 | G65: 29.706 | H65: 16.716 | I65: 15.263 | J65: 1045.3 | K65: 13.483 | L65: 40820 | M65: =[2]!AgePb76(I65/H65) -> 5109.257351 | N65: =[2]!AgePb8Th2(J65/L65) -> 511.0695127 | O65: =[2]!AgePb6U8(H65/K65) -> 5198.254173 | R65: 5063.257696 | S65: 469.7321057 | T65: 5621.576374
C66: 496±13 Ma | H66: 0.317 | I66: 0.255 | J66: 2.25 | K66: 3.6 | L66: 3.59 | R66: 5061.821228 | S66: 458.7850274 | T66: 5401.847998
B67: L2 | C67: MSWD=1.49 | D67: 0.503 | E67: 1.0507 | F67: 1222 | G67: 28.525 | H67: 19.452 | I67: 15.436 | J67: 1452.3 | K67: 47.541 | L67: 57150 | M67: =[2]!AgePb76(I67/H67) -> 4910.191593 | N67: =[2]!AgePb8Th2(J67/L67) -> 507.2168715 | O67: =[2]!AgePb6U8(H67/K67) -> 2211.091956 | R67: 5060.849659 | S67: 454.9358995 | T67: 5249.518897
C68: 36.736+4797 | H68: 0.318 | I68: 0.36 | J68: 3.26 | K68: 4.74 | L68: 4.76 | R68: 5059.303527 | S68: 454.0790197 | T68: 5198.254173
B69: L3 | D69: 0.677 | E69: 2.3215 | F69: 1308 | G69: 29.385 | H69: 29.862 | I69: 15.882 | J69: 3092.8 | K69: 215.12 | L69: 125200 | M69: =[2]!AgePb76(I69/H69) -> 4331.995603 | N69: =[2]!AgePb8Th2(J69/L69) -> 493.2328026 | O69: =[2]!AgePb6U8(H69/K69) -> 837.96117 | R69: 5056.654785 | S69: 451.3775373 | T69: 4905.824315
H70: 1.96 | I70: 0.542 | J70: 5.01 | K70: 6.13 | L70: 6.14 | R70: 5053.393273 | S70: 451.3139197 | T70: 4880.376082
B71: L4 | D71: 1.405 | E71: 0.5908 | F71: 1341 | G71: 30.242 | H71: 17.635 | I71: 14.424 | J71: 2447.3 | K71: 41.984 | L71: 98580 | M71: =[2]!AgePb76(I71/H71) -> 4953.263448 | N71: =[2]!AgePb8Th2(J71/L71) -> 495.651866 | O71: =[2]!AgePb6U8(H71/K71) -> 2260.665411 | R71: 5051.60682
H72: 0.916 | I72: 0.961 | J72: 2.18 | K72: 2.92 | L72: 2.95 | R72: 5051.554231
B73: L5 | D73: 1.25 | E73: 0.0809 | F73: 1327 | G73: 30.565 | H73: 16.352 | I73: 15.252 | J73: 2242.6 | K73: 5.2274 | L73: 88540 | M73: =[2]!AgePb76(I73/H73) -> 5139.320701 | N73: =[2]!AgePb8Th2(J73/L73) -> 505.5727132 | O73: =[2]!AgePb6U8(H73/K73) -> 9139.888048 | R73: 5048.100453
R74: 5046.016169
R75: 5045.85022
A76: Table 3 | R76: 5044.089664
M77: Age | N77: Age | O77: Age | R77: 5043.679633
A78: SAMPLE | B78: .AB | C78: MINERAL* | D78: WEIGHT U | E78: Th | F78: Pb | G78: 201 | H78: 206Pb/ | I78: 207Pb/ | J78: 208Pb/ | K78: 238U/ | L78: 232Th/ | M78: 207Pb/ | N78: 208Pb/ | O78: 206Pb/ | R78: 5034.377233
B79: ~. | C79: Age. initial | D79: (mg) | E79: (Pm) | F79: (1~'Pm) | G79: {Ptxl) | H79: 204Pb | I79: 204Pb | J79: 204Pb | K79: 204Pb | L79: 204Pb | M79: 206Pb | N79: 232Th/ | O79: 238U/ | R79: 5030.342846
C80: 2081b/wPb | R80: 5024.810321
G81: 0.322 | H81: 0.304 | I81: 1.89 | J81: 3.01 | K81: 3 | R81: 5014.255953
B82: L6 | D82: 1.442 | E82: 0.6455 | F82: 1251 | G82: 29.213 | H82: 21.408 | I82: 15.809 | J82: 2100.5 | K82: 40.988 | L82: 82100 | M82: =[2]!AgePb76(I82/H82) -> 4807.440097 | N82: =[2]!AgePb8Th2(J82/L82) -> 510.618353 | O82: =[2]!AgePb6U8(H82/K82) -> 2708.923963 | R82: 5005.013695
G83: 0.333 | H83: 379 | I83: 1.62 | J83: 2.24 | K83: 2.25 | R83: 5002.890159
A84: 71331-23 | B84: 11 | C84: M©na+Bast 2.11 | D84: 0.925 | E84: 0.3595 | F84: 1069 | G84: 9.404 | H84: 17.22 | I84: 15.385 | J84: 67.429 | K84: 3.34412 | L84: 1027 | M84: =[2]!AgePb76(I84/H84) -> 5078.521224 | N84: =[2]!AgePb8Th2(J84/L84) -> 1285.312484 | O84: =[2]!AgePb6U8(H84/K84) -> 11708.9072 | R84: 5001.868686
C85: 429111 Ma | G85: 0.0731 | H85: 0.0913 | I85: 0.218 | J85: 0.6689 | K85: 0.805 | R85: 5001.387098
B86: I2 | D86: 0155 0.6233 | E86: 921.4 | F86: 21.6 | G86: 16.88 | H86: 16.88 | I86: 15.288 | J86: 367.54 | K86: 10.024 | L86: 15310 | M86: =[2]!AgePb76(I86/H86) -> 5097.774688 | N86: =[2]!AgePb8Th2(J86/L86) -> 479.492778 | O86: =[2]!AgePb6U8(H86/K86) -> 6364.49803 | R86: 4990.969346
C87: 47.308±10.12 | G87: 0.151 | H87: 0.203 | I87: 0.825 | J87: 1A2 | K87: 1.45 | R87: 4983.371118
B88: 1r3 | D88: 1.526 | E88: 0.117 | F88: 1025 | G88: 21.595 | H88: 16.763 | I88: 15.213 | J88: 8668.38 | K88: 4.2371 | L88: 38350 | M88: =[2]!AgePb76(I88/H88) -> 5100.654211 | N88: =[2]!AgePb8Th2(J88/L88) -> 4118.929991 | O88: =[2]!AgePb6U8(H88/K88) -> 10318.44078 | R88: 4976.262437
G89: 277 | H89: 0.274 | I89: L08 | J89: 1.69 | K89: 1.63 | R89: 4962.56119
B90: 14 | D90: 1.185 | E90: 0.1334 | F90: 1100 | G90: 24.39 | H90: 16.592 | I90: 15.253 | J90: 619.31 | K90: 3.0946 | L90: 26340 | M90: =[2]!AgePb76(I90/H90) -> 5118.847656 | N90: =[2]!AgePb8Th2(J90/L90) -> 469.7321057 | O90: =[2]!AgePb6U8(H90/K90) -> 11927.66829 | R90: 4953.263448
G91: 0.205 | H91: 0. 199 | I91: 0.81 | J91: 1.36 | K91: 1.37 | R91: 4938.337402
B92: 15 | D92: 1.209 | E92: 0.3549 | F92: 5113.9 | G92: 66.54 | H92: 16.187 | I92: 15.221 | J92: 64.567 | K92: 0.447 | L92: 656.5 | M92: =[2]!AgePb76(I92/H92) -> 5150.755998 | N92: =[2]!AgePb8Th2(J92/L92) -> 1896.096326 | O92: =[2]!AgePb6U8(H92/K92) -> 23314.3947 | R92: 4930.951916
G93: 0.0865 | H93: 0.0173 | I93: 0.113 | J93: 0.315 | K93: 0.527 | R93: 4918.725354
B94: 16 | D94: 0384 0.2953 | E94: 1066 | F94: 26.485 | G94: 17.061 | H94: 17.061 | I94: 15.36 | J94: 338.96 | K94: 3.5992 | L94: 13420 | M94: =[2]!AgePb76(I94/H94) -> 5089.339641 | N94: =[2]!AgePb8Th2(J94/L94) -> 504.1761841 | O94: =[2]!AgePb6U8(H94/K94) -> 11265.09296 | R94: 4916.540847
G95: 0.168 | H95: 0.168 | I95: 1.21 | J95: 2.07 | K95: 2.08 | R95: 4910.191593
A96: 7B31-2 | B96: Ml | C96: Mona+fine hematite | D96: 0.868 | E96: 1.7737 | F96: 113.8 | G96: 36.686 | H96: 16.563 | I96: 15.31 | J96: 50.28 | K96: 3.4767 | L96: 230.6 | M96: =[2]!AgePb76(I96/H96) -> 5126.583629 | N96: =[2]!AgePb8Th2(J96/L96) -> 3986.71903 | O96: =[2]!AgePb6U8(H96/K96) -> 11291.74368 | R96: 4898.298385
C97: 424±5.6 Ma | G97: 785 | H97: 0.105 | I97: 0.125 | J97: 3.387 | K97: 0.523 | R97: 4888.045237
B98: M2 | D98: LOU! | E98: 4.6911 | F98: 4763 | G98: 106.71 | H98: 16.459 | I98: 15.264 | J98: 52.439 | K98: 3.238 | L98: 340 | M98: =[2]!AgePb76(I98/H98) -> 5131.227022 | N98: =[2]!AgePb8Th2(J98/L98) -> 2899.150955 | O98: =[2]!AgePb6U8(H98/K98) -> 11639.06839 | R98: 4870.613546
C99: 44x971±.0.478 | G99: 0.069 | H99: 0.0866 | I99: 0.0984 | J99: 0.387 | K99: 0.528 | R99: 4836.976527
B100: M3 | D100: 0.864 | E100: 3.1019 | F100: 625.1 | G100: 132.91 | H100: 16.432 | I100: 15.263 | J100: 57.843 | K100: 3.1019 | L100: 625.1 | M100: =[2]!AgePb76(I100/H100) -> 5133.45156 | N100: =[2]!AgePb8Th2(J100/L100) -> 1788.777439 | O100: =[2]!AgePb6U8(H100/K100) -> 11862.28262 | R100: 4833.441086
G101: 0.0532 | H101: 0.0705 | I101: 0.193 | J101: 484 | K101: 0.502 | R101: 4807.440097
D102: 1.409 | E102: 4.7875 | F102: 1165 | G102: 80.406 | H102: 16.413 | I102: 15.256 | J102: 74.48 | K102: 5.521 | L102: 1389 | M102: =[2]!AgePb76(I102/H102) -> 5134.436867 | N102: =[2]!AgePb8Th2(J102/L102) -> 1055.747295 | O102: =[2]!AgePb6U8(H102/K102) -> 8892.692609
G103: 0.0429 | H103: 0.0692 | I103: 0.0904 | J103: 0.547 | K103: 0.555
B104: M5 | D104: 1.292 | E104: 1.2061 | F104: 1193 | G104: 46.941 | H104: 16399 | I104: 15208 | J104: 117.48 | K104: 3.3396 | L104: 3412 | M104: =[2]!AgePb76(I104/H104) -> 5131.193959 | N104: =[2]!AgePb8Th2(J104/L104) -> 684.2227728 | O104: =[2]!AgePb6U8(H104/K104) -> 54790.18999
G105: 931 | H105: 0.119 | I105: 0.153 | J105: 0.288 | K105: 0.526
B106: 1 ~ | D106: 1.379 | E106: 1.3085 | F106: 1191 | G106: 50.402 | H106: 16.401 | I106: 15.196 | J106: 107.64 | K106: 3.1526 | L106: 2966 | M106: =[2]!AgePb76(I106/H106) -> 5129.907745 | N106: =[2]!AgePb8Th2(J106/L106) -> 720.5312438 | O106: =[2]!AgePb6U8(H106/K106) -> 11764.2669
G107: 0.095 | H107: 0.108 | I107: 0.128 | J107: 0r477 | K107: 0.548
B108: 3 47 | D108: 1.273 | E108: 19.36 | F108: 1061 | G108: 520.36 | H108: 16.427 | I108: 15.268 | J108: 47.723 | K108: 2.6407 | L108: 146.5 | M108: =[2]!AgePb76(I108/H108) -> 5134.343234 | N108: =[2]!AgePb8Th2(J108/L108) -> 5699.475594 | O108: =[2]!AgePb6U8(H108/K108) -> 12744.24993
G109: 0.0702 | H109: 0.0838 | I109: 0.0989 | J109: 0.26 | K109: 0.512
A110: 78319 | B110: T1 | C110: Monazite | D110: 1.246 | E110: 3.0035 | F110: 550.3 | G110: 35.86 | H110: 16.646 | I110: 15.286 | J110: 77.17 | K110: 7.9808 | L110: 1511 | M110: =[2]!AgePb76(I110/H110) -> 5117.311101 | N110: =[2]!AgePb8Th2(J110/L110) -> 1006.785785 | O110: =[2]!AgePb6U8(H110/K110) -> 7263.797736
C111: 418±11 Ma | G111: 0.0695 | H111: 0.097 | I111: 0.118 | J111: 0.756 | K111: 0.526
B112: T2 | C112: MSWD = 14.4 | D112: 1.193 | E112: 2.7805 | F112: 865.4 | G112: 26.222 | H112: 16.586 | I112: 15.208 | J112: 171.63 | K112: 18.78 | L112: 6040 | M112: =[2]!AgePb76(I112/H112) -> 5115.186002 | N112: =[2]!AgePb8Th2(J112/L112) -> 566.333086 | O112: =[2]!AgePb6U8(H112/K112) -> 4080.312218
C113: 45.401±1.302 | G113: 0.0838 | H113: 0.11 | I113: 0.209 | J113: 0.49 | K113: 0.607
B114: T3 | D114: 1.3.42 | E114: 7.5393 | F114: 873.6 | G114: 25.115 | H114: 16.607 | I114: 15.231 | J114: 186.27 | K114: 56.987 | L114: 6823 | M114: =[2]!AgePb76(I114/H114) -> 5115.533269 | N114: =[2]!AgePb8Th2(J114/L114) -> 544.4022404 | O114: =[2]!AgePb6U8(H114/K114) -> 1648.608084
G115: 0.058 | H115: 0.077 | I115: 0.195 | J115: 0.787 | K115: 0.592
B116: T4 | D116: 1451 | E116: 0.72 | F116: 869 | G116: 25.104 | H116: 16.395 | I116: 15.237 | J116: 193.35 | K116: 5.6205 | L116: 7010 | M116: =[2]!AgePb76(I116/H116) -> 5134.226755 | N116: =[2]!AgePb8Th2(J116/L116) -> 549.9443061 | O116: =[2]!AgePb6U8(H116/K116) -> 8801.457681
G117: 0.0741 | H117: 0.0951 | I117: 0.206 | J117: 0.77 | K117: 589
B118: TS | D118: 0.732 | E118: 4.041 | F118: 860.6 | G118: 62A74 | H118: 16.426 | I118: 15.248 | J118: 72.051 | K118: 5.861 | L118: 1290 | M118: =[2]!AgePb76(I118/H118) -> 5132.57936 | N118: =[2]!AgePb8Th2(J118/L118) -> 1098.523165 | O118: =[2]!AgePb6U8(H118/K118) -> 8610.367841
G119: 0.144 | H119: 0.172 | I119: (127 | J119: 0.3844 | K119: 0.549
A120: 8835 23 | B120: 83 | C120: ~nazitg | D120: 1.072 | E120: 3.55 | F120: 8373 | G120: 41.067 | H120: 16.783 | I120: 15.301 | J120: 96.0804 | K120: 9.66965 | L120: 2356 | M120: =[2]!AgePb76(I120/H120) -> 5107.11917 | N120: =[2]!AgePb8Th2(J120/L120) -> 807.9139223 | O120: =[2]!AgePb6U8(H120/K120) -> 6487.440631
C121: 474±4.5 Ma | G121: 0.0827 | H121: 0.105 | I121: 0.195 | J121: 0.469 | K121: 0.64
B122: B4 | C122: MSWD4.01 | D122: 1.158 | E122: 3.282 | F122: 806.1 | G122: 21660 | H122: 19.059 | I122: 15.215 | J122: 274.339 | K122: 17380 | L122: 9863 | M122: =[2]!AgePb76(I122/H122) -> 4918.725354 | N122: =[2]!AgePb8Th2(J122/L122) -> 554.5256335 | O122: =[2]!AgePb6U8(H122/K122) -> 7.065298701
C123: 40.166±0.70 | G123: 0.331 | H123: 0.353 | I123: 0.907 | J123: L45 | K123: 1.5
B124: 135 | D124: 1.042 | E124: 332'03 | F124: 7823 | G124: 23.448 | H124: 18333 | I124: 151368 | J124: 223.327 | K124: 14577 | L124: 7720 | M124: =[2]!AgePb76(I124/H124) -> 8076.554278 | N124: =[2]!AgePb8Th2(J124/L124) -> 576.4091176 | O124: =[2]!AgePb6U8(H124/K124) -> 5249.518897
G125: 0.123 | H125: 0.198 | I125: 0.734 | J125: 0.0398 | K125: 0.0398
A126: 7830-20 | B126: A2 | C126: Monazite | D126: 1.017 | E126: 2461 | F126: 2594 | G126: 54.006 | H126: 16.615 | I126: 15.171 | J126: 1023.56 | K126: 4.174 | L126: 45460 | M126: =[2]!AgePb76(I126/H126) -> 5109.277911 | N126: =[2]!AgePb8Th2(J126/L126) -> 450.0431181 | O126: =[2]!AgePb6U8(H126/K126) -> 10350.03508
C127: 421±3.3 Ma | G127: 0.432 | H127: 0.439 | I127: 0.57 | J127: 2.53 | K127: 0.351
B128: A3 | C128: MSWD=3.58 | D128: 1.035 | E128: 0.4248 | F128: 2503 | G128: 53.465 | H128: 16.712 | I128: 15.169 | J128: 861.153 | K128: 6.1606 | L128: 37510 | M128: =[2]!AgePb76(I128/H128) -> 5100.867029 | N128: =[2]!AgePb8Th2(J128/L128) -> 458.7850274 | O128: =[2]!AgePb6U8(H128/K128) -> 8456.183802
C129: 66.648±5.325 | G129: 0.32 | H129: 0.341 | I129: 1.3 | J129: 2.1 | K129: 2.09
B130: A4 | D130: 0.272 | E130: 0.713 | F130: 2154 | G130: 59.165 | H130: 16.924 | I130: 15.37 | J130: 284.926 | K130: 3.3236 | L130: 10370 | M130: =[2]!AgePb76(I130/H130) -> 5101.655517 | N130: =[2]!AgePb8Th2(J130/L130) -> 547.8584778 | O130: =[2]!AgePb6U8(H130/K130) -> 11648.59136
G131: 0.31 | H131: 0.274 | I131: 1.42 | J131: 167 | K131: 2.5
A132: 9133-2 | B132: K1 | C132: Monazite | D132: 1.139 | E132: 0.3489 | F132: 5589 | G132: 42.325 | H132: 16.372 | I132: 15.228 | J132: 78.145 | K132: 0.79029 | L132: 1308 | M132: =[2]!AgePb76(I132/H132) -> 5135.374009 | N132: =[2]!AgePb8Th2(J132/L132) -> 1172.86023 | O132: =[2]!AgePb6U8(H132/K132) -> 19842.51312
C133: 43789.41 | G133: 0.0739 | H133: 0.116 | I133: 1.37 | J133: 556 | K133: 0.518
B134: I2 | D134: 1.254 | E134: 0.6726 | F134: 669.7 | G134: 79333 | H134: 16.562 | I134: 15.397 | J134: 67.383 | K134: 0.73244 | L134: 753.5 | M134: =[2]!AgePb76(I134/H134) -> 5134.666326 | N134: =[2]!AgePb8Th2(J134/L134) -> 1731.209138 | O134: =[2]!AgePb6U8(H134/K134) -> 20382.00751
C135: 49.209±1.753 | G135: 0.293 | H135: 0.298 | I135: 0.303 | J135: 0.652 | K135: 0.678
B136: lc;.:.3 | D136: 1.289 | E136: 0.4459 | F136: 1419 | G136: 61.822 | H136: 16.356 | I136: 15.241 | J136: 115 | K136: 0.92189 | L136: 3032 | M136: =[2]!AgePb76(I136/H136) -> 5137.957686 | N136: =[2]!AgePb8Th2(J136/L136) -> 752.4436645 | O136: =[2]!AgePb6U8(H136/K136) -> 18892.8736
G137: 0.102 | H137: 0.116 | I137: 0.132 | J137: 0.606 | K137: 0.527
B138: K4 | D138: 1.419 | E138: 0.1871 | F138: 1503 | G138: 47.752 | H138: 16.324 | I138: 15.206 | J138: 178.87 | K138: 0.71974 | L138: 5958 | M138: =[2]!AgePb76(I138/H138) -> 5137.476985 | N138: =[2]!AgePb8Th2(J138/L138) -> 597.8774311 | O138: =[2]!AgePb6U8(H138/K138) -> 20400.63319
G139: 0.0611 | H139: 0.078 | I139: 0.131 | J139: 0.413 | K139: 0.532
B140: K5 | D140: 1.142 | E140: 0.1849 | F140: 1498 | G140: 44.706 | H140: 16.306 | I140: 15.195 | J140: 208.11 | K140: 0.86262 | L140: 7220 | M140: =[2]!AgePb76(I140/H140) -> 5138.012607 | N140: =[2]!AgePb8Th2(J140/L140) -> 574.3607743 | O140: =[2]!AgePb6U8(H140/K140) -> 19280.35009
G141: 0.05 16 | H141: 0.0774 | I141: 0.194 | J141: 0A73 | K141: 0.579
B142: Kf | D142: 1.668 | E142: 0.7933 | F142: 1455 | G142: 106.28 | H142: 16.374 | I142: 15.275 | J142: 77.423 | K142: 0.71088 | L142: 1348 | M142: =[2]!AgePb76(I142/H142) -> 5139.549775 | N142: =[2]!AgePb8Th2(J142/L142) -> 1128.78422 | O142: =[2]!AgePb6U8(H142/K142) -> 20496.02257
G143: 0.0557 | H143: 0.0926 | I143: U.1 | J143: 0.329 | K143: 0.561
B144: K7 | D144: 1.626 | E144: 0.5149 | F144: 1308 | G144: 96.011 | H144: 16.362 | I144: 15.263 | J144: 78.418 | K144: 0.5154 | L144: 1353 | M144: =[2]!AgePb76(I144/H144) -> 5139.475327 | N144: =[2]!AgePb8Th2(J144/L144) -> 1138.781448 | O144: =[2]!AgePb6U8(H144/K144) -> 22490.16876
G145: 0.0858 | H145: 0.0987 | I145: 0.112 | J145: 0.334 | K145: 0.506
A148: Table 3
M149: Age | N149: Age | O149: Age
A150: SAMPLE | B150: LAB | C150: MINERAL* | D150: WEIGHT U | E150: Th | F150: Pb | G150: 206Pb/ | H150: 206Pb/ | I150: 207Pb/ | J150: 208Pb/ | K150: 238U/ | L150: 232Th/ | M150: 207Pb/ | N150: 208Pb/ | O150: 206Pb/
B151: NO. | C151: Age. initial | D151: (mg) | E151: (ppm) | F151: (ppm) | G151: (PPm) | H151: 204Pb | I151: 204Pb | J151: 204Pb | K151: 204Pb | L151: 204Pb | M151: 206Pb | N151: 232Th/ | O151: 238U/
C152: 208Pb/204Pb
A153: MAIN OREBODY | B153: Monazite | C153: 0.4 | D153: 6.1073 | E153: 838 | F153: 40.153 | G153: 17.8 | H153: 17.8 | I153: 15.415 | J153: 94.293 | K153: 16.92 | L153: 2399 | M153: =[2]!AgePb76(I153/H153) -> 5034.377233 | N153: =[2]!AgePb8Th2(J153/L153) -> 779.2287592 | O153: =[2]!AgePb6U8(H153/K153) -> 4633.808449
A154: 9B9-3 | B154: WI
C155: 404±14 Ma | H155: 0.0783 | I155: 0.09555 | J155: 0.189 | K155: 0.664 | L155: 0.625
B156: W2 | D156: 0.386 | E156: 15.129 | F156: 1940 | G156: 63.402 | H156: 18.247 | I156: 15.444 | J156: 142.3 | K156: 36.578 | L156: 4846 | M156: =[2]!AgePb76(I156/H156) -> 5001.868686 | N156: =[2]!AgePb8Th2(J156/L156) -> 584.9731776 | O156: =[2]!AgePb6U8(H156/K156) -> 2608.859484
C157: 41.134±18.30 | H157: 0.0576 | I157: 0.0757 | J157: 0.195 | K157: 0.433 | L157: 0.608
B158: W3 | D158: 1.287 | E158: 7.4011 | F158: 2195 | G158: 51.752 | H158: 19.745 | I158: 15.427 | J158: 349.24 | K158: 47.775 | L158: 14640 | M158: =[2]!AgePb76(I158/H158) -> 4888.045237 | N158: =[2]!AgePb8Th2(J158/L158) -> 476.5053427 | O158: =[2]!AgePb6U8(H158/K158) -> 2229.952362
H159: 0.157 | I159: 0.167 | J159: 0.255 | K159: 0.422 | L159: 0.583
B160: W5 | D160: 1.299 | E160: 6.362 | F160: 2338 | G160: 45.902 | H160: 25.636 | I160: 15.731 | J160: 1076.7 | K160: 134.49 | L160: 51070 | M160: =[2]!AgePb76(I160/H160) -> 4540.606308 | N160: =[2]!AgePb8Th2(J160/L160) -> 421.7010567 | O160: =[2]!AgePb6U8(H160/K160) -> 1124.71335
H161: 0.218 | I161: 0.267 | J161: 0.6 | K161: 0.93 | L161: 0.905
B162: W6 | D162: 1.213 | E162: 6.279 | F162: 2309 | G162: 43.819 | H162: 21.997 | I162: 15.403 | J162: 682.78 | K162: 87.116 | L162: 33100 | M162: =[2]!AgePb76(I162/H162) -> 4731.194434 | N162: =[2]!AgePb8Th2(J162/L162) -> 412.6917196 | O162: =[2]!AgePb6U8(H162/K162) -> 1451.368113
H163: 0.147 | I163: 0.166 | J163: 0.425 | K163: 0.73 | L163: 0.757
B164: W7 | D164: 0.938 | E164: 6.1685 | F164: 2332 | G164: 46.984 | H164: 23.886 | I164: 15.624 | J164: 889.26 | K164: 105.83 | L164: 41340 | M164: =[2]!AgePb76(I164/H164) -> 4633.049584 | N164: =[2]!AgePb8Th2(J164/L164) -> 430.1726418 | O164: =[2]!AgePb6U8(H164/K164) -> 1311.931747
H165: 0.277 | I165: 0.249 | J165: 0.692 | K165: 1.1 | L165: 1.03
B166: W8 | D166: 1.237 | E166: 6.5235 | F166: 1965 | G166: 48.437 | H166: 18.742 | I166: 15.43 | J166: 220 | K166: 29.778 | L166: 9267 | M166: =[2]!AgePb76(I166/H166) -> 4962.56119 | N166: =[2]!AgePb8Th2(J166/L166) -> 474.2342154 | O166: =[2]!AgePb6U8(H166/K166) -> 3147.179489
H167: 0.0769 | I167: 0.0942 | J167: 0.161 | K167: 0.331 | L167: 0.551
B168: W9 | D168: 1.241 | E168: 7.0719 | F168: 2180 | G168: 66.108 | H168: 17.99 | I168: 15.36 | J168: 144.31 | K168: 16.553 | L168: 5272 | M168: =[2]!AgePb76(I168/H168) -> 5014.255953 | N168: =[2]!AgePb8Th2(J168/L168) -> 545.8307142 | O168: =[2]!AgePb6U8(H168/K168) -> 4742.224467
H169: 0.0837 | I169: 0.112 | J169: 0.131 | K169: 0.553 | L169: 0.537
A170: 490.33 | B170: P1 | C170: Monazite | D170: 0.861 | E170: 0.3327 | F170: 1107 | G170: 22.318 | H170: 17.489 | I170: 15.331 | J170: 1521.7 | K170: 20.112 | L170: 69170 | M170: =[2]!AgePb76(I170/H170) -> 5051.60682 | N170: =[2]!AgePb8Th2(J170/L170) -> 439.8368053 | O170: =[2]!AgePb6U8(H170/K170) -> 4033.611564
C171: 431±2.7 Ma | H171: 0.335 | I171: 0.345 | J171: 2.55 | K171: 3.91 | L171: 3.92
B172: P2 | C172: MSWD=0.936 | D172: 1.35 | E172: 0.1988 | F172: 1103 | G172: 91.503 | H172: 17.393 | I172: 15.567 | J172: 52.542 | K172: 0.16253 | L172: 931.9 | M172: =[2]!AgePb76(I172/H172) -> 5081.01618 | N172: =[2]!AgePb8Th2(J172/L172) -> 1108.630023 | O172: =[2]!AgePb6U8(H172/K172) -> 30183.79809
C173: 32.473±0.168 | H173: 0.0607 | I173: 0.0794 | J173: 0.0945 | K173: 0.287 | L173: 0.514
B174: P3 | D174: 1.475 | E174: 0.2229 | F174: 1096 | G174: 22.301 | H174: 17.27 | I174: 15.356 | J174: 1225 | K174: 10.911 | L174: 55430 | M174: =[2]!AgePb76(I174/H174) -> 5071.75033 | N174: =[2]!AgePb8Th2(J174/L174) -> 441.8247883 | O174: =[2]!AgePb6U8(H174/K174) -> 6116.851167
H175: 0.225 | I175: 0.284 | J175: 1.21 | K175: 1.92 | L175: 1.9
B176: P4 | D176: 1.432 | E176: 0.2042 | F176: 1099 | G176: 22.899 | H176: 16.869 | I176: 15.213 | J176: 994.54 | K176: 7.9469 | L176: 44180 | M176: =[2]!AgePb76(I176/H176) -> 5091.744644 | N176: =[2]!AgePb8Th2(J176/L176) -> 449.9536293 | O176: =[2]!AgePb6U8(H176/K176) -> 7340.548985
H177: 0.183 | I177: 0.187 | J177: 1.01 | K177: 1.57 | L177: 1.61
B178: F2 | D178: 1.115 | E178: 0.2517 | F178: 1115 | G178: 22.428 | H178: 17.393 | I178: 15.185 | J178: 1533 | K178: 15.251 | L178: 69770 | M178: =[2]!AgePb76(I178/H178) -> 5045.85022 | N178: =[2]!AgePb8Th2(J178/L178) -> 439.2983188 | O178: =[2]!AgePb6U8(H178/K178) -> 4905.824315
H179: 0.396 | I179: 0.434 | J179: 1.99 | K179: 3.04 | L179: 3.06
B180: F3 | D180: 1.204 | E180: 0.0997 | F180: 1101 | G180: 21.933 | H180: 17.426 | I180: 15.238 | J180: 1671.5 | K180: 6.7256 | L180: 76680 | M180: =[2]!AgePb76(I180/H180) -> 5048.100453 | N180: =[2]!AgePb8Th2(J180/L180) -> 435.8604407 | O180: =[2]!AgePb6U8(H180/K180) -> 8241.285993
H181: 0.297 | I181: 0.347 | J181: 2.04 | K181: 3.16 | L181: 3.14
B182: F4 | D182: 1.119 | E182: 0.1022 | F182: 1090 | G182: 23.547 | H182: 16.875 | I182: 14.915 | J182: 548.82 | K182: 2.1886 | L182: 24110 | M182: =[2]!AgePb76(I182/H182) -> 5063.257696 | N182: =[2]!AgePb8Th2(J182/L182) -> 454.9358995 | O182: =[2]!AgePb6U8(H182/K182) -> 13953.38397
H183: 0.435 | I183: 0.664 | J183: 0.831 | K183: 1.32 | L183: 1.31
A184: 7B36-6 | B184: XI | C184: Mona+bastnae | D184: 0.306 | E184: 0.3137 | F184: 2895 | G184: 98.686 | H184: 16.057 | I184: 15.177 | J184: 217.35 | K184: 0.68762 | L184: 6556 | M184: =[2]!AgePb76(I184/H184) -> 5158.043583 | N184: =[2]!AgePb8Th2(J184/L184) -> 659.2245333 | O184: =[2]!AgePb6U8(H184/K184) -> 20580.79569
C185: 553±16 Ma | H185: 0.0862 | I185: 0.0978 | J185: 0.262 | K185: 0.715 | L185: 0.655
B186: X2 | C186: MSWD=35.4 | D186: 0.582 | E186: 0.2784 | F186: 3423 | G186: 111.48 | H186: 15.958 | I186: 15.127 | J186: 295.71 | K186: 0.70991 | L186: 9015 | M186: =[2]!AgePb76(I186/H186) -> 5162.109979 | N186: =[2]!AgePb8Th2(J186/L186) -> 652.3596525 | O186: =[2]!AgePb6U8(H186/K186) -> 20345.54322
C187: 39.756±2.06 | H187: 0.105 | I187: 0.129 | J187: 0.19 | K187: 0.564 | L187: 0.577
B188: X3 | D188: 0.701 | E188: 0.6935 | F188: 3472 | G188: 128.65 | H188: 15.771 | I188: 15.12 | J188: 185.21 | K188: 1.014 | L188: 5245 | M188: =[2]!AgePb76(I188/H188) -> 5178.066859 | N188: =[2]!AgePb8Th2(J188/L188) -> 701.4161775 | O188: =[2]!AgePb6U8(H188/K188) -> 18092.39468
H189: 0.0524 | I189: 0.073 | J189: 0.114 | K189: 0.437 | L189: 0.518
B190: X4 | D190: 1.156 | E190: 0.4601 | F190: 3553 | G190: 168.27 | H190: 15.759 | I190: 15.177 | J190: 118.36 | K190: 0.49515 | L190: 2840 | M190: =[2]!AgePb76(I190/H190) -> 5184.438339 | N190: =[2]!AgePb8Th2(J190/L190) -> 825.2856708 | O190: =[2]!AgePb6U8(H190/K190) -> 22505.99705
H191: 0.0987 | I191: 0.122 | J191: 0.134 | K191: 0.28 | L191: 0.548
B192: X5 | D192: 0.774 | E192: 0.4002 | F192: 5829 | G192: 126.96 | H192: 15.779 | I192: 15.139 | J192: 200.22 | K192: 0.40024 | L192: 5829 | M192: =[2]!AgePb76(I192/H192) -> 5179.12143 | N192: =[2]!AgePb8Th2(J192/L192) -> 682.6112193 | O192: =[2]!AgePb6U8(H192/K192) -> 23847.99259
H193: 0.0812 | I193: 0.0994 | J193: 0.136 | K193: 0.393 | L193: 0.527
B194: X6 | D194: 0.707 | E194: 0.8946 | F194: 2845 | G194: 222.3 | H194: 15.895 | I194: 15.204 | J194: 73.224 | K194: 0.36682 | L194: 1205 | M194: =[2]!AgePb76(I194/H194) -> 5174.838738 | N194: =[2]!AgePb8Th2(J194/L194) -> 1192.360738 | O194: =[2]!AgePb6U8(H194/K194) -> 24442.89472
H195: 0.116 | I195: 0.125 | J195: 0.136 | K195: 0.436 | L195: 0.525
A196: WEST OREBODY | B196: Monazite | C196: 1.255 | D196: 2.9585 | E196: 5970 | F196: 123.9 | G196: 18.083 | H196: 18.083 | I196: 15.3 | J196: 1005 | K196: 22.766 | L196: 47470 | M196: =[2]!AgePb76(I196/H196) -> 5001.387098 | N196: =[2]!AgePb8Th2(J196/L196) -> 423.4516132 | O196: =[2]!AgePb6U8(H196/K196) -> 3768.664924
A197: 12-6A | B197: U1
C198: 398±9.7 Ma | H198: 0.111 | I198: 0.148 | J198: 0.269 | K198: 0.459 | L198: 0.65
B199: U2 | C199: MSWD=40.6 | D199: 1.191 | E199: 2.8342 | F199: 6164 | G199: 138.08 | H199: 19.363 | I199: 15.434 | J199: 1464.9 | K199: 32.055 | L199: 72030 | M199: =[2]!AgePb76(I199/H199) -> 4916.540847 | N199: =[2]!AgePb8Th2(J199/L199) -> 406.9392047 | O199: =[2]!AgePb6U8(H199/K199) -> 3046.157152
C200: 41.670±1.319 | H200: 0.221 | I200: 0.23 | J200: 0A15 | K200: 0.593 | L200: 0.735
B201: U3 | D201: 1.54 | E201: 2.9558 | F201: 6106 | G201: 113.31 | H201: 18.442 | I201: 15.407 | J201: 1151.9 | K201: 26.846 | L201: 57300 | M201: =[2]!AgePb76(I201/H201) -> 4983.371118 | N201: =[2]!AgePb8Th2(J201/L201) -> 402.2955045 | O201: =[2]!AgePb6U8(H201/K201) -> 3370.992829
H202: 0.106 | I202: 0.129 | J202: 0.255 | K202: 0.439 | L202: 0.595
... 154 more rows

Sheet Thorium_E
E1: Age | I1: Age | K1: Age | S1: 90595
A2: Sample | B2: 206Pb/204Pb | D2: 207Pb/204Pb | E2: 207Pb/206Pb | F2: 208Pb/204Pb | H2: 238U/204Pb | I2: 206Pb/238U | J2: 232Th/204Pb | K2: 208Pb/232Th | S2: 80626
A3: AG | B3: 13.67 | C3: -43 | D3: 13.03 | E3: =[1]!AgePb76(D3/B3) -> 5169.903015 | F3: 32.845 | G3: -87 | H3: 4.624 | I3: =[2]!AgePb6U8(B3/H3) -> 8865.837266 | J3: 14.121 | K3: =[2]!AgePb8Th2(F3/J3) -> 24290.26548 | S3: 76308
A4: M1 | B4: 15.21 | C4: -17 | D4: 13.979 | E4: =[2]!AgePb76(D4/B4) -> 5118.491167 | F4: 34.08 | G4: -11.61 | H4: 5.92 | I4: =[2]!AgePb6U8(B4/H4) -> 8202.142677 | J4: 16.06 | K4: =[2]!AgePb8Th2(F4/J4) -> 23011.36704 | S4: 73746
A5: M3 | B5: 16.681 | C5: -79 | D5: 14.795 | E5: =[2]!AgePb76(D5/B5) -> 5068.189545 | F5: 35.86 | G5: -26 | H5: 5.459 | I5: =[2]!AgePb6U8(B5/H5) -> 9025.755387 | J5: 20.45 | K5: =[2]!AgePb8Th2(F5/J5) -> 20472.749 | S5: 71804
A6: M4 | B6: 21.265 | C6: -27 | D6: 17.624 | E6: =[2]!AgePb76(D6/B6) -> 4972.016612 | F6: 40.383 | G6: -61 | H6: 9.67 | I6: =[2]!AgePb6U8(B6/H6) -> 7496.276677 | J6: 39.36 | K6: =[2]!AgePb8Th2(F6/J6) -> 14271.02357 | S6: 63552
A7: WR | B7: 21.034 | C7: -18 | D7: 17.325 | E7: =[2]!AgePb76(D7/B7) -> 4963.220396 | F7: 40.36 | G7: -63 | H7: 7.938 | I7: =[2]!AgePb6U8(B7/H7) -> 8345.969328 | J7: 31.04 | K7: =[2]!AgePb8Th2(F7/J7) -> 16837.21423 | S7: 62693
A8: GR | B8: 11.888 | C8: -65 | D8: 11.917 | E8: =[2]!AgePb76(D8/B8) -> 5240.795796 | F8: 31.886 | G8: -70 | H8: 2.708 | I8: =[2]!AgePb6U8(B8/H8) -> 10859.22426 | J8: 9.015 | K8: =[2]!AgePb8Th2(F8/J8) -> 30566.23863 | S8: 46684
A9: WT | B9: 14.97 | C9: -95 | D9: 13.78 | E9: =[2]!AgePb76(D9/B9) -> 5120.703765 | F9: 34.69 | G9: -77 | H9: 4.75 | I9: =[2]!AgePb6U8(B9/H9) -> 9176.397944 | J9: 16.65 | K9: =[2]!AgePb8Th2(F9/J9) -> 22760.18108 | S9: 40862
A10: AG | B10: 16.75 | C10: -14 | D10: 14.473 | E10: =[2]!AgePb76(D10/B10) -> 5031.179832 | F10: 36.561 | G10: -116 | H10: 0.58 | J10: 0.858 | K10: =[2]!AgePb8Th2(F10/J10) -> 76307.82772 | S10: 30566
A11: M3 | B11: 15.99 | C11: -11 | D11: 14.002 | E11: =[2]!AgePb76(D11/B11) -> 5050.094124 | F11: 35.754 | G11: -112 | S11: 30179
A12: M4 | B12: 17.545 | C12: -23 | D12: 15.172 | E12: =[2]!AgePb76(D12/B12) -> 5032.308075 | F12: 37.495 | G12: -51 | H12: 0.727 | I12: =[2]!AgePb6U8(B12/H12) -> 20784.51981 | J12: 1.002 | K12: =[2]!AgePb8Th2(F12/J12) -> 73745.97905 | S12: 26671
A13: WR | B13: 17.931 | C13: -24 | D13: 15.215 | E13: =[2]!AgePb76(D13/B13) -> 5005.460127 | F13: 37.568 | G13: -63 | H13: 0.5433 | I13: =[2]!AgePb6U8(B13/H13) -> 22733.11331 | J13: 1.769 | K13: =[2]!AgePb8Th2(F13/J13) -> 62693.30241 | S13: 25513
A14: GR | B14: 10.18 | C14: -1.71 | D14: 10.85 | E14: =[2]!AgePb76(D14/B14) -> 5326.776749 | F14: 30.48 | G14: -1.48 | S14: 24290
A15: WT | B15: 16.81 | C15: -1.9 | D15: 14.63 | E15: =[2]!AgePb76(D15/B15) -> 5041.402056 | F15: 36.51 | G15: -1.41 | S15: 23011
A16: AG | B16: 16.753 | C16: -64 | D16: 14.628 | E16: =[2]!AgePb76(D16/B16) -> 5046.020029 | F16: 36.633 | G16: -92 | H16: 0.496 | I16: =[2]!AgePb6U8(B16/H16) -> 22877.89539 | J16: 1.65 | K16: =[2]!AgePb8Th2(F16/J16) -> 63551.90794 | S16: 22878
A17: M3 | B17: 17.614 | C17: -19 | D17: 15.006 | E17: =[2]!AgePb76(D17/B17) -> 5011.142879 | F17: 37.359 | G17: -37 | H17: 0.6767 | I17: =[2]!AgePb6U8(B17/H17) -> 21253.31165 | J17: 1.102 | K17: =[2]!AgePb8Th2(F17/J17) -> 71804.30581 | S17: 22760
A18: M4 | B18: 17.901 | C18: -8 | D18: 15.44 | E18: =[2]!AgePb76(D18/B18) -> 5028.654472 | F18: 37.839 | G18: -36 | H18: 0.1674 | I18: =[2]!AgePb6U8(B18/H18) -> 30179.10509 | J18: 0.4328 | K18: =[2]!AgePb8Th2(F18/J18) -> 90595.1063 | S18: 22733
A19: WR | B19: 18.249 | C19: -90 | D19: 15.343 | E19: =[2]!AgePb76(D19/B19) -> 4992.39955 | F19: 37.947 | G19: -190 | H19: 0.2961 | I19: =[2]!AgePb6U8(B19/H19) -> 26670.51505 | J19: 0.716 | K19: =[2]!AgePb8Th2(F19/J19) -> 80625.73385 | S19: 22179
A20: GR | B20: 13.25 | C20: -23 | D20: 12.595 | E20: =[2]!AgePb76(D20/B20) -> 5166.030079 | F20: 33.212 | G20: -196 | H20: 1.177 | I20: =[2]!AgePb6U8(B20/H20) -> 16155.56888 | J20: 5.07 | K20: =[2]!AgePb8Th2(F20/J20) -> 40861.82909 | S20: 21253
A21: WT | B21: 15.78 | C21: -1.32 | D21: 14.05 | E21: =[2]!AgePb76(D21/B21) -> 5073.651443 | F21: 35.65 | G21: -1.09 | H21: 3.6 | I21: =[2]!AgePb6U8(B21/H21) -> 10851.29902 | J21: 3.93 | K21: =[2]!AgePb8Th2(F21/J21) -> 46683.87093 | N21: Statisitics | O21: 207Pb/206Pb | P21: 206Pb/238U | Q21: 208Pb/232Th | S21: 20785
D22: Average | E22: =AVERAGE(E3:E21) -> 5076.759985 | H22: Average | I22: =AVERAGE(I3:I21) -> 15565.12878 | J22: Average | K22: =AVERAGE(K3:K21) -> 47442.43138 | N22: Average | O22: 5076.759985 | P22: 15565.12878 | Q22: 47442.43138 | S22: 20473
D23: Maximum | E23: =MAX(E3:E22) -> 5326.776749 | H23: Maximum | I23: =MAX(I3:I22) -> 30179.10509 | J23: Maximum | K23: =MAX(K3:K22) -> 90595.1063 | N23: Maximum | O23: 5326.776749 | P23: 30179.10509 | Q23: 90595.1063 | S23: 18216
D24: Minimum | E24: =MIN(E3:E23) -> 4963.220396 | H24: Minimum | I24: =MIN(I3:I23) -> 7496.276677 | J24: Minimum | K24: =MIN(K3:K23) -> 14271.02357 | N24: Minimum | O24: 4963.220396 | P24: 7496.276677 | Q24: 14271.02357 | S24: 17870
D25: Difference | E25: =(E23-E24) -> 363.5563529 | H25: Difference | I25: =(I23-I24) -> 22682.82841 | K25: =(K23-K24) -> 76324.08272 | N25: Difference | O25: 363.5563529 | P25: 22682.82841 | Q25: 76324.08272 | S25: 16929
S26: 16837
S27: 16667
I28: Age | K28: Age | S28: 16198
A29: Sample | B29: 204Pb/206Pb | D29: 207Pb/206Pb | F29: 208Pb/206Pb | H29: 238U/206Pb | I29: 206Pb/238U | J29: 207Pb/206Pb | K29: 207Pb/206Pb | S29: 16156
A30: AG | B30: 0.07315 | C30: -23 | D30: 0.9532 | E30: -15 | F30: 2.4027 | G30: -49 | H30: 1.06 | I30: =[2]!AgePb6U8(1/H30) -> 4283.236581 | J30: 0.6271 | K30: =[2]!AgePb76(J30) -> 4572.079352 | S30: 14271
A31: M1 | B31: 0.06576 | C31: -76 | D31: 0.9192 | E31: -59 | F31: 2.2409 | G31: -142 | H31: 1.003 | I31: =[2]!AgePb6U8(1/H31) -> 4458.6659 | J31: 0.6245 | K31: =[2]!AgePb76(J31) -> 4566.061582 | S31: 10859
A32: M3 | B32: 0.05995 | C32: -29 | D32: 0.887 | E32: -27 | F32: 2.1497 | G32: -120 | H32: 0.74 | I32: =[2]!AgePb6U8(1/H32) -> 5511.62099 | J32: 0.6104 | K32: =[2]!AgePb76(J32) -> 4532.95115 | S32: 10851
A33: M4 | B33: 0.047025 | C33: -59 | D33: 0.82878 | E33: -72 | F33: 1.899 | G33: -18 | H33: 0.809 | I33: =[2]!AgePb6U8(1/H33) -> 5187.626549 | J33: 0.61298 | K33: =[2]!AgePb76(J33) -> 4539.070657 | S33: 9469
A34: WR | B34: 0.047541 | C34: -40 | D34: 0.82364 | E34: -63 | F34: 1.9188 | G34: -24 | H34: 0.6768 | I34: =[2]!AgePb6U8(1/H34) -> 5848.616831 | J34: 0.59951 | K34: =[2]!AgePb76(J34) -> 4506.811281 | S34: 9176
A35: GR | B35: 0.08412 | C35: -46 | D35: 1.0025 | E35: -28 | F35: 2.6822 | G35: -100 | H35: 1.049 | I35: =[2]!AgePb6U8(1/H35) -> 4315.968025 | J35: 0.6289 | K35: =[2]!AgePb76(J35) -> 4576.229835 | S35: 9026
A36: WT | B36: 0.0668 | C36: -42 | D36: 0.92 | E36: -33 | F36: 2.317 | G36: -97 | H36: 0.837 | I36: =[2]!AgePb6U8(1/H36) -> 5067.300659 | J36: 0.615 | K36: =[2]!AgePb76(J36) -> 4543.84262 | S36: 8866
A37: AG | B37: 0.05969 | C37: -51 | D37: 0.8639 | E37: -39 | F37: 2.1822 | G37: -130 | H37: 0.078 | I37: =[2]!AgePb6U8(1/H37) -> 16929.27591 | J37: 0.5612 | K37: =[2]!AgePb76(J37) -> 4410.617869 | S37: 8346
A38: M3 | B38: 0.06253 | C38: -43 | D38: 0.8755 | E38: -29 | F38: 2.2355 | G38: -98 | S38: 8202
A39: M4 | B39: 0.056996 | C39: -75 | D39: 0.86476 | E39: -64 | F39: 2.1371 | G39: -21 | H39: 0.0882 | I39: =[2]!AgePb6U8(1/H39) -> 16197.73261 | J39: 0.5922 | K39: =[2]!AgePb76(J39) -> 4488.976744 | S39: 7496
A40: WR | B40: 0.05577 | C40: -76 | D40: 0.84857 | E40: -55 | F40: 2.0952 | G40: -20 | H40: 0.063 | I40: =[2]!AgePb6U8(1/H40) -> 18215.73345 | J40: 0.5707 | K40: =[2]!AgePb76(J40) -> 4435.116649 | S40: 6604
A41: GR | B41: 0.0983 | C41: -165 | D41: 1.067 | E41: -93 | F41: 3 | G41: -36 | S41: 5849
A42: WT | B42: 0.0595 | C42: -67 | D42: 0.871 | E42: -55 | F42: 2.172 | G42: -163 | S42: 5512
A43: AG | B43: 0.05969 | C43: -23 | D43: 0.8732 | E43: -21 | F43: 2.1867 | G43: -51 | H43: 0.0667 | I43: =[2]!AgePb6U8(1/H43) -> 17870.23431 | J43: 0.5821 | K43: =[2]!AgePb76(J43) -> 4463.9418 | S43: 5327
A44: M3 | B44: 0.056772 | C44: -62 | D44: 0.8519 | E44: -57 | F44: 2.1209 | G44: -20 | H44: 0.0815 | I44: =[2]!AgePb6U8(1/H44) -> 16667.21177 | J44: 0.56718 | K44: =[2]!AgePb76(J44) -> 4426.090802 | S44: 5241
A45: M4 | B45: 0.055862 | C45: -26 | D45: 0.8625 | E45: -30 | F45: 2.1137 | G45: -14 | H45: 0.01948 | I45: =[2]!AgePb6U8(1/H45) -> 25512.71345 | J45: 0.59875 | K45: =[2]!AgePb76(J45) -> 4504.967996 | S45: 5188
A46: WR | B46: 0.0548 | C46: -27 | D46: 0.84075 | E46: -56 | F46: 2.0795 | G46: -91 | H46: 0.03311 | I46: =[2]!AgePb6U8(1/H46) -> 22178.84672 | J46: 0.5646 | K46: =[2]!AgePb76(J46) -> 4419.436854 | S46: 5170
A47: GR | B47: 0.0755 | C47: -130 | D47: 0.9509 | E47: -79 | F47: 2.508 | G47: -29 | H47: 0.299 | I47: =[2]!AgePb6U8(1/H47) -> 9469.179328 | J47: 0.5843 | K47: =[2]!AgePb76(J47) -> 4469.434563 | S47: 5166
A48: WT | B48: 0.0634 | C48: -53 | D48: 0.891 | E48: -38 | F48: 2.259 | G48: -126 | H48: 0.56 | I48: =[2]!AgePb6U8(1/H48) -> 6604.379156 | J48: 0.581 | K48: =[2]!AgePb76(J48) -> 4461.187034 | N48: Statisitics | O48: 206Pb/238U | P48: 207Pb/206Pb | S48: 5121
H49: Average | I49: =AVERAGE(I30:I48) -> 11519.89639 | J49: Average | K49: =AVERAGE(K30:K48) -> 4494.801049 | N49: Average | O49: 11519.89639 | P49: 4494.801049 | S49: 5118
H50: Maximum | I50: =MAX(I30:I49) -> 25512.71345 | J50: Maximum | K50: =MAX(K30:K49) -> 4576.229835 | N50: Maximum | O50: 25512.71345 | P50: 4576.229835 | S50: 5074
H51: Minimum | I51: =MIN(I30:I50) -> 4283.236581 | J51: Minimum | K51: =MIN(K30:K50) -> 4410.617869 | N51: Minimum | O51: 4283.236581 | P51: 4410.617869 | S51: 5068
H52: Difference | I52: =(I50-I51) -> 21229.47687 | J52: Difference | K52: =(K50-K51) -> 165.611967 | N52: Difference | O52: 21229.47687 | P52: 165.611967 | S52: 5067
S53: 5050
S54: 5046
S55: 5041
S56: 5032
S57: 5031
S58: 5029
S59: 5011
S60: 5005
S61: 4992
S62: 4972
S63: 4963
S64: 4576
S65: 4572
S66: 4566
S67: 4544
S68: 4539
S69: 4533
S70: 4507
S71: 4505
S72: 4489
S73: 4469
S74: 4464
S75: 4461
S76: 4459
S77: 4435
S78: 4426
S79: 4419
S80: 4411
S81: 4316
S82: 4283

Sheet Thorium_F
K1: Age | L1: Age | M1: Age | N1: Age | Q1: 65286
A2: Sample | B2: 206Pb/204Pb | C2: 207Pb/204Pb | D2: 208Pb/204Pb | E2: 238U/204Pb | F2: 232Th/204Pb | G2: 206Pb/238U | H2: 207Pb/235U | I2: 208Pb/232Th | J2: 207Pb/206Pb | K2: 206Pb/238U | L2: 207Pb/235U | M2: 208Pb/232Th | N2: 207Pb/206Pb | Q2: 47418
A3: PL1,W | B3: 18.637 | C3: 15.954 | D3: 38.414 | E3: 1.027 | F3: 3.749 | G3: 7.275 | H3: 363.1 | I3: 1.996 | J3: =(C3/B3) -> 0.8560390621 | K3: =[2]!AgePb6U8(G3) -> 13622.81335 | L3: =[2]!AgePb7U5(H3) -> 5988.149013 | M3: =[2]!AgePb8Th2(I3) -> 22178.43488 | N3: =[2]!AgePb76(J3) -> 5017.957799 | Q3: 33898
A4: PL2,W | B4: 18.879 | C4: 15.706 | D4: 38.874 | E4: 0.1131 | F4: 0.327 | G4: 68.19 | H4: 2995 | I4: 24.28 | J4: =(C4/B4) -> 0.8319296573 | K4: =[2]!AgePb6U8(G4) -> 27312.53082 | L4: =[2]!AgePb7U5(H4) -> 8128.175199 | M4: =[2]!AgePb8Th2(I4) -> 65285.77199 | N4: =[2]!AgePb76(J4) -> 4977.406787 | Q4: 27313
A5: PL3,W | B5: 19.19 | C5: 15.971 | D5: 39.003 | E5: 0.535 | F5: 1.86 | G5: 15 | H5: 701 | I5: 4.35 | J5: 0.8322563835 | K5: =[2]!AgePb6U8(G5) -> 17873.25526 | L5: =[2]!AgePb7U5(H5) -> 6654.752911 | M5: =[2]!AgePb8Th2(I5) -> 33897.85873 | N5: =[2]!AgePb76(J5) -> 4977.964633 | Q5: 25013
A6: PX 1,W | B6: 20.845 | C6: 16.529 | D6: 41.507 | E6: 2.789 | F6: 13.58 | G6: 3.47 | H6: 162.1 | I6: 0.7788 | J6: 0.7929479491 | K6: =[2]!AgePb6U8(G6) -> 9652.785873 | L6: =[2]!AgePb7U5(H6) -> 5172.730375 | M6: =[2]!AgePb8Th2(I6) -> 11641.0102 | N6: =[2]!AgePb76(J6) -> 4909.122471 | Q6: 22178
A7: PX2,W | B7: 20.508 | C7: 16.423 | D7: 40.689 | E7: 2.38 | F7: 10.69 | G7: 3.925 | H7: 183.9 | I7: 0.9126 | J7: 0.8008094402 | K7: =[2]!AgePb6U8(G7) -> 10277.67461 | L7: =[2]!AgePb7U5(H7) -> 5300.111833 | M7: =[2]!AgePb8Th2(I7) -> 13106.89384 | N7: =[2]!AgePb76(J7) -> 4923.176835 | Q7: 21204
A8: WR,W | B8: 26.04 | C8: 18.88 | D8: 47.01 | E8: 9.51 | F8: 45.07 | G8: 1564 | H8: 81.64 | I8: 0.3567 | J8: 0.7250384025 | K8: =[2]!AgePb6U8(G8) -> 47417.50912 | L8: =[2]!AgePb7U5(H8) -> 4482.402218 | M8: =[2]!AgePb8Th2(I8) -> 6165.847004 | N8: =[2]!AgePb76(J8) -> 4781.158226 | Q8: 17873
A9: IL,W | B9: 59 | C9: 31 | D9: 67 | E9: 60 | F9: 200 | G9: 0.742 | H9: 39.2 | I9: 0.236 | J9: 0.5254237288 | K9: =[2]!AgePb6U8(G9) -> 3577.978265 | L9: =[2]!AgePb7U5(H9) -> 3750.689948 | M9: =[2]!AgePb8Th2(I9) -> 4282.57421 | N9: =[2]!AgePb76(J9) -> 4314.167698 | Q9: 17611
A10: MAG,W | B10: 18.998 | C10: 15.93 | D10: 38.908 | E10: 1.772 | F10: 4.3 | G10: 4.42 | H10: 208.6 | I10: 1.855 | J10: 0.8385093168 | K10: =[2]!AgePb6U8(G10) -> 10895.05763 | L10: =[2]!AgePb7U5(H10) -> 5427.426463 | M10: =[2]!AgePb8Th2(I10) -> 21204.0797 | N10: =[2]!AgePb76(J10) -> 4988.596148 | Q10: 14430
A11: PL1,L1 | B11: 24.15 | C11: 18.83 | D11: 45.06 | E11: 13.2 | F11: 13.6 | G11: 0.983 | H11: 58.3 | I11: 1.04 | J11: 0.7797101449 | K11: =[2]!AgePb6U8(G11) -> 4413.28509 | L11: =[2]!AgePb7U5(H11) -> 4145.412302 | M11: =[2]!AgePb8Th2(I11) -> 14410.30435 | N11: =[2]!AgePb76(J11) -> 4885.118078 | Q11: 14410
A12: PL2,L1 | B12: 19.585 | C12: 15.992 | D12: 39.679 | E12: 1.145 | F12: 3.573 | G12: 7.349 | H12: 330.1 | I12: 2.447 | J12: 0.8165432729 | K12: =[2]!AgePb6U8(G12) -> 13680.20481 | L12: =[2]!AgePb7U5(H12) -> 5891.679387 | M12: =[2]!AgePb8Th2(I12) -> 25012.7193 | N12: =[2]!AgePb76(J12) -> 4950.869276 | Q12: 13680
A13: PL3,L1 | B13: 37.93 | C13: 23.42 | D13: 57.05 | E13: 24 | F13: 85.3 | G13: 1.115 | H13: 58.39 | I13: 0.3063 | J13: 0.6174532033 | K13: =[2]!AgePb6U8(G13) -> 4828.717566 | L13: =[2]!AgePb7U5(H13) -> 4146.952188 | M13: =[2]!AgePb8Th2(I13) -> 5400.681425 | N13: =[2]!AgePb76(J13) -> 4549.61538 | Q13: 13623
A14: PX1,L1 | B14: 20.946 | C14: 16.595 | D14: 41.26 | E14: 5.6883 | F14: 9.907 | G14: 1.7192 | H14: 81.073 | I14: 1.042 | J14: 0.7922753748 | K14: =[2]!AgePb6U8(G14) -> 6448.591261 | L14: =[2]!AgePb7U5(H14) -> 4475.411581 | M14: =[2]!AgePb8Th2(I14) -> 14430.11056 | N14: =[2]!AgePb76(J14) -> 4907.913198 | Q14: 13107
A15: PX2,L 1 | B15: 21.657 | C15: 16.798 | D15: 42.082 | E15: 4.881 | F15: 8.002 | G15: 2.149 | H15: 100.2 | I15: 1.39 | J15: 0.7756383617 | K15: =[2]!AgePb6U8(G15) -> 7394.584639 | L15: =[2]!AgePb7U5(H15) -> 4688.123833 | M15: =[2]!AgePb8Th2(I15) -> 17610.78051 | N15: =[2]!AgePb76(J15) -> 4877.64727 | Q15: 12738
A16: WR,L1 | B16: 32.057 | C16: 21.272 | D16: 53.639 | E16: 30.56 | F16: 59.64 | G16: 0.6836 | H16: 36.2 | I16: 0.3807 | J16: 0.6635680195 | K16: =[2]!AgePb6U8(G16) -> 3358.158633 | L16: =[2]!AgePb7U5(H16) -> 3671.938632 | M16: =[2]!AgePb8Th2(I16) -> 6520.275229 | N16: =[2]!AgePb76(J16) -> 4653.772495 | Q16: 11641
A17: PLL | B17: 138 | C17: 64.9 | D17: 139 | E17: 491 | F17: 123 | G17: 0.2575 | H17: 14.52 | I17: 0.878 | J17: 0.4702898551 | K17: =[2]!AgePb6U8(G17) -> 1477.038666 | L17: =[2]!AgePb7U5(H17) -> 2784.311839 | M17: =[2]!AgePb8Th2(I17) -> 12737.89552 | N17: =[2]!AgePb76(J17) -> 4150.678268 | Q17: 11174
A18: MAG,L | B18: 22.221 | C18: 17.144 | D18: 42.357 | E18: 5.9569 | F18: 15.47 | G18: 1.8557 | H18: 90.13 | I18: 0.7382 | J18: 0.7715224337 | K18: =[2]!AgePb6U8(G18) -> 6764.331971 | L18: =[2]!AgePb7U5(H18) -> 4581.699811 | M18: =[2]!AgePb8Th2(I18) -> 11174.33239 | N18: =[2]!AgePb76(J18) -> 4870.05289 | Q18: 10895
A19: PL2,L2 | B19: 22.831 | C19: 17.285 | D19: 43.962 | E19: 4.733 | F19: 22.93 | G19: 2.464 | H19: 117.5 | I19: 0.5682 | J19: 0.7570846656 | K19: =[2]!AgePb6U8(G19) -> 8009.179634 | L19: =[2]!AgePb7U5(H19) -> 4848.365701 | M19: =[2]!AgePb8Th2(I19) -> 9094.056894 | N19: =[2]!AgePb76(J19) -> 4843.068004 | Q19: 10278
A20: PL3,L2 | B20: 40 | C20: 30 | D20: 70 | E20: 20 | F20: 200 | G20: 1 | H20: 90 | I20: 0.2 | J20: 0.75 | K20: =[2]!AgePb6U8(G20) -> 4468.313815 | L20: =[2]!AgePb7U5(H20) -> 4580.250299 | M20: =[2]!AgePb8Th2(I20) -> 3685.124948 | N20: =[2]!AgePb76(J20) -> 4829.625094 | Q20: 9653
A21: PX1,L2 | B21: 27.13 | C21: 19.169 | D21: 49.33 | E21: 8.799 | F21: 56.79 | G21: 1.814 | H21: 92.75 | I21: 0.3239 | J21: 0.7065610026 | K21: =[2]!AgePb6U8(G21) -> 6669.504971 | L21: =[2]!AgePb7U5(H21) -> 4610.480444 | M21: =[2]!AgePb8Th2(I21) -> 5671.185972 | N21: =[2]!AgePb76(J21) -> 4744.119824 | Q21: 9094
A22: PX2,L2 | B22: 27.21 | C22: 19.108 | D22: 48.405 | E22: 9.36 | F22: 49,40 | G22: 1.714 | H22: 86.29 | I22: 0.3537 | J22: 0.7022418229 | K22: =[2]!AgePb6U8(G22) -> 6436.251806 | L22: =[2]!AgePb7U5(H22) -> 4537.986403 | M22: =[2]!AgePb8Th2(I22) -> 6121.103269 | N22: =[2]!AgePb76(J22) -> 4735.312684 | Q22: 8009
A23: WR,L2 | B23: 85.73 | C23: 42.67 | D23: 110.9 | E23: 92.75 | F23: 261.3 | G23: 0.8038 | H23: 43.73 | I23: 0.306 | J23: 0.497725417 | K23: =[2]!AgePb6U8(G23) -> 3802.711044 | L23: =[2]!AgePb7U5(H23) -> 3859.109933 | M23: =[2]!AgePb8Th2(I23) -> 5396.039027 | N23: =[2]!AgePb76(J23) -> 4234.487 | Q23: 7395
A24: MAG,L | B24: 31.66 | C24: 21.111 | D24: 52.872 | E24: 16.78 | F24: 76.46 | G24: 1.222 | H24: 64.61 | I24: 0.2869 | J24: 0.6668035376 | K24: =[2]!AgePb6U8(G24) -> 5146.866664 | L24: =[2]!AgePb7U5(H24) -> 4248.086636 | M24: =[2]!AgePb8Th2(I24) -> 5098.2562 | N24: =[2]!AgePb76(J24) -> 4660.786873 | Q24: 6764
A25: PL1,R | B25: 42.62 | C25: 32.88 | D25: 66.73 | E25: 27.44 | F25: 138.9 | G25: 1.146 | H25: 98.62 | I25: 0.2578 | J25: 0.771468794 | K25: =[2]!AgePb6U8(G25) -> 4922.518254 | L25: =[2]!AgePb7U5(H25) -> 4672.145959 | M25: =[2]!AgePb8Th2(I25) -> 4635.960851 | N25: =[2]!AgePb76(J25) -> 4869.953633 | Q25: 6670
A26: PL2,R | B26: 36.708 | C26: 25.156 | D26: 60.942 | E26: 20.15 | F26: 106.1 | G26: 1.2675 | H26: 81.465 | I26: 0.2829 | J26: 0.685300207 | K26: =[2]!AgePb6U8(G26) -> 5277.536845 | L26: =[2]!AgePb7U5(H26) -> 4480.249745 | M26: =[2]!AgePb8Th2(I26) -> 5035.33381 | N26: =[2]!AgePb76(J26) -> 4700.199469 | Q26: 6520
A27: PL3,R | B27: 32.7 | C27: 25.9 | D27: 56.86 | E27: 14.9 | F27: 85.2 | G27: 1.45 | H27: 117 | I27: 0.304 | J27: 0.7920489297 | K27: =[2]!AgePb6U8(G27) -> 5776.55455 | L27: =[2]!AgePb7U5(H27) -> 4844.07232 | M27: =[2]!AgePb8Th2(I27) -> 5365.062426 | N27: =[2]!AgePb76(J27) -> 4907.505809 | Q27: 6449
A28: PX1,R | B28: 61.13 | C28: 34.01 | D28: 86.11 | E28: 43.23 | F28: 221.4 | G28: 1.156 | H28: 66.23 | I28: 0.2492 | J28: 0.5563553084 | K28: =[2]!AgePb6U8(G28) -> 4952.487691 | L28: =[2]!AgePb7U5(H28) -> 4272.853304 | M28: =[2]!AgePb8Th2(I28) -> 4497.288457 | N28: =[2]!AgePb76(J28) -> 4397.951609 | Q28: 6436
A29: PX2,R | B29: 37.206 | C29: 23.92 | D29: 59.692 | E29: 18.693 | F29: 110.4 | G29: 1.393 | H29: 78.7 | I29: 0.2604 | J29: 0.642907058 | K29: =[2]!AgePb6U8(G29) -> 5624.80457 | L29: =[2]!AgePb7U5(H29) -> 4445.62074 | M29: =[2]!AgePb8Th2(I29) -> 4677.698452 | N29: =[2]!AgePb76(J29) -> 4608.098602 | Q29: 6166
A30: WR,R | B30: 105.2 | C30: 53.019 | D30: 130.59 | E30: 95.57 | F30: 452.9 | G30: 0.98438 | H30: 57.376 | I30: 0.22 | J30: 0.5039828897 | K30: =[2]!AgePb6U8(G30) -> 4417.769688 | L30: =[2]!AgePb7U5(H30) -> 4129.46626 | M30: =[2]!AgePb8Th2(I30) -> 4019.218974 | N30: =[2]!AgePb76(J30) -> 4252.900678 | Q30: 6121
A31: 1L,R | B31: 507 | C31: 216 | D31: 507 | E31: 508 | F31: 2250 | G31: 0.97667 | H31: 55.022 | I31: 0.2115 | J31: 0.426035503 | K31: =[2]!AgePb6U8(G31) -> 4392.674364 | L31: =[2]!AgePb7U5(H31) -> 4087.672712 | M31: =[2]!AgePb8Th2(I31) -> 3877.903209 | N31: =[2]!AgePb76(J31) -> 4003.609529 | Q31: 5777
A32: MAG,R | B32: 33.08 | C32: 22.207 | D32: 53.568 | E32: 15.829 | F32: 73.79 | G32: 1.3844 | H32: 78.026 | I32: 0.3068 | J32: 0.671311971 | K32: =[2]!AgePb6U8(G32) -> 5601.595619 | L32: =[2]!AgePb7U5(H32) -> 4436.997423 | M32: =[2]!AgePb8Th2(I32) -> 5408.416387 | N32: =[2]!AgePb76(J32) -> 4670.50031 | Q32: 5671
A33: PL1,T | B33: 46.2 | C33: 32.88 | D33: 66.73 | E33: 29.94 | F33: 141.5 | G33: 1.05 | H33: 90.37 | I33: 0.2531 | J33: 0.7116883117 | K33: =[2]!AgePb6U8(G33) -> 4627.492623 | L33: =[2]!AgePb7U5(H33) -> 4584.370409 | M33: =[2]!AgePb8Th2(I33) -> 4560.292697 | N33: =[2]!AgePb76(J33) -> 4754.500425 | Q33: 5625
A34: PL2,T | B34: 36.709 | C34: 25.156 | D34: 60.942 | E34: 29.146 | F34: 141.87 | G34: 0.87634 | H34: 56.32 | I34: 0.2115 | J34: 0.6852815386 | K34: =[2]!AgePb6U8(G34) -> 4056.877169 | L34: =[2]!AgePb7U5(H34) -> 4110.930195 | M34: =[2]!AgePb8Th2(I34) -> 3877.903209 | N34: =[2]!AgePb76(J34) -> 4700.160267 | Q34: 5602
A35: PL3,T | B35: 32.7 | C35: 25.9 | D35: 56.86 | E35: 42.1 | F35: 194 | G35: 0.511 | H35: 41.4 | I35: 0.134 | J35: 0.7920489297 | K35: =[2]!AgePb6U8(G35) -> 2660.897233 | L35: =[2]!AgePb7U5(H35) -> 3804.790945 | M35: =[2]!AgePb8Th2(I35) -> 2541.712083 | N35: =[2]!AgePb76(J35) -> 4907.505809 | Q35: 5408
A36: PX1,T | B36: 61.13 | C36: 34.01 | D36: 86.11 | E36: 76.68 | F36: 322.3 | G36: 0.6516 | H36: 37.34 | I36: 0.1712 | J36: 0.5563553084 | K36: =[2]!AgePb6U8(G36) -> 3234.452957 | L36: =[2]!AgePb7U5(H36) -> 3702.587945 | M36: =[2]!AgePb8Th2(I36) -> 3194.115497 | N36: =[2]!AgePb76(J36) -> 4397.951609 | Q36: 5401
A37: PX2,T | B37: 37.205 | C37: 23.92 | D37: 59.693 | E37: 32.342 | F37: 139.73 | G37: 0.80508 | H37: 45.49 | I37: 0.2058 | J37: 0.6429243381 | K37: =[2]!AgePb6U8(G37) -> 3807.283882 | L37: =[2]!AgePb7U5(H37) -> 3898.296427 | M37: =[2]!AgePb8Th2(I37) -> 3782.582053 | N37: =[2]!AgePb76(J37) -> 4608.137456 | Q37: 5396
A38: WR,T | B38: 105.24 | C38: 53.019 | D38: 130.59 | E38: 136.83 | F38: 557.55 | G38: 0.68754 | H38: 40.076 | I38: 0.17874 | J38: 0.5037913341 | K38: =[2]!AgePb6U8(G38) -> 3373.227057 | L38: =[2]!AgePb7U5(H38) -> 3772.578575 | M38: =[2]!AgePb8Th2(I38) -> 3323.821554 | N38: =[2]!AgePb76(J38) -> 4252.340674 | Q38: 5365
A39: IL,T | B39: 507 | C39: 210 | D39: 507 | E39: 61126 | F39: 2275.8 | G39: 0.8118 | H39: 45.735 | I39: 0.20913 | J39: 0.4142011834 | K39: =[2]!AgePb6U8(G39) -> 3831.238203 | L39: =[2]!AgePb7U5(H39) -> 3903.633395 | M39: =[2]!AgePb8Th2(I39) -> 3838.324259 | N39: =[2]!AgePb76(J39) -> 3961.446742 | Q39: 5278
A40: MAG,T | B40: 33.08 | C40: 22.207 | D40: 53.569 | E40: 36.36 | F40: 147.91 | G40: 0.60267 | H40: 33.97 | I40: 0.153 | J40: 0.671311971 | K40: =[2]!AgePb6U8(G40) -> 3040.586549 | L40: =[2]!AgePb7U5(H40) -> 3609.169469 | M40: =[2]!AgePb8Th2(I40) -> 2877.559197 | N40: =[2]!AgePb76(J40) -> 4670.50031 | Q40: 5147
J41: Average | K41: =AVERAGE(K3:K40) -> 7713.82481 | L41: =AVERAGE(L3:L40) -> 4545.517968 | M41: =AVERAGE(M3:M40) -> 10148.38235 | N41: =AVERAGE(N3:N40) -> 4669.628417 | Q41: 5098
J42: Maximum | K42: =MAX(K3:K41) -> 47417.50912 | L42: =MAX(L3:L41) -> 8128.175199 | M42: =MAX(M3:M41) -> 65285.77199 | N42: =MAX(N3:N41) -> 5017.957799 | Q42: 5035
J43: Minimum | K43: =MIN(K3:K42) -> 1477.038666 | L43: =MIN(L3:L42) -> 2784.311839 | M43: =MIN(M3:M42) -> 2541.712083 | N43: =MIN(N3:N42) -> 3961.446742 | Q43: 5018
J44: Difference | K44: =(K42-K43) -> 45940.47046 | L44: =(L42-L43) -> 5343.86336 | M44: =(M42-M43) -> 62744.05991 | N44: =(N42-N43) -> 1056.511057 | Q44: 4989
K45: 206Pb/238U | L45: 207Pb/235U | M45: 208Pb/232Th | N45: 207Pb/206Pb | Q45: 4978
Q46: 4977
Q47: 4952
Q48: 4951
J49: Statisitics | K49: 206Pb/238U | L49: 207Pb/235U | M49: 208Pb/232Th | N49: 207Pb/206Pb | Q49: 4923
J50: Average | K50: 7713.82481 | L50: 4545.517968 | M50: 10148.38235 | N50: 4669.628417 | Q50: 4923
J51: Maximum | K51: 47417.50912 | L51: 8128.175199 | M51: 65285.77199 | N51: 5017.957799 | Q51: 4909
J52: Minimum | K52: 1477.038666 | L52: 2784.311839 | M52: 2541.712083 | N52: 3961.446742 | Q52: 4908
J53: Difference | K53: 45940.47046 | L53: 5343.86336 | M53: 62744.05991 | N53: 1056.511057 | Q53: 4908
Q54: 4908
Q55: 4885
Q56: 4878
Q57: 4870
Q58: 4870
Q59: 4843
Q60: 4830
Q61: 4829
Q62: 4781
Q63: 4755
Q64: 4744
Q65: 4735
Q66: 4700
Q67: 4700
Q68: 4678
Q69: 4671
Q70: 4671
Q71: 4661
Q72: 4654
Q73: 4636
Q74: 4627
Q75: 4608
Q76: 4608
Q77: 4560
Q78: 4550
Q79: 4497
Q80: 4468
Q81: 4418
Q82: 4413
Q83: 4398
Q84: 4398
Q85: 4393
Q86: 4314
Q87: 4283
Q88: 4253
Q89: 4252
Q90: 4234
Q91: 4151
Q92: 4057
Q93: 4019
Q94: 4004
Q95: 3961
Q96: 3878
Q97: 3878
Q98: 3838
Q99: 3831
Q100: 3807
Q101: 3803
Q102: 3783
Q103: 3685
Q104: 3578
Q105: 3373
Q106: 3358
Q107: 3324
Q108: 3234
Q109: 3194
Q110: 3041
Q111: 2878
Q112: 2661
Q113: 2542
Q114: 1477
